Workbook

Sheet coverSheet
A3: ISO 12217-1:2017 NON-SAILING BOATS OF LENGTH GREATER THAN OR EQUAL TO 6m
A5: Manufacturer:
A6: Signatory, Name:
A7: Signatory, Title:
A8: Phone:
A9: Email:
A10: WWW:
A11: CIN Model Year:
A12: Model Name:
A14: This calculation sheet is provided by IMCI "as is" and any express or implied warranties, including, but not limited to, the implied warranties of fitness for a particular purpose are disclaimed.
A16: blue cells are derived values
A17: yellow cells require data input
A19: Please make sure to set your signature on the summary! (worksheet 12) either digitally or print summary, sign and attach scan
A22: - most worksheets have additional comments / remarks / other calculations beside the printout area; please take into account.
A24: - For boats in category A and B either fill in worksheet 6c and 6d or attach curve of righting moments for both loading conditions to the documentation.
A26: - For boats with quick-draining cockpit the cockpit calculation according to ISO 11812 shall be enclosed to the documentation.
A28: - Please attach other detailed information as appropriate, e.g. photos, sketches etc. for sill height, openings, companion way doors, location of flooding points, practical tests etc.
A30: - When entering data, please use the correct separator for your Excel version, many application problems are the result of incorrect separators ( , or . )
A32: - Please send questions, found errors, typos, mistakes, ect. directly to ralf.dewender@imci.org or to the headoffice with info@imci.org; every comment helps us to provides you with a better version
A34: - Please be aware that there is NO technical difference between the requirements of ISO 12217-1:2015 and EN ISO 12217-1:2017; change of the name is just because of the harmonisation process; for ISO 12217-1:2020 the main change is the exclusion of optional equipment and margin for future additions from the maximum load and the result of the "maximum recommended load for builder's plate" (with ISO 14945:2021 and ISO 14946:2021 renamed to "maximum load for the builder's plate, mMBP") which exludes OB engine weights and the optional equipment.

Sheet Worksheet 1
L1: Comments
A2: ISO 12217-1:2017 NON-SAILING BOATS OF LENGTH GREATER THAN OR EQUAL TO 6m | M2: Derived values
A3: CALCULATION WORKSHEET No. 1 | M3: Input values
A4: ISO 12217-1:2017 en250115
A5: =CONCATENATE(coverSheet!B5," ",coverSheet!B12) -> 
A7: Design Category intended: | F7: Monohull / Multihull: | I7: Propul.Type: | L7: Please insert propulsion type | O7: =IF(OR('Worksheet 2'!$E$40="",'Worksheet 1'!$D$7=""),"",IF('Worksheet 2'!$BC$20=1,"","impossible combination of design category and option")) -> 
A8: Item | G8: Symbol | H8: Unit | I8: Value | J8: Ref. | L8: OB (Outboard engine) | N8: SD (Sterndrive engine) | Q8: IB (Inboard engine) | BC8: list: | BD8: list: | BE8: list:
A9: Length of hull as in ISO 8666 | G9: LH | H9: m | J9: 3.3.1 | BC9: A | BD9: Monohull | BE9: OB
A10: Length of waterline in loaded arrival condition | G10: LWL | H10: m | J10: 3.3.2 | BC10: B | BD10: Multihull | BE10: SD
A11: Empty Craft condition mass | G11: mEC | H11: kg | J11: 3.4.1 | L11: =IF(J7="OB","Please see engine mass calculation on next sheet","") ->  | BC11: C | BE11: IB
B12: =IF(J7="OB","standard equipment (incl. OB engine(s) and ess. safety equipment)","standard equipment incl. safety equipment") -> standard equipment incl. safety equipment | H12: kg | J12: 3.5.12 | L12: Please be aware that 3.5.12 is including OB engines weights and the essential safety equipment (as listed in 3.5.5*) | BC12: D
B13: water ballast in tanks which are notified in the owner's | H13: kg | J13: 3.4.2 | L13: * 3.5.5 requires the mass of the liferaft only for design cat. A&B. The RCD requires a storage place for the liferaft also for design cat C&D boats longer than 6m! Therefore IMCI (in accordance with ERFU 118) recommends to take the mass of the liferaft into account for cat C&D boats >6m also; please add to the essential safety equipment.
B14: manual to be filled when the boat is afloat
A15: Light craft condition mass | G15: mLC | H15: kg | I15: =I11+I12+I13 -> 0.0 | J15: 3.4.2
A16: Mass of: | K16: ATTENTION
A17: Desired crew limit | G17: CL | H17: ---- | J17: 3.5.3 | K17: Please insert here 100 % of the masses of the fluids.
A18: Mass of: | K18: For the calculation of the maximum load (mL) each fluid mass will be factored, see clause 3.4.4
B19: desired crew limit at 75 kg each | H19: kg | I19: =I17*75 -> 0.0
B20: provisions + personal effects | H20: kg | J20: 3.4.4 | M20: Conversion tool:
B21: drinking water | H21: kg | I21: =K21*0.95 -> 0.0 | J21: 3.4.4 | M21: Diesel: | N21: fuel tank in liter: | Q21: 100% | BC21: Engine Power | BE21: Dry Weight
B22: fuel | H22: kg | I22: =K22*0.95 -> 0.0 | J22: 3.4.4 | M22: Petrol: | N22: fuel tank in liter: | Q22: 100% | BC22: kW | BE22: kg
B23: lubricating and hydraulic oils | H23: kg | I23: 0.0 | J23: 3.4.4 | BC23: 0 to 1,5 | BD23: 0 | BE23: 13.7
B24: black water | H24: kg | I24: 0.0 | J24: 3.4.4 | M24: fuel weight in kg: | P24: =P22*0.74+P21*0.85 -> 0 | Q24: 100% weight to be indicated in K22 !! | BC24: 1,6 to 2,9 | BD24: 1.5 | BE24: 18.2
B25: grey water | H25: kg | I25: 0.0 | J25: 3.4.4 | BC25: 3,0 to 5,2 | BD25: 2.9 | BE25: 40.9
B26: water ballast | H26: kg | I26: =K26 -> 0.0 | J26: 3.4.4 | BC26: 5,3 to 11,2 | BD26: 5.2 | BE26: 60
B27: other fluids carried aboard | H27: kg | I27: 0.0 | J27: 3.4.4 | BC27: 11,30 to 18,7 | BD27: 11.2 | BE27: 104.5
B28: stores, spare gear and cargo (if any) | H28: kg | J28: 3.4.4 | BC28: 18,8 to 33,6 | BD28: 18.7 | BE28: 124.1
B29: inflatable life raft(s) in excess of essential safety equipment | H29: kg | J29: 3.4.4 | BC29: 33,7 to 44,8 | BD29: 33.6 | BE29: 161.7
B30: other small boats carried aboard | H30: kg | J30: 3.4.4 | BC30: 44,9 to 56,0 | BD30: 44.8 | BE30: 188.5
A31: Maximum load = sum of above masses using ISO ISO 12217-1:2020 | G31: mL | H31: kg | I31: =SUM(I19:I30) -> 0.0 | J31: 3.4.4 | L31: Note: be aware that for specific reasons the value 'margin for future addtions' is deleted, if necessary please add a future margin to optional equipment | BC31: 56,1 to 74,6 | BD31: 56 | BE31: 207.6
B32: optional equipment and fittings not included in basic outfit | H32: kg | J32: 3.4.4 / 3.4.5 | M32: see also new ISO 12217-1:2020 | BC32: 74,7 to 108,2 | BD32: 74.6 | BE32: 258.6
A33: Maximum load = sum of above masses using ISO 12217-1:2017 | G33: mL | H33: kg | I33: =I31+I32 -> 0.0 | J33: 3.4.4 | BC33: 108,3 to 164,1 | BD33: 108.2 | BE33: 260.7
A34: Maximum Load condition mass | G34: mLDC | H34: kg | I34: =I15+I33 -> 0.0 | J34: 3.4.5 | L34: Check your loaded arrival condition mass: | P34: mLA: boat in the maximum load condition minus 85 % of the maximum capacity of fixed or portable storage tanks for fuel, oils and drinking water, and minus 90 % of edible stores, | BC34: 164,2 and over | BD34: 164.1 | BE34: 312.5
A35: Mass to be removed for loaded arrival condition | H35: kg | J35: 3.4.6 | L35: but including the worst combination of optional fittings or equipment with respect to stability (the calculation of max and min values ​​below does NOT take into account the worst combination of opt. Equipment, so the value may vary)
A36: Loaded Arrival condition mass | G36: mLA | H36: kg | I36: =I34-I35 -> 0.0 | J36: 3.4.6 | P36: maximum value: | Q36: =I33+I15-0.85*100/95*(I21+I22+I23) -> 0.0 | R36: minimum value: | S36: minimum value: | T36: =I33+I15-0.85*100/95*(I21+I22+I23)-0.9*I20 -> 0.0 | U36: pending on mass of edible stores included in provisions + personal effects
A37: Mass of:
B38: minimum number of crew weight according to 3.4.3 | H38: kg | I38: =IF(I9>24,"ERROR",IF(I9="","",IF(I9<=8,75,IF(I9<=16,150,225)))) ->  | J38: 3.4.3a) | L38: 75 kg where LH ≤ 8 m, 150 kg where 8 m < LH ≤ 16 m, 225 kg where 16 m < LH ≤ 24 m
B39: non-consumable stores and equipment normally aboard | H39: kg | J39: 3.4.3b)
B40: inflatable life raft | H40: kg | J40: 3.4.3
A41: Load to be included in Minimum Operating Condition | G41: m'L | H41: kg | I41: =SUM(I38:I40) -> 0.0 | J41: 3.4.3 | L41: maximum load for builder's plate acc. to EN ISO 14945:2021:
A42: Light craft condition mass | G42: mLC | H42: kg | I42: =I15 -> 0.0 | J42: 3.4.2 | L42: please check builder's plate values on worksheet 1b
A43: Mass in the Minimum Operating Condition | G43: mMO | H43: kg | I43: =SUM(I41:I42) -> 0.0 | J43: 3.4.3
A44: Maximum load for the builder's plate using EN ISO 14946:2021 and EN ISO 14945:2021 (if manually reduced on Worksheet 1b the reduced value is shown) | G44: mMBP | H44: kg | I44: =IF('Worksheet 1b builder''s plate'!S6="","",IF('Worksheet 1b builder''s plate'!I24="",'Worksheet 1b builder''s plate'!S6,IF('Worksheet 1b builder''s plate'!I24>'Worksheet 1b builder''s plate'!S6,'Worksheet 1b builder''s plate'!S6,'Worksheet 1b builder''s plate'!I24))) -> 0.0 | L44: EN 14945:2021 excludes from the maximum load for builder's plate weight the outboard engine weights (listed separately on the plate) and the optional equipment (including a possible margin for future additions) is excluded through EN ISO 14946:2021 definition of maximum load | BF44: kW gesamt
BC45: list: | BD45: list: | BF45: =R43*R42 -> 0
A46: Is boat sail or non-sail? Nominal sail area | G46: AS* | H46: m2 | J46: 3.3.8 | BC46: SAIL | BD46: Yes
A47: Sail area / displacement ratio = AS / (mLDC)2/3 | H47: ----- | I47: =I46/(I34)^(2/3) ->  | J47: 3.1.2 | BC47: NON-SAIL | BD47: No, portable tank
A48: CLASSIFIED AS [non-sail if AS / (m LDC)2/3 < 0.07] | G48: SAIL/NON-SAIL ? | I48: =IF(I46="","",IF(I46/I34^(2/3)<0.07,"NON-SAIL","SAIL")) ->  | J48: 3.1.2
A49: NB If NON_SAIL, continue using these worksheets, if SAIL, use ISO 12217-2 | BC49: 75.0 | BD49: for min. nr. of crew weight
BC50: 150.0
G51: * AS has another definition as ALV ! | BC51: 225
R52: =COUNTIF(R44:R50,"Yes") -> 0
L55: noise emission test required? | S55: Directive 2013/53/EU
L56: (for inboard engine configuration or stern drive engine configuration, without integral exhaust ONLY) | S56: annex C clause 1.2:
N57: mP in t * | P57: =(I43+0.25*I22)/1000 -> 0.000 | Q57: t | S57: As an alternative to sound measurement tests, recreational craft with inboard engine configuration or stern drive engine configuration, without integral exhaust, shall be deemed to comply with the noise requirements set out in point 1.1 if they have a Froude number of ≤ 1,1 and a Power to Displacement ratio of ≤ 40 and where the engine and exhaust system are installed in accordance with the engine manufacturer’s specifications.
N59: engine power | Q59: kW
N60: ratio P/D | P60: =P59/P57 ->  | Q60: kW / t
N61: speed of craft | Q61: knots
N62: speed of craft | P62: =1852/3600*P61 -> 0 | Q62: m /s
N64: Froude number | P64: =P62/(9.8*I10)^0.5 ->  | Q64: without dimension
N66: result: | P66: =IF(OR(P59="",P61=""),"",IF(AND(P60<=40,P64<=1.1),"no noise emission test required","FAIL - noise emission test required")) ->  | S66: * To reproduce the value of mP within the possiblities of this sheet, the mass mMO is taken plus fuel tank weight to 25%, which would give the worst case value but as near a possible at the actual value of mP. Please correct value in cell P57 for exact calculation.
L68: acc. to RCD guidelines (June 2018) the displacement to be calculated with should be the performance test mass as def. in ISO 8666: 5.4 Performance test mass, mP The performance test mass (mP) of a craft shall include all permanently attached standard items of equipment. Further, the craft shall be fitted with all items of loose equipment needed for the safe operation of the craft, for example, — warps, — anchors/chain/ropes, — engine(s), and — batteries. In addition, the masses of the following shall be included: — number of persons needed for the safe operation of the craft; — fuel at least at 25 %, but no more than 50 % of the tank capacity of permanently installed fuel tanks, or one portable tank per engine, which shall be at least 50 % full at the beginning of each test trial; — personal safety equipment for all people on board.

Sheet Worksheet 1b builder's plate
O1: Comments
A2: ISO 12217-1:2017 / ISO 14945:2021 CALCULATION WORKSHEET No.1b Builder's plate | P2: Derived values
P3: Input values
A4: =CONCATENATE(coverSheet!B5," ",coverSheet!B12) -> 
A6: Since 2021-12-09 EN ISO 14945:2021 and EN ISO 14946:2021 are harmonised! The formely 'Maximum recommended load for builder's plate' became 'Maximum load for the builder's plate', mMBP. mMBP does not include the optinonal equipment anymore; also the weight of outboard engines is excluded from mMBP and can be shown in a seperated line on the plate. Below you find two examples for the builder's plates with the maxium value for mMBP calcuated from the stability calculation on worksheet 1; one for craft powered by outboard engines, one for craft powered by inboard or sterndrive engines. For portable tanks, please change the default 'yes' on the right side in 'no, portable tank'; the weight of the tank will be included in mMBP Please be aware that ISO 14946:2021 allowes in clause 6 that the maximum recommended load can be downrated or limited by the manufacturer at any time. Therefore you find a extra cell to enter a manual reduced value for the maximum load for the builder's plate. Default outboard engine mass is calcuated with the help of table F.1 from EN ISO 12217-1:2017; nevertheless the manufacturer can insert the actual engine mass the boat model is calcuated with. This is strongly recommended for engines with more than 164,2 kW which are outside the table range (means all 300, 350, 400, 450 and more HP outboard engines) ! Please be also aware that the design of these plates is just a proposal from EN ISO 14945, the manufacturer is free to change the design as long all requirements of the standard are fulfilled. | R6: maximum load for the builder's plate acc. to EN ISO 14945:2021: | S6: ='Worksheet 1'!I19+'Worksheet 1'!I20+'Worksheet 1'!I28+'Worksheet 1'!I29+'Worksheet 1'!I30+'Worksheet 1b builder''s plate'!T16 -> 0 | T6: kg
R9: water in fixed tank(s)? | S9: Yes | T9: =IF(S9="Yes","",'Worksheet 1'!I21) ->  | U9: kg
R10: fuel in fixed tank(s)? | S10: Yes | T10: =IF(S10="Yes","",'Worksheet 1'!I22) ->  | U10: kg
R11: oils in fixed tank(s)? | S11: Yes | T11: =IF(S11="Yes","",'Worksheet 1'!I23) ->  | U11: kg
R12: black water in fixed tank(s)? | S12: Yes | T12: =IF(S12="Yes","",'Worksheet 1'!I24) ->  | U12: kg
R13: grey water in fixed tank(s)? | S13: Yes | T13: =IF(S13="Yes","",'Worksheet 1'!I25) ->  | U13: kg
R14: water ballast in fixed tank(s)? | S14: Yes | T14: =IF(S14="Yes","",'Worksheet 1'!I26) ->  | U14: kg
R15: other fluids in fixed tank(s)? | S15: Yes | T15: =IF(S15="Yes","",'Worksheet 1'!I27) ->  | U15: kg
S16: mass of portable tanks to be included in mMBP | T16: =SUM(T9:T15) -> 0 | U16: kg
S18: number of portable tanks to be included in builder's plate mass | T18: =7-COUNTIF(T9:T15,"") -> 0
A23: Item | I23: Value | J23: Unit | K23: Ref. | BB23: Engine Power | BD23: Dry Weight
A24: Manually reduced value for the 'Maximum load for the builder's plate mMBP | J24: kg | K24: EN ISO 14945, cl. 6, note 2 | BB24: kW | BD24: kg
A25: Maximum engine power of a single engine | J25: kW | BB25: 0 to 1,5 | BC25: 0 | BD25: 13.7
A26: Maximum number of engines
A27: Actual value of the max. outboard engine mass, (sum of all engines) as defined by the manufacturer and used for stability calcuation (default value is table F.1 from ISO 12217-1:2017 value) | J27: kg | K27: EN ISO 12217-1:2017 table F.1 | M27: please insert actual OB engine weight; see also default value calculation of engien weight with Table F.1 from ISO 12217-1 | BB27: 1,6 to 2,9 | BC27: 1.5 | BD27: 18.2
A29: Please see builder's plate example with values calculated from worksheet 1 entries on next page: | BB29: 3,0 to 5,2 | BC29: 2.9 | BD29: 40.9
A32: Builder's plate information for craft powered by outboard engines -- Example | N32: number of outboard engines | O32: =I26 -> 0 | P32: weight of single engine: | BB32: 5,3 to 11,2 | BC32: 5.2 | BD32: 60
N33: kW of single OB engine | O33: =I25 -> 0 | P33: =IF(O32="","",LOOKUP(O33,BC25:BC40,BD25:BD40)) -> 13.7 | Q33: kg | BB33: 11,30 to 18,7 | BC33: 11.2 | BD33: 104.5
P34: weight of OB engines* | BB34: 18,8 to 33,6 | BC34: 18.7 | BD34: 124.1
D35: =coverSheet!B5 -> 0 | P35: =IF(O32="","",P33*O32) -> 0 | Q35: kg | BB35: 33,7 to 44,8 | BC35: 33.6 | BD35: 161.7
M36: * default value outboard engine mass, calculated with table F.1 from EN ISO 12217-1:2017 | BB36: 44,9 to 56,0 | BC36: 44.8 | BD36: 188.5
D37: Contact Address | BB37: 56,1 to 74,6 | BC37: 56 | BD37: 207.6
C38: 0609 | D38: =coverSheet!B12 -> 0 | L38: This is not to be used as a builder's plate template! | BB38: 74,7 to 108,2 | BC38: 74.6 | BD38: 258.6
L39: Please be aware that EN ISO 14945:2021 has requirements for the size of letters and piktogramms | BB39: 108,3 to 164,1 | BC39: 108.2 | BD39: 260.7
B40: =IF('Worksheet 1'!$D$7="","",'Worksheet 1'!$D$7) ->  | L40: For module F, G, PCA the number of the notified body must be added next to the CE mark, for all other modules this is not mandatory | BB40: 164,2 and over | BC40: 164.1 | BD40: 312.5
D42: ='Worksheet 1'!$I$17 -> 0 | G42: =IF('Worksheet 1'!J7<>"OB","n.a.",IF(I24="",S6,IF(I24>S6,S6,I24))) -> n.a. | I42: kg
D47: max. | F47: =IF('Worksheet 1'!J7<>"OB","n.a.",I25*I26) -> n.a. | G47: kW | I47: =IF('Worksheet 1'!J7<>"OB","n.a.",IF(I27="",P35,I27)) -> n.a. | J47: kg
C51: =IF(OR($F$49="",'Worksheet 1'!$D$7=""),"",IF('Worksheet 1b builder''s plate'!$BD$24=1,"","impossible combination of design category and option")) -> 
A54: Builder’s plate information for craft powered by inboard or sterndrive engines
D57: =coverSheet!B5 -> 0
D59: Contact Address
C60: 0609 | D60: =coverSheet!B12 -> 0
B62: =IF('Worksheet 1'!$D$7="","",'Worksheet 1'!$D$7) -> 
D64: ='Worksheet 1'!$I$17 -> 0 | G64: =IF('Worksheet 1'!J7="OB","n.a.",IF(I24="",S6,IF(I24>S6,S6,I24))) -> 0 | I64: kg
E69: max. | G69: =IF('Worksheet 1'!J7="OB","n.a.",I25*I26) -> 0 | I69: kW

Sheet Worksheet 2
N1: Comments
A2: ISO 12217-1:2017 CALCULATION WORKSHEET No.2 TESTS TO BE APPLIED | O2: Derived values
O3: Input values
A4: =CONCATENATE(coverSheet!B5," ",coverSheet!B12) -> 
A6: Question | G6: Answer | H6: Ref.
A7: Is boat fully enclosed? (see definition in ref.) YES/NO? | H7: 3.1.6 | J7: =IF(G7="Yes","please add cockpit calculation according to ISO 11812 to the stability sheets","") ->  | BA7: list:
A8: Is boat partially protected? (see definition in ref.) YES/NO? | H8: 3.1.7 | BA8: Yes
BA9: No
B10: Item | E10: Symbol | F10: Unit | G10: Value | H10: Ref.
A11: Windage area in minimum operating condition | E11: ALV | F11: m2 | H11: 3.3.7
A12: Length of Hull | E12: LH | F12: m | G12: ='Worksheet 1'!I9 -> 0.00 | H12: 3.3.2
A13: Beam of hull | E13: BH | F13: m | H13: 3.3.3
A14: Freeboard ad midships | E14: FM | F14: m | H14: 3.3.5 | N14: Please insert FM value, will be needed for calculation of Area of openings permitted to be submerged
A15: Ratio ALV/LH BH) | F15: ---- | G15: =G11/(G12*G13) -> 
A17: Choose any ONE of the following options and use all the worksheets indicated for that option.
A19: Option | C19: 1 | D19: 2 | E19: 3 | F19: 4 | G19: 5 | H19: 6
A20: Categories possible | C20: A and B | D20: C and D | E20: B | F20: C and D | G20: C and D | H20: C and D | AZ20: xx | BA20: A1 | BB20: =CONCATENATE('Worksheet 1'!D7,'Worksheet 2'!E40) ->  | BC20: =COUNTIF(BA20:BA30,BB20) -> 0
A21: Decking or covering | C21: fully enclosed | D21: fully enclosed | E21: any amount | F21: any amount | G21: partially protected | H21: any amount | AZ21: xx | BA21: B1
A22: Downflooding openings | C22: 3 | D22: 3 | E22: 3 | F22: 3 | G22: 3 | H22: 3 | AZ22: xx | BA22: B3
A23: downflooding angle | C23: 3 | E23: 3 | AZ23: xx | BA23: C2
A24: Downflooding height test | B24: All boats | C24: 3 | D24: 3 | E24: 3 | F24: 3a | G24: 3 | H24: 3 | AZ24: xx | BA24: C4
B25: Annex A method | C25: 4 | D25: 4 | E25: 4 | F25: 4a | G25: 4 | H25: 4 | AZ25: xx | BA25: C5
A26: Offset load test | C26: 5 | D26: 5 | E26: 5 | F26: 5 | G26: 5 | H26: 5 | AZ26: xx | BA26: C6
A27: Resistance to waves + wind | C27: 6 | E27: 6 | AZ27: xx | BA27: D2
A28: Heel due to wind action | D28: 7b | F28: 7b | G28: 7b | H28: 7b | AZ28: xx | BA28: D4
A29: Recess size | C29: 8 | D29: 8c | H29: 8c | AZ29: xx | BA29: D5
A30: Habitable multihulls | C30: 9 | D30: 9 | E30: 9 | F30: 9 | G30: 9 | H30: 9 | AZ30: xx | BA30: D6
A31: Motor sailers | C31: 9 | D31: 9 | E31: 9 | F31: 9 | G31: 9 | H31: 9
A32: Flotation test | E32: 10 | F32: 10
A33: Flotation material | E33: 10 | F33: 10
A34: Detection and removal of water | C34: 11 | D34: 11 | E34: 11 | F34: 11 | G34: 11 | H34: 11
A35: SUMMARY | C35: 12 | D35: 12 | E35: 12 | F35: 12 | G35: 12 | H35: 12
A36: a. The downflooding height test is not required to be conducted on the following Category C and D boats: I. those which, when tested in accordance with normative annex F.4, have been shown to support, in addition to the mass required by F.2 and Table F.5, an additional equivalent dry mass (kg) of (75∙CL + 10% of dry weight of stores and equipment included in the maximum total load), or II. those boats that do not take on water when heeled to 90° from the upright in the light craft condition.
A37: b. The application of Worksheet 7 is only required for boats where ALV/(LH BH) > 0,5.
A38: c. Only required for boats of design category C; for option 6 clause 6.5.4 only
BB39: list:
C40: Option selected | BA40: =E40 -> 0 | BB40: 1
BA41: =CONCATENATE('Worksheet 1'!D7,'Worksheet 2'!BA40) -> 0 | BB41: 2
C42: =IF(OR($E$40="",'Worksheet 1'!$D$7=""),"",IF('Worksheet 2'!$BC$20=1,"","impossible combination of design category and option")) ->  | BB42: 3
BB43: 4
BB44: 5
BB45: 6

Sheet Worksheet 3
K1: Comments
A2: ISO 12217-1:2017 CALCULATION WORKSHEET No. 3 DOWNFLOODING | L2: Derived values
L3: Input values
A4: =CONCATENATE(coverSheet!B5," ",coverSheet!B12) -> 
A6: Downflooding Openings:
A7: Question | H7: Answer | I7: Ref.
A8: Have all appropriate downflooding openings been identified? | I8: 3.2.1 | K8: please fill in worksheet 3a/3b with drawings and describtion of the location of all possible downflooding openings | AZ8: =IF(H8="Yes",1,0) -> 0 | BA8: list:
A9: Have potential downflooding openings within the boat been identified? | I9: 6.1.1.4 | AZ9: =IF(H9="Yes",1,0) -> 0 | BA9: Yes
A10: Do all closing appliances satisfy ISO 12216? | I10: 6.1.1.1 | K10: in the case there are no closing appliances just choose 'Yes' | AZ10: 0 | BA10: No
A11: Hatches or opening type appliances are not fitted below minimum height above waterline? * | I11: 6.1.1.2 | K11: in the case there are no hatches or opening type appliances Just choose 'Yes' | AZ11: 0
A12: Seacocks comply with requirements? | I12: 6.1.1.3 | K12: in the case there are no seacocks just choose 'Yes' | AZ12: 0
A13: Are all openings on design category A or B boats fitted with closing appliances? ** | I13: 6.1.1.5 | K13: in the case there are no openings just choose 'Yes' | AZ13: 0 | BB13: =SUM(AZ8:AZ13) -> 0
A14: Categories possible: A or B if all are YES, C or D if first five are YES | H14: =IF(BB13=6,"A",IF(AND(BB13=5,H13<>"yes"),"C","Fail")) -> Fail | I14: 6.1.1 | BB14: =IF(H14="A",1,IF(H14="C",3)) -> FALSE | BC14: mögliche Kategorie downflooding
A15: * Except for emergency escape hatches on design category C boats, where 0,1 m is allowable ** Except openings for ventilation and engine combustion | BB15: =IF('Worksheet 1'!D7="A",1,IF('Worksheet 1'!D7="B",2,IF('Worksheet 1'!D7="C",3,4))) -> 4 | BC15: applied for
A17: Exemptions Downflooding Openings:
A18: Question | H18: Answer | I18: Ref. | K18: If questions are not applicable, just leave the cells empty
A19: Drains from quick-draining recesses or watertight recesses acc. to cl. 6.1.1.6 b) are either:
A20: 1) freeing ports with non-return flaps which are watertight from the exterior (degree 3) or | I20: 6.1.1.6 b) | AZ20: =IF(AND(H20="",H21=""),0,IF(OR(H20="Yes",H21="Yes"),1,10)) -> 0 | BB20: =AZ20+AZ24+AZ28 -> 0
A21: 2) have a drainage area smaller than three times the minimum area required of ISO 11812 | I21: 6.1.1.6 b) | BB21: =IF(BB20=0,"n.a.",IF(BB20>9,"poss. downfl.","PASS")) -> n.a.
A22: =IF(AND(H20="",H21=""),"",IF(OR(H20="Yes",H21="Yes"),"","ATTENTION, openings to be considered as possible downflooding openings !")) ->  | I22: 6.1.1.6 b)
A23: Opening appliances (e.g. side doors) in the topsides which comply with ISO 12216 are
A24: 1) referenced in the owner’s manual as watertight closure to be kept shut when under way, and | I24: 6.1.1.6 d) | AZ24: =IF(AND(H24="",H25="",H26=""),0,IF(AND(H24="Yes",H25="Yes",H26="Yes"),1,10)) -> 0
A25: 2) marked inboard with “KEEP SHUT WHEN ..." in upper case letters not less than 4,8 mm high, and | I25: 6.1.1.6 d)
A26: 3) the hight above waterline of the lowest part is > 50% of required downflooding height | I26: 6.1.1.6 d)
A27: =IF(AND(H24="",H25="",H26="",H29=""),"",IF(AND(H24="Yes",H25="Yes",H26="Yes"),"","ATTENTION, openings to be considered as possible downflooding openings !")) ->  | I27: 6.1.1.6 d)
A28: All other exemtions of cl. 6.1.1.6 checked and requirements fullfilled? | I28: 6.1.1.6 | AZ28: =IF(H28="",0,IF(H28="yes",1,10)) -> 0
A29: =IF(H28="","",IF(H28="Yes","","ATTENTION, openings to be considered as possible downflooding openings !")) ->  | I29: 6.1.1.6
A31: Downflooding angle (required for cat A & B only*):
C32: Item | F32: Symbol | G32: Unit | H32: Value | I32: Ref. | BB32: =IF(BB15>=BB14,"ok","fail") -> fail
A33: required Category A = larger of (fO + 25)° or 30° | E33: ( fO = angle from offset load test) | F33: fD(R) | G33: degrees | H33: =IF('Worksheet 1'!D7="A",MAX(30,25+'Worksheet 5b'!K40,25+'Worksheet 5c'!E17,25+'Worksheet 5c'!F17),IF('Worksheet 1'!D7<>"A","n.a.")) -> n.a. | I33: 6.1.3; Table 3 | BB33: =MAX(H33:H34) -> 0
A34: required Category B = larger of (fO + 15)° or 25° | F34: fD(R) | G34: degrees | H34: =IF('Worksheet 1'!D7="B",MAX(25,15+'Worksheet 5b'!K40,'Worksheet 5c'!E17,'Worksheet 5c'!F17),IF('Worksheet 1'!D7<>"B","n.a.")) -> n.a. | I34: 6.1.3; Table 3 | K34: please insert offset load test data
A35: Area of openings permitted to be submerged = 1.2 LH BH FM | G35: cm2 | H35: =1.2*'Worksheet 2'!G14*'Worksheet 2'!G13*'Worksheet 1'!I9 -> 0.00 | I35: 6.1.3 | K35: either in Worksheet(s) 5b or 5c,d,e
A36: Actual downflooding angle: at mass = mMO | F36: fDA | G36: degrees | I36: 6.1.3 | K36: * If ALV / (LH * BH) ≥ 0,5 (at mMO) please insert downflooding angle for design cat C & D also
A37: at mass = m LA | F37: fDA | G37: degrees | I37: 6.1.3
A38: Method used to determine fD: | I38: Annex C
C39: Design category possible on Downflooding Angle: | H39: =IF(OR('Worksheet 1'!D7="C",'Worksheet 1'!D7="D"),"n.a.",IF(MIN(H36,H37)>MAX(H33,H34),'Worksheet 1'!D7,IF(MIN(H36,H37)>H34,"B","Fail"))) -> Fail | I39: 6.1.3
A41: Downflooding Height: (all exept exemt boats)
A42: Is boat exempted from downflooding height requirements according to 6.1.2.1? Yes / No
A43: Requirement | F43: Basic require-ment | G43: Reduced value for small openings | H43: Reduced value at outboard | I43: Increased value at bow | BA43: list
A44: Applicable to | F44: all options | G44: all options (using figures) | H44: options 3, 4 or 6 | I44: options 3, 4, 6 | BA44: fig 3 & 4
A45: ref. | F45: 6.1.2.2 a) | G45: 6.1.2.2 d) | H45: 6.1.2.2 c) | I45: 6.1.2.2 b) | K45: please chose either fig 3 + 4 or annex A | BA45: annex A
A46: obtained from Figs. 3 + 4 or annex A? | G46: = basic x 0.75 | H46: = basic x 0.80 | I46: = basic x 1.15
A47: Maximum area of small openings (50LH2) (mm2) = | G47: =50*'Worksheet 1'!I9^2 -> 0 | H47: ///////// | I47: //////// | BA47: cat C only | BI47: worksheet 3 abfrage gesamt
A48: Required downflooding height hD(R) | B48: Fig. 3/ann. A | D48: Category | E48: A | F48: =IF(F46="annex A","",MAX(0.5,'Worksheet 1'!I9/17)) -> 0.50 | G48: =IF(F46="annex A","",F48*0.75) -> 0.38 | H48: =IF(F46="annex A","",F48*0.8) -> 0.40 | I48: =IF(F46="annex A","",F48*1.15) -> 0.58 | BA48: 2 | BB48: 4 | BC48: 5 | BD48: 6 | BG48: A | BH48: 4 | BI48: =LOOKUP(H14,BG48:BG51,BH48:BH51) -> 1
B49: Fig. 3/ann. A | D49: Category | E49: B | F49: =IF(F46="annex A","",MAX(0.4,'Worksheet 1'!I9/17)) -> 0.40 | G49: =IF(F46="annex A","",F49*0.75) -> 0.30 | H49: =IF(F46="annex A","",F49*0.8) -> 0.32 | I49: =IF(F46="annex A","",F49*1.15) -> 0.46 | K49: in case of error messages like #NV, please check insert design category and choosen option in worksheet one and two | BA49: opt.2 (LH/17) | BB49: opt.4 (LH/20) | BC49: opt.5 (LH/12) | BD49: opt.6 (LH/10) | BG49: B | BH49: 3 | BI49: =IF(H39="n.a.",4,LOOKUP(H39,BG48:BG51,BH48:BH51)) -> 1
B50: Fig. 3/ann. A | D50: Category | E50: C | F50: =IF('Worksheet 1'!D7="A","",IF('Worksheet 1'!D7="B","",IF(F46="annex A","",LOOKUP('Worksheet 2'!$E$40,'Worksheet 3'!BA48:BD48,'Worksheet 3'!BA53:BD53)))) ->  | G50: =IF(F50="","",IF(F46="annex A","",F50*0.75)) ->  | H50: =IF(F50="","",IF(F46="annex A","",F50*0.8)) ->  | I50: =IF(F50="","",IF(F46="annex A","",F50*1.15)) ->  | K50: if annex A is choosen, please fill in H39 and I39 in case of using option 3,4 or 6 | AZ50: calc. | BA50: ='Worksheet 1'!I9/17 -> 0.00 | BB50: ='Worksheet 1'!I9/20 -> 0.00 | BC50: ='Worksheet 1'!I9/12 -> 0.00 | BD50: ='Worksheet 1'!I9/10 -> 0.00 | BG50: C | BH50: 2 | BI50: =LOOKUP(F53,BG48:BG51,BH48:BH51) -> 
B51: Fig. 4/ann. A | D51: Category | E51: D | F51: =IF('Worksheet 1'!D7="A","",IF('Worksheet 1'!D7="B","",IF(F46="annex A","",LOOKUP('Worksheet 2'!E40,'Worksheet 3'!BA48:BD48,'Worksheet 3'!BA59:BD59)))) ->  | G51: =IF(F51="","",IF(F46="annex A","",F51*0.75)) ->  | H51: =IF(F51="","",IF(F46="annex A","",F51*0.8)) ->  | I51: =IF(F51="","",IF(F46="annex A","",F51*1.15)) ->  | K51: in any case of OB engine(s) and usage of option 3,4 or 6 please fill in downfl. height at outboard, otherwise you get an fail entry in the summary | AZ51: Min | BA51: 0.3 | BB51: 0.3 | BC51: 0.3 | BD51: 0.5 | BG51: D | BH51: 1
A52: Actual Downflooding Height hD | AZ52: Max | BA52: 0.75 | BB52: 0.75 | BC52: 0.75 | BD52: 0.75 | BI52: =MIN(BI48:BI50) -> 
A53: Design Category possible | F53: =IF(F46="annex A",'Worksheet 4'!H40,IF(F52>=LOOKUP('Worksheet 1'!$D$7,'Worksheet 3'!$BG$48:$BG$51,'Worksheet 3'!F48:F51),'Worksheet 1'!$D$7,"Fail")) ->  | G53: =IF(F46="annex A","",IF(G52>=LOOKUP('Worksheet 1'!$D$7,'Worksheet 3'!$BG$48:$BG$51,'Worksheet 3'!G48:G51),'Worksheet 1'!$D$7,"Fail")) ->  | H53: =IF('Worksheet 1'!J7<>"OB","n.a.",IF(OR('Worksheet 2'!E40<=2,'Worksheet 2'!E40=5),"",IF(AND(F46="annex A",OR('Worksheet 2'!E40=3,'Worksheet 2'!E40=4,'Worksheet 2'!E40=6)),"insert value",IF(H52>=LOOKUP('Worksheet 1'!$D$7,'Worksheet 3'!$BG$48:$BG$51,'Worksheet 3'!H48:H51),'Worksheet 1'!$D$7,"Fail")))) -> n.a. | I53: =IF(OR('Worksheet 2'!E40<=2,'Worksheet 2'!E40=5),"",IF(F46="annex A","insert value",IF(I52>LOOKUP('Worksheet 1'!$D$7,'Worksheet 3'!$BG$48:$BG$51,'Worksheet 3'!I48:I51),'Worksheet 1'!$D$7,"Fail"))) ->  | AX53: required downflooding height: | BA53: =IF(BA50<BA51,BA51,IF(BA50>BA52,BA52,BA50)) -> 0.30 | BB53: =IF(BB50<BB51,BB51,IF(BB50>BB52,BB52,BB50)) -> 0.30 | BC53: 0.3 | BD53: 0.5
A54: Design Category possible on Downflooding Height = lowest of above | I54: =IF(BI52=1,"D",IF(BI52=2,"C",IF(BI52=3,"B","A"))) ->  | BA54: cat D
BA55: opt.2 (LH/20) | BB55: opt.4 (LH/24)
AZ56: calc. | BA56: ='Worksheet 1'!I9/20 -> 0.00 | BB56: ='Worksheet 1'!I9/24 -> 0.00 | BC56: 0.4 | BD56: 0.4
AZ57: Min | BC57: 0.4 | BD57: 0.4
AZ58: Max | BA58: 0.4 | BB58: 0.4
AX59: required downflooding height: | BA59: =MIN(BA56,BA58) -> 0.00 | BB59: =MIN(BB56,BB58) -> 0.00 | BC59: 0.4 | BD59: 0.4

Sheet Worksheet 3a Overview
N1: Comments
A2: ISO 12217-1:2017 CALCULATION WORKSHEET No.3a DOWNFLOODING OPENINGS / CLOSING APPLIANCES | O2: Derived values
O3: Input values
A4: =CONCATENATE(coverSheet!B5," ",coverSheet!B12) -> 
A6: General overview downflooding openings and closing appliances | AA6: list
A8: NOTE: All drawings are not blocked by a password, so please replace with own drawings if at hand.
A9: NOTE: See X,Y, Z coordinates for worksheet 3b as illustrated below
A11: Top View | I11: Please drag numbered labels to appropriate position Please use same numbers only for the same opening | AA11: downflooding opening
AA12: non pre-fabricated closing appliances
AA13: pre-fabricated closing appliances
AA14: seacock
AA15: other devices
A25: Side View Starboard
A39: Side View Port
A54: Please insert a short describtion and measurements of downflooding openings and closing appliances under the corresponding number on worksheet 3b

Sheet Worksheet 3b Overview
K1: Comments
A2: ISO 12217-1:2017 CALCULATION WORKSHEET No.3b DOWNFLOODING OPENINGS | L2: Derived values
L3: Input values
A4: =CONCATENATE(coverSheet!B5," ",coverSheet!B12) -> 
A6: General overview downflooding openings and closing appliances | AB6: list
A8: NOTE: Please submit for every pre-fabricated closing appliance a declaration of conformity (DoC) of the product. Please submit for every non pre-fabricated closing appliance a calculation acc. to ISO 12216 (see IMCI template). For both a watertightness test must be done!
A10: Description of the downflooding opening / closing appliance | C10: Nr. | D10: X(a) [m] | E10: Y [m] | F10: Z (=hD) [m] | G10: watertighness test done | H10: opening type(b) | K10: if necessary please submit a picture or a technical drawing of the opening or closing appliance | AB10: downflooding opening | BB10: number closing appliance | BC10: =COUNTIF(H11:I32,"non pre-fabricated closing appliances")+COUNTIF(H11:I32,"pre-fabricated closing appliances") -> 0
C11: 1 | K11: Attention ! Sill of companionways to be considered as downflooding point? See ERFU 173 below: | AB11: non pre-fabricated closing appliances | BB11: free cells downflooding openings | BC11: =COUNTIF(A11:A32,"") -> 22
C12: 2 | K12: ERFU 173: Scenario/Questions: A recreational craft provides access to an accommodation space from the cockpit of the recreational craft by a companionway opening. The companionway door complies with the applicable requirements of ISO 12216 and ISO 11812. Questions: Shall a companionway opening be considered a downflooding point? Recommended Solution: In the case that the habitable space has only one companionway, it shall be considered as a downflooding point, regardless of the means of closure. In the case that the habitable space has multiple companionways, at least one shall be considered as a downflooding point. In order to be exempted from being a downflooding point, a companionway shall have a closing mechanism and be labeled in accordance with clause 6.1.1.6 (EN ISO 12217-1), 6.2.1.6 (EN ISO 12217-2) and 6.3.1.5 (EN ISO 12217-3). | AB12: pre-fabricated closing appliances | BB12: number cells watertightness test passed | BC12: =COUNTIF(G11:G32,"test passed") -> 0
C13: 3 | AB13: other devices | BB13: Check watertightness | BC13: =IF(BC12>22-BC11,"wrong entry",IF(BC11=22,"n.a.",IF(BC12=BC10,"Pass","Fail"))) -> n.a.
C14: 4
C15: 5 | AB15: test passed
C16: 6 | AB16: n.a.
C17: 7
C18: 8
C19: 9
C20: 10
C21: 11 | K21: Please pay attention where X, Y and Z are to be measured! X – direction, measured from aft end of LH !! NOT from the bow !! Y – direction, measured from the nearest point of the periphery !! NOT from the centerline !! Z – direction, measured above waterline !! NOT from the baseline !!
C22: 12
C23: 13
C24: 14
C25: 15
C26: 16
C27: 17
C28: 18
C29: 19
C30: 20
C31: 21
C32: 22
A34: (a) Please be aware that X is measured from the aft end of LH. In Annex A calculations xD is measured from the bow or stern, whichever is nearest
A35: (b) opening typs are: normal downflooding openings without any opening appliances; pre-fabricated opening appliances; non-pre-fabricated opening appliances and other devices

Sheet Worksheet 4
J1: Comments
A2: ISO 12217-1:2017 CALCULATION WORKSHEET No.4 DOWNFLOODING HEIGHT | K2: Derived values
K3: Input values
A4: =CONCATENATE(coverSheet!B5," ",coverSheet!B12) -> 
A6: Calculation using annex A
A8: Item | C8: Symbol | D8: Unit | E8: Opening 1 | F8: Opening 2 | G8: Opening 3 | H8: Opening 4
A9: Position of openings
A10: Least longitudinal distance from bow/stern | C10: xD | D10: m
A11: Least travers distance from gunwale | C11: yD | D11: m
A12: F1 = greater of (1 - xD/LH) or (1 - yD/BH) | C12: F1 | D12: ---- | E12: =MAX(1-E11/'Worksheet 2'!$G$13,1-E10/'Worksheet 1'!$I$9) ->  | F12: =MAX(1-F11/'Worksheet 2'!$G$13,1-F10/'Worksheet 1'!$I$9) ->  | G12: =MAX(1-G11/'Worksheet 2'!$G$13,1-G10/'Worksheet 1'!$I$9) ->  | H12: =MAX(1-H11/'Worksheet 2'!$G$13,1-H10/'Worksheet 1'!$I$9) -> 
A13: Size of openings:
A14: Combined area of openings to top of any down-flooding opening | C14: a | D14: mm2
A15: Longitudinal distance of opening from tip of bow | C15: x'D | D15: m
A16: Limiting value of a = (30LH)2 | D16: mm2 | E16: =(30*'Worksheet 1'!I9)^2 -> 0 | F16: =(30*'Worksheet 1'!I9)^2 -> 0 | G16: =(30*'Worksheet 1'!I9)^2 -> 0 | H16: =(30*'Worksheet 1'!I9)^2 -> 0
A17: If a ≥ (30LH)2, F2 = 1,0 | C17: F2 | D17: ---- | E17: =IF(E14="",1,IF(E14>E16,1,1+E15/'Worksheet 1'!$I$9*(SQRT('Worksheet 4'!E14)/75/'Worksheet 1'!$I$9-0.4))) -> 1.00 | F17: =IF(F14="",1,IF(F14>F16,1,1+F15/'Worksheet 1'!$I$9*(SQRT('Worksheet 4'!F14)/75/'Worksheet 1'!$I$9-0.4))) -> 1.00 | G17: =IF(G14="",1,IF(G14>G16,1,1+G15/'Worksheet 1'!$I$9*(SQRT('Worksheet 4'!G14)/75/'Worksheet 1'!$I$9-0.4))) -> 1.00 | H17: =IF(G14="",1,IF(H14>H16,1,1+H15/'Worksheet 1'!$I$9*(SQRT('Worksheet 4'!H14)/75/'Worksheet 1'!$I$9-0.4))) -> 1.00
A18: If a < (30LH)2, F2 =
A19: Size of recesses:
A20: Volume of recesses which are not self-draining in accordance with ISO 11812 | C20: VR | D20: m3 | AW20: list:
A21: Is opening not a recess? Is recess quickdraining? Is recess not quickdraining? | AW21: opening not a recess
A22: k = VR/(LHBHFM) | C22: k | D22: ---- | E22: =E20/'Worksheet 1'!$I$9/'Worksheet 2'!$G$13/'Worksheet 2'!$G$14 ->  | F22: =F20/'Worksheet 1'!$I$9/'Worksheet 2'!$G$13/'Worksheet 2'!$G$14 ->  | G22: =G20/'Worksheet 1'!$I$9/'Worksheet 2'!$G$13/'Worksheet 2'!$G$14 ->  | H22: =H20/'Worksheet 1'!$I$9/'Worksheet 2'!$G$13/'Worksheet 2'!$G$14 ->  | AW22: quick- draining
A23: If opening is not a recess, | B23: F3 = 1 | C23: F3 | D23: ---- | E23: =IF(E21="quick- draining",0.7,IF(E21="not quick- draining",IF(E20="",1.2,MIN(1.2,0.7+E22^0.5)),IF(E21="",1.2,1))) -> 1.20 | F23: =IF(F21="quick- draining",0.7,IF(F21="not quick- draining",IF(F20="",1.2,MIN(1.2,0.7+F22^0.5)),IF(F21="",1.2,1))) -> 1.20 | G23: 1.20 | H23: 1.20 | AW23: not quick- draining
A24: If recess is quickdraining, | B24: F3 = 0.7
A25: If recess is not quick draining, | B25: F3 = (0.7 + k0.5) | J25: F3 is the recess size factor, greater than 0,7 but never to be taken as greater than 1,2:
A26: Displacement:
A27: Loaded displacement volume (see 3.4.5) | C27: VD | D27: m3 | E27: ='Worksheet 1'!I34/1025 -> 0.00
A28: B = BH for monohulls, BWL for multihulls | C28: B | D28: m | E28: =IF('Worksheet 1'!H7="","",IF('Worksheet 1'!H7="Monohull",'Worksheet 2'!G13,"insert BWL")) ->  | J28: In case of multihulls, BWL is the sum of the maximum waterline beam of each of the hulls
A29: F4 = [(10 VD)/(LH B2)]1/3 | C29: F4 | D29: ---- | E29: =(10*E27/('Worksheet 1'!I9*'Worksheet 4'!E28*'Worksheet 4'!E28))^(1/3) -> 
A30: Flotation:
A31: For boats using option 3 or 4, F5 = 0.8 | C31: F5 | D31: ---- | E31: =IF('Worksheet 2'!E40=3,0.8,IF('Worksheet 2'!E40=4,0.8,1)) -> 1
A32: For all other boats, F5 = 1.0 | AW32: sAbfragetabelle
A33: Required calculation height: = F1F2F3F4F5LH/15 | C33: hD(R) | D33: m | E33: =IF(AND('Worksheet 1'!D7="D",'Worksheet 2'!E40="6"),E12*E17*E23*$E$29*$E$31*'Worksheet 1'!$I$9/15,IF('Worksheet 1'!D7="C",MIN(E12*E17*E23*$E$29*$E$31*'Worksheet 1'!$I$9/15,0.75),IF('Worksheet 1'!D7="A",MIN(E12*E17*E23*$E$29*$E$31*'Worksheet 1'!$I$9/15,1.41),IF('Worksheet 1'!D7="B",MIN(E12*E17*E23*$E$29*$E$31*'Worksheet 1'!$I$9/15,1.41),IF('Worksheet 1'!D7="D",MIN(E12*E17*E23*$E$29*$E$31*'Worksheet 1'!$I$9/15,0.4),E12*E17*E23*$E$29*$E$31*'Worksheet 1'!$I$9/15))))) ->  | F33: =IF(AND('Worksheet 1'!D7="D",'Worksheet 2'!E40="6"),F12*F17*F23*$E$29*$E$31*'Worksheet 1'!$I$9/15,IF('Worksheet 1'!D7="C",MIN(F12*F17*F23*$E$29*$E$31*'Worksheet 1'!$I$9/15,0.75),IF('Worksheet 1'!D7="A",MIN(F12*F17*F23*$E$29*$E$31*'Worksheet 1'!$I$9/15,1.41),IF('Worksheet 1'!D7="B",MIN(F12*F17*F23*$E$29*$E$31*'Worksheet 1'!$I$9/15,1.41),IF('Worksheet 1'!D7="D",MIN(F12*F17*F23*$E$29*$E$31*'Worksheet 1'!$I$9/15,0.4),F12*F17*F23*$E$29*$E$31*'Worksheet 1'!$I$9/15))))) ->  | G33: =IF(AND('Worksheet 1'!D7="D",'Worksheet 2'!E40="6"),G12*G17*G23*$E$29*$E$31*'Worksheet 1'!$I$9/15,IF('Worksheet 1'!D7="C",MIN(G12*G17*G23*$E$29*$E$31*'Worksheet 1'!$I$9/15,0.75),IF('Worksheet 1'!D7="A",MIN(G12*G17*G23*$E$29*$E$31*'Worksheet 1'!$I$9/15,1.41),IF('Worksheet 1'!D7="B",MIN(G12*G17*G23*$E$29*$E$31*'Worksheet 1'!$I$9/15,1.41),IF('Worksheet 1'!D7="D",MIN(G12*G17*G23*$E$29*$E$31*'Worksheet 1'!$I$9/15,0.4),G12*G17*G23*$E$29*$E$31*'Worksheet 1'!$I$9/15))))) ->  | H33: =IF(AND('Worksheet 1'!D7="D",'Worksheet 2'!E40="6"),H12*H17*H23*$E$29*$E$31*'Worksheet 1'!$I$9/15,IF('Worksheet 1'!D7="C",MIN(H12*H17*H23*$E$29*$E$31*'Worksheet 1'!$I$9/15,0.75),IF('Worksheet 1'!D7="A",MIN(H12*H17*H23*$E$29*$E$31*'Worksheet 1'!$I$9/15,1.41),IF('Worksheet 1'!D7="B",MIN(H12*H17*H23*$E$29*$E$31*'Worksheet 1'!$I$9/15,1.41),IF('Worksheet 1'!D7="D",MIN(H12*H17*H23*$E$29*$E$31*'Worksheet 1'!$I$9/15,0.4),H12*H17*H23*$E$29*$E$31*'Worksheet 1'!$I$9/15))))) ->  | J33: Table A.1 — Limits on required downflooding height | AW33: Table A.1 — Limits on required downflooding height
A34: Required downfooding height with limits applied (see annex A, Table A.1) | B34: Category A | C34: hD(R) | D34: m | E34: =IF('Worksheet 1'!$D$7="A",0.5,"") ->  | F34: =IF('Worksheet 1'!$D$7="A",0.5,"") ->  | G34: =IF('Worksheet 1'!$D$7="A",0.5,"") ->  | H34: =IF('Worksheet 1'!$D$7="A",0.5,"") ->  | J34: Design category | K34: A | L34: B | M34: C | N34: C | O34: D | P34: D | AU34: =MAX(E33:E37) ->  | AW34: Design category | AX34: A | AY34: B | AZ34: B | BA34: C | BB34: C | BC34: C | BD34: C | BE34: D | BF34: D | BG34: D | BH34: D
B35: Category B | C35: hD(R) | D35: m | E35: =IF('Worksheet 1'!$D$7="B",0.4,"") ->  | F35: =IF('Worksheet 1'!$D$7="B",0.4,"") ->  | G35: =IF('Worksheet 1'!$D$7="B",0.4,"") ->  | H35: =IF('Worksheet 1'!$D$7="B",0.4,"") ->  | J35: Options (see Table 2) | K35: 1 | L35: 1, 3 | M35: 2, 4, 5 | N35: 6 | O35: 2, 4, 5 | P35: 6 | AW35: Options (see Table 2) | AX35: 1 | AY35: 1 | AZ35: 3 | BA35: 2 | BB35: 4 | BC35: 5 | BD35: 6 | BE35: 2 | BF35: 4 | BG35: 5 | BH35: 6
B36: Category C | C36: hD(R) | D36: m | E36: =IF('Worksheet 2'!$BA$41="C6",0.5,IF('Worksheet 1'!$D$7="C",0.3,"")) ->  | F36: =IF('Worksheet 2'!$BA$41="C6",0.5,IF('Worksheet 1'!$D$7="C",0.3,"")) ->  | G36: =IF('Worksheet 2'!$BA$41="C6",0.5,IF('Worksheet 1'!$D$7="C",0.3,"")) ->  | H36: =IF('Worksheet 2'!$BA$41="C6",0.5,IF('Worksheet 1'!$D$7="C",0.3,"")) ->  | J36: hD(R)shall be not less than | K36: 0.5 | L36: 0.4 | M36: 0.3 | N36: 0.5 | O36: 0.2 | P36: 0.4 | AW36: hD(R)shall be not less than | AX36: 0.5 | AY36: 0.4 | AZ36: 0.4 | BA36: 0.3 | BB36: 0.3 | BC36: 0.3 | BD36: 0.5 | BE36: 0.2 | BF36: 0.2 | BG36: 0.2 | BH36: 0.4
B37: Category D | C37: hD(R) | D37: m | E37: =IF('Worksheet 2'!$BA$41="D6",0.4,IF('Worksheet 1'!$D$7="D",0.2,"")) ->  | F37: =IF('Worksheet 2'!$BA$41="D6",0.4,IF('Worksheet 1'!$D$7="D",0.2,"")) ->  | G37: =IF('Worksheet 2'!$BA$41="D6",0.4,IF('Worksheet 1'!$D$7="D",0.2,"")) ->  | H37: =IF('Worksheet 2'!$BA$41="D6",0.4,IF('Worksheet 1'!$D$7="D",0.2,"")) ->  | J37: hD(R)shall be not more than | K37: 1.41 | L37: 1.41 | M37: 0.75 | N37: 0.75 | O37: 0.4 | P37: - | AW37: hD(R)shall be not more than | AX37: 1.41 | AY37: 1.41 | AZ37: 1.41 | BA37: 0.75 | BB37: 0.75 | BC37: 0.75 | BD37: 0.75 | BE37: 0.4 | BF37: 0.4 | BG37: 0.4 | BH37: -
A38: Measured Downflooding Height: | C38: hD | D38: m | AX38: A1 | AY38: B1 | AZ38: B3 | BA38: C2 | BB38: C4 | BC38: C5 | BD38: C6 | BE38: D2 | BF38: D4 | BG38: D5 | BH38: D6
D39: Design Category possible: | E39: =IF(E38="","",IF(E38>=MAX(E33:E37),'Worksheet 1'!$D$7,"Fail")) ->  | F39: =IF(F38="","",IF(F38>=MAX(F33:F37),'Worksheet 1'!$D$7,"Fail")) ->  | G39: =IF(G38="","",IF(G38>=MAX(G33:G37),'Worksheet 1'!$D$7,"Fail")) ->  | H39: =IF(H38="","",IF(H38>=MAX(H33:H37),'Worksheet 1'!$D$7,"Fail")) -> 
G40: Lowest of above = | H40: =IF(AW40>0,"Fail",'Worksheet 1'!D7) -> Fail | AW40: =IF(E38="","",COUNTIF(E39:H39,"Fail")) -> 

Sheet Worksheet 5a
Q1: Comments
A2: ISO 12217-1:2017 CALCULATION WORKSHEET - No. 5a OFFSET LOAD TEST | R2: Derived values
R3: Input values
A4: =CONCATENATE(coverSheet!B5," ",coverSheet!B12) -> 
A6: Mass of people used for test | G6: Offset Load Test
A8: Name | D8: Ident. | E8: Mass (kg) | G8: Name | J8: Ident. | K8: Mass (kg) | AZ8: =SUM(E9:E18)+SUM(K9:K18) -> 0
A9: Person 1 | D9: A | G9: Person 11 | J9: K | M9: The offset load test should be done with an average mass per person >= 85 kg if the test is limited by downflooding that is obvious to the crew (e.g. over the gunwale),
A10: Person 2 | D10: B | G10: Person 12 | J10: L
A11: Person 3 | D11: C | G11: Person 13 | J11: N
A12: Person 4 | D12: D | G12: Person 14 | J12: M
A13: Person 5 | D13: E | G13: Person 15 | J13: O | M13: The offset load test should be done with an average mass per person >= 98 kg if the test is limited by downflooding that is not obvious to the crew (e.g. through openings in the topsides)
A14: Person 6 | D14: F | G14: Person 16 | J14: P
A15: Person 7 | D15: G | G15: Person 17 | J15: Q
A16: Person 8 | D16: H | G16: Person 18 | J16: R
A17: Person 9 | D17: I | G17: Person 19 | J17: S
A18: Person 10 | D18: J | G18: Person 20 | J18: T
E19: 98
AZ20: list:
A21: downflooding opening obvious to the crew? | E21: Yes | G21: average mass per person: | K21: =IF(E9="","",(SUM(E9:E18)+SUM(K9:K18))/(COUNT(E9:E18)+COUNT(K9:K18))) ->  | AZ21: Yes
G22: number of persons permitted | K22: =IF(E21="Yes",ROUNDDOWN(AZ8/85,0),ROUNDDOWN(AZ8/98,0)) -> 0 | M22: If cell E21 stays empty, downflooding opening not obvious to the crew assumed! | AZ22: No
A23: Crew Area | G23: (through offset load test) | K23: =IF(K21="","",IF(K22<'Worksheet 1'!I17,"Number of persons less than desired crew limit ! ","")) -> 
A24: Areas included and access limitations (if any):
A26: Area | C26: P/S | D26: Incl? | E26: Persons limit | G26: Area | I26: P/S | J26: Incl? | K26: Persons limit | AZ26: list:
A27: Main Cockpit | G27: Cuddy Top | Q27: white cells only to be filled in if any access limitations | AZ27: P
A28: Aft Cockpit | G28: Coachroof Top | AZ28: S
A29: Fwd Cockpit | G29: Wheelhouse Top
A30: Salon | G30: Fly Bridge
A31: Cabins | G31: Swim Platform
A32: Side Decks
A33: Fore Deck
A35: Sketch: Indicate possible seating locations along the length of the side to be tested using numbers, so that these may later
A36: be used to record the positions that people actually occupy. Locations should not be closer than 0.5 m between centers,
A37: and not less than 0.2 m from outboard adge unless on sidedecks less than 0.4 m wide.
P39: drawing replaceable; please insert your own drawing
A52: 1) Note whether it is asymmetric by adding P (port) or S (starboard) to denote the larger side.

Sheet Worksheet 5b
S1: Comments
B2: ISO 12217-1:2017 CALCULATION WORKSHEET - No. 5b | K2: OFFSET-LOAD TEST | T2: Derived values
T3: Input values
A4: =CONCATENATE(coverSheet!B5," ",coverSheet!B12) -> 
A6: Stability Test - Full Procedure
A7: Boat being tested for: | E7: stability | G7: downflooding | I7: please mark
A8: LH (m) | C8: Min. permitted freeboard margin (m) (see Table 5) | E8: Max. permitted heel angle (°) | G8: Intended crew limit (CL) | H8: Intended design category | J8: Mass Test weights per person (kg) (Cat D only) | L8: Max. Mass of test weights (kg) (= 98 x CL) | S8: Table 5 — Required minimum heeled freeboard margin during offset-load test
A9: ='Worksheet 1'!I9 -> 0.00 | C9: =IF(OR('Worksheet 1'!D7="A",'Worksheet 1'!D7="B"),"n.a.",IF(OR('Worksheet 2'!E40=1,'Worksheet 2'!E40=3),"n.a.",IF('Worksheet 1'!D7="C",LOOKUP('Worksheet 2'!E40,'Worksheet 5b'!BH13:BH18,'Worksheet 5b'!BK13:BK18),IF('Worksheet 1'!D7="D",LOOKUP('Worksheet 2'!E40,'Worksheet 5b'!BH13:BH18,'Worksheet 5b'!BL13:BL18))))) -> FALSE | E9: =IF(AND('Worksheet 1'!D7="D",'Worksheet 2'!E40<>2),"n.a.",11.5+(24-'Worksheet 1'!I9)^3/520) -> 38.08 | G9: ='Worksheet 1'!I17 -> 0 | H9: =IF('Worksheet 1'!D7="","",'Worksheet 1'!D7) ->  | L9: =98*'Worksheet 1'!I17 -> 0
A10: Does boat have a list? | G10: If "YES" to which side? | S10: Dimensions in metres | BA10: list: | BB10: list: | BD10: list: | BH10: Table 5 - required minimum heeled freeboard margin during offset load test
A11: Is crew area asymetric? | G11: If "YES" to which side? | S11: Design category | T11: A | U11: B | V11: C | W11: D | BA11: Yes | BB11: Port (P) | BD11: to Port | BI11: design category
A12: Is downflooding asymetric? | G12: If "YES" to which side? | S12: Option 1 or 3 in Table 2 | T12: not applicable | U12: not applicable | V12: not applicable | W12: not applicable | BA12: No | BB12: Starboard (S) | BD12: to Starboard | BH12: used option from table 2 | BI12: A | BJ12: B | BK12: C | BL12: D | BN12: all dimensions in [m]
A13: Boat tested: | S13: Option 2 or 4 in Table 2 | T13: not applicable | U13: not applicable | V13: 0,014 LH, but not less than 0,1 m | W13: 0.01 | BD13: both sides | BH13: 1 | BI13: n.a. | BJ13: n.a. | BK13: n.a. | BL13: n.a. | BM13: fully enclosed
S14: Option 5 or 6 in Table 2 | T14: not applicable | U14: not applicable | BH14: 2 | BI14: n.a. | BJ14: n.a. | BK14: =MAX(0.014*'Worksheet 1'!I9,0.1) -> 0.100 | BL14: 0.01 | BM14: fully enclosed
A15: Test Data: | BH15: 3 | BI15: n.a. | BJ15: n.a. | BK15: n.a. | BL15: n.a. | BM15: open; flotation
BH16: 4 | BI16: n.a. | BJ16: n.a. | BK16: =MAX('Worksheet 1'!I9*0.014,0.1) -> 0.100 | BL16: 0.01 | BM16: open; flotation
A17: Mass ident. | B17: Location | F17: Mass (kg) | G17: Total mass (kg) | H17: Lever (m) | I17: Moment (kg-m) | K17: Heel angle (°) P/S | L17: min. freeb'd (m) | BH17: 5 | BI17: n.a. | BJ17: n.a. | BK17: =0.11*'Worksheet 1'!I9^0.5 -> 0.000 | BL17: =0.07*'Worksheet 1'!I9^0.5 -> 0.000 | BM17: partially protected
B18: area | D18: fore & aft | L18: fwd | M18: aft | BH18: 6 | BI18: n.a. | BJ18: n.a. | BK18: =0.11*'Worksheet 1'!I9^0.5 -> 0.000 | BL18: =0.07*'Worksheet 1'!I9^0.5 -> 0.000 | BM18: open
A19: 1 | G19: =F19 -> 0 | I19: =F19*H19 -> 0.00 | BA19: list:
A20: 2 | G20: =SUM($F$19:F20) -> 0 | I20: =F20*H20 -> 0.00 | BA20: main cockpit
A21: 3 | G21: =SUM($F$19:F21) -> 0 | I21: 0.00 | BA21: aft cockpit
A22: 4 | G22: =SUM($F$19:F22) -> 0 | I22: 0.00 | BA22: forward cockpit
A23: 5 | G23: =SUM($F$19:F23) -> 0 | I23: 0.00 | BA23: saloon
A24: 6 | G24: =SUM($F$19:F24) -> 0 | I24: 0.00 | BA24: cabins
A25: 7 | G25: =SUM($F$19:F25) -> 0 | I25: 0.00 | BA25: side decks
A26: 8 | G26: =SUM($F$19:F26) -> 0 | I26: 0.00 | BA26: fore decks
A27: 9 | G27: =SUM($F$19:F27) -> 0 | I27: 0.00 | BA27: cuddy top
A28: 10 | G28: =SUM($F$19:F28) -> 0 | I28: 0.00 | BA28: coachroof top
A29: 11 | G29: =SUM($F$19:F29) -> 0 | I29: 0.00 | BA29: wheelhouse top
A30: 12 | G30: =SUM($F$19:F30) -> 0 | I30: 0.00 | BA30: fly bridge
A31: 13 | G31: =SUM($F$19:F31) -> 0 | I31: 0.00 | BA31: swim platform
A32: 14 | G32: =SUM($F$19:F32) -> 0 | I32: 0.00 | BA32: --
A33: 15 | G33: =SUM($F$19:F33) -> 0 | I33: 0.00
A34: 16 | G34: =SUM($F$19:F34) -> 0 | I34: 0.00
A35: 17 | G35: =SUM($F$19:F35) -> 0 | I35: 0.00
A36: 18 | G36: =SUM($F$19:F36) -> 0 | I36: 0.00
A37: 19 | G37: =SUM($F$19:F37) -> 0 | I37: 0.00
A38: 20 | G38: =SUM($F$19:F38) -> 0 | I38: 0.00
I39: Σ | K39: max. angle | L39: min freeboard | S39: =IF(SUM(K19:K38)=0,0,"X") -> 0
A40: total: | I40: =SUM(I19:J38) -> 0.00 | K40: =IF(E9="n.a.","n.a.",IF(S39=0,0,MAX(K19:K38))) -> 0.00 | L40: =MIN(L19:L38) -> 0 | M40: =MIN(M19:M38) -> 0.00 | S40: when downflooding opening is obvious to the crew, average test weight per person/weight set must be 85kg, otherwise 98kg!
A41: Max. mass of people allowed per above: | F41: =SUM(F19:F38) -> 0 | G41: hence CL = | J41: at | L41: kg / person
A42: Design category given: | D42: =IF(AND(K40<E9,C9="n.a."),'Worksheet 1'!D7,IF(AND(K40<E9,MIN(L40:M40)>C9),'Worksheet 1'!D7,IF(AND(E9="n.a.",MIN(L40:M40)>C9),'Worksheet 1'!D7,"Fail"))) -> Fail | S42: B.3.1.7
A43: Safety Signs Required: | E43: Fig B1: | G43: Fig B2: | I43: Fig B3: | S43: If the manufacturer chooses to assess the stability by excluding some areas from the “crew area” or limiting the number of people on any given level:
S45: - | T45: such areas shall be listed in the owner’s manual, and | BD45: =MIN(BC46,BD46,BE46,BF46) -> 0
S46: - | T46: such areas shall be physically marked at all clearly defined points of access with “no access” or “limited access” signs as illustrated in Figures B.1 and B.2, or | BC46: =IF(L40=0,"",L40) ->  | BD46: =IF(M40=0,"",M40) ->  | BE46: =IF('Worksheet 5c'!E20="","",'Worksheet 5c'!E20) ->  | BF46: =IF('Worksheet 5c'!F20="","",'Worksheet 5c'!F20) -> 
S47: - | T47: a diagram shall be placed at each helm position identifying such areas and their access limitations – see Figure B.3, and in addition “no access” or “limited access” signs as illustrated in Figures B.1 and B.2 shall be placed at those points of access not visible from all alternative helm positions.
S49: fig B1: | V49: fig B2:
R64: 1 | S64: sign P004 “No thoroughfare” from ISO 7010 | U64: 1 | V64: sign W001 “General warning” from ISO 7010
R65: 2 | S65: supplementary text to read “No access” | U65: 2 | V65: supplementary text to read “Max N persons on (location)” where N is the relevant number and (location) is expressed for example as “flybridge” or “coachroof”
S68: fig B3:
R83: 1 | S83: text stating maximum total number of persons
R84: 2 | S84: text stating any access limitations such as “Do not sit or stand”
R85: 3 | S85: text stating any access limitations such as “Max persons on deck =2”
R86: 4 | S86: text stating any access limitations such as “No restriction”
R87: 5 | S87: sign W001 “General warning” from ISO 7010

Sheet Worksheet 5c
M1: Comments
A2: ISO 12217-1:2017 CALCULATION WORKSHEET No. 5c Simplified procedure for OFFSET LOAD TEST | N2: Derived values
N3: Input values
A4: =CONCATENATE(coverSheet!B5," ",coverSheet!B12) -> 
BA5: list:
A6: This method may only be applied by calculation; requirements must be fulfilled for both conditions LC1 and LC2 | BA6: Yes
BA7: No
A8: Preparation (curves of moments in Nm)
A9: Question | E9: Answer | G9: ref.
A10: Mass and the centre-of-gravity of the boat calculated for conditions LC1 and LC2? | G10: B.3.2.2
A11: Curves of righting moments calculated according to annex E? | G11: B.3.2.3
A12: Crew heeling moment curve calculated with 961 CL (BC/2 - 0,2) cos f or where the crew area includes side decks less than 0,4m wide with 480 CL BC cos f ? | G12: B.3.2.4 | M12: Please use worksheets 5d and 5e for calculation of ΦC
A14: Test data:
A15: item | B15: symbol | C15: unit | E15: LC1 | F15: LC2 | G15: ref.
A16: Maximum transverse distance between the outboard extremities of any part of the crew area | B16: BC | C16: m | G16: B.3.2.4 & B.3.1.7
A17: Heel angle at the point of intersection between crew heeling moment curve and the curve of righting moment | B17: fO | C17: degrees | E17: =IF('Worksheet 5d'!B66="",0,'Worksheet 5d'!B66) -> 0.00 | F17: =IF('Worksheet 5e'!B66="",0,'Worksheet 5e'!B66) -> 0.00 | G17: B.3.2.5 | M17: Please insert curve data in 5d,e for calculation of heel angle
A18: Maximum permitted heel angle | B18: fO(R) | C18: degrees | E18: ='Worksheet 5b'!$E$9 -> 38.08 | G18: B.3.2.5
A19: Value of downflooding angle | B19: fDA | C19: degrees | G19: B.3.2.5
A20: Value of minimum freeboard margin at fO | B20: hF | C20: m
A21: Minimum required freebord margin | B21: hF(R) | C21: m | E21: ='Worksheet 5b'!C9 -> FALSE | G21: 6.2.2 table 4
A22: Max. righting moment up to fDA | C22: Nm | E22: ='Worksheet 5d'!N79 ->  | F22: ='Worksheet 5e'!N79 -> 
A23: Crew heeling moment at fO | C23: Nm | E23: =LOOKUP(E17,'Worksheet 5d'!A12:A62,'Worksheet 5d'!G12:G62) -> FALSE | F23: =LOOKUP(F17,'Worksheet 5e'!A12:A62,'Worksheet 5e'!G12:G62) -> FALSE
A25: Requirements:
A26: Question | E26: Answer | G26: ref.
A27: Is fO < fO(R) | E27: =IF(OR(E17=0,F17=0),"Fail",IF(MAX(E17:F17)<E18,"Yes","Fail")) -> Fail | G27: B.3.2.5
A28: Is hF > hF(R) | E28: =IF(E21="n.a.","n.a.",IF(OR(E20="",F20=""),"Fail",IF(MIN(E20:F20)>E21,"Yes","Fail"))) -> Fail | G28: B.3.2.5
A29: Is the max. righting moment up to fDA > crew heeling moment at fO? | E29: =IF(E22>E23,"Yes","Fail") ->  | F29: =IF(F22>F23,"Yes","Fail") ->  | G29: B.3.2.5
BA30: List:
A31: Offset load test passed, if all questions above are answered with 'yes' (or n.a.) | D31: Pass/Fail | E31: =IF(OR('Worksheet 1'!D7="A",'Worksheet 1'!D7="B"),IF(AND('Worksheet 5c'!E27="Yes",'Worksheet 5c'!E29="Yes",'Worksheet 5c'!F29="Yes"),"Pass","Fail"),IF(AND('Worksheet 5c'!E27="Yes",'Worksheet 5c'!E29="Yes",'Worksheet 5c'!F29="Yes",'Worksheet 5c'!E28="Yes"),"Pass","Fail")) ->  | G31: B.3.2.5 | BA31: Pass
BA32: Fail

Sheet Worksheet 5d
N1: Comments
B2: ISO 12217-1:2017 CALCULATION WORKSHEET No. 5d curve of righting moment LC1 | O2: Derived values
O3: Input values | AV3: list:
A4: =CONCATENATE(coverSheet!B5," ",coverSheet!B12) -> 
AV5: crew heeling moment curve
A6: insert curve of righting moment in 5° steps in one of following units: | H6: OFFSET LOAD TEST | J6: for the calculation of mLC1; are tanks transverse dimensions > 0,35 BH ? Default value 'Yes', please change otherwise | AV6: normal
B7: N m | C7: kg m | D7: m | G7: mLC1 | H7: =IF(J7="Yes",'Worksheet 1'!$I$34+'Worksheet 1'!$I$17*10-('Worksheet 1'!$I$21+'Worksheet 1'!$I$22+'Worksheet 1'!$I$23+'Worksheet 1'!$I$24+'Worksheet 1'!$I$25+'Worksheet 1'!$I$27)*0.5,'Worksheet 1'!$I$34+'Worksheet 1'!$I$17*10) -> 0 | J7: Yes | AV7: side decks < 0,4m
C9: chosen unit | N9: B.3.2.4 Calculate the curve of crew heeling moments equal to 961CL(BC/2 -0,2)cosΦ(N⋅m), where BC is the maximum transverse distance between the outboard extremities of any parts of the crew area as defined in B.3.1.7, and fis the heel angle. Where the crew area includes side decks less than 0,4 m wide, the moment used shall be 480CL BCcosΦ(N⋅m). Ledges less than 0,10 m wide can be excluded from the crew area.
C10: crew heeling moment curve (either normal or if side decks smaller 0,4m)
A11: heel angle [°] | B11: insert righting arm / moment [Nm, kg m, m] | C11: righting moment [Nm] | D11: righting moment [kg m] | E11: righting arm Gz [m] | F11: Diff(B-A/5) | G11: crew heeling moment curve [N m] | I11: heel angle [°] | BB11: Righting Moment [Nm] | BC11: Crew Heeling moment curve [N m] | BD11: check | BG11: calc | BI11: nach-komma | BJ11: Righting Moment [Nm] | BK11: Crew Heeling moment curve [N m]
A12: 0 | C12: =D12*9.806 ->  | D12: =E12*$H$7 ->  | E12: =IF($B$9="N m",B12/9.806/$H$7,IF($B$9="kg m",B12/$H$7,IF($B$9="m",B12,"error"))) -> error | F12: =(E17-E12)/5 ->  | G12: =IF($B$10="normal",961*'Worksheet 1'!$I$17*('Worksheet 5c'!$E$16/2-0.2)*COS(RADIANS(A12)),IF($B$10="side decks < 0,4m",480*'Worksheet 1'!$I$17*'Worksheet 5c'!$E$16*COS(RADIANS(A12)))) -> FALSE | I12: 0 | N12: Please insert BC in worksheet 5c for calculation of crew heeling moment | AV12: Yes | BA12: 0 | BB12: =C12 ->  | BC12: =G12 -> FALSE | BD12: =IF(AND(BB11<BC11,BB12>BC12),1,"") ->  | BG12: Vorkomma | BI12: =BG13 ->  | BJ12: =BG19 ->  | BK12: =IF($B$10="normal",961*'Worksheet 1'!$I$17*('Worksheet 5c'!$E$16/2-0.2)*COS(RADIANS(BI12)),IF($B$10="side decks < 0,4m",480*'Worksheet 1'!$I$17*'Worksheet 5c'!$E$16*COS(RADIANS(BI12)))) -> FALSE | BL12: =IF(AND(BJ11<BK11,BJ12>BK12),1,"") -> 
A13: 1 | D13: =E13*$H$7 ->  | E13: =E12+F12 ->  | G13: =IF($B$10="normal",961*'Worksheet 1'!$I$17*('Worksheet 5c'!$E$16/2-0.2)*COS(RADIANS(A13)),IF($B$10="side decks < 0,4m",480*'Worksheet 1'!$I$17*'Worksheet 5c'!$E$16*COS(RADIANS(A13)))) -> FALSE | I13: 1 | BA13: 1 | BB13: =C13 ->  | BC13: =G13 -> FALSE | BD13: =IF(AND(BB12<BC12,BB13>BC13),1,"") ->  | BG13: =LOOKUP(1,BD12:BD62,BA12:BA62-1) ->  | BI13: =BI12+0.01 ->  | BJ13: =BJ12+$BG$23 ->  | BK13: =IF($B$10="normal",961*'Worksheet 1'!$I$17*('Worksheet 5c'!$E$16/2-0.2)*COS(RADIANS(BI13)),IF($B$10="side decks < 0,4m",480*'Worksheet 1'!$I$17*'Worksheet 5c'!$E$16*COS(RADIANS(BI13)))) -> FALSE | BL13: =IF(AND(BJ12<BK12,BJ13>BK13),1,"") -> 
A14: 2 | E14: =E13+F12 ->  | G14: =IF($B$10="normal",961*'Worksheet 1'!$I$17*('Worksheet 5c'!$E$16/2-0.2)*COS(RADIANS(A14)),IF($B$10="side decks < 0,4m",480*'Worksheet 1'!$I$17*'Worksheet 5c'!$E$16*COS(RADIANS(A14)))) -> FALSE | I14: 2 | BA14: 2 | BC14: FALSE | BG14: Genau | BI14: =BI13+0.01 ->  | BJ14: =BJ13+$BG$23 ->  | BK14: =IF($B$10="normal",961*'Worksheet 1'!$I$17*('Worksheet 5c'!$E$16/2-0.2)*COS(RADIANS(BI14)),IF($B$10="side decks < 0,4m",480*'Worksheet 1'!$I$17*'Worksheet 5c'!$E$16*COS(RADIANS(BI14)))) -> FALSE
A15: 3 | E15: =E14+F12 ->  | G15: =IF($B$10="normal",961*'Worksheet 1'!$I$17*('Worksheet 5c'!$E$16/2-0.2)*COS(RADIANS(A15)),IF($B$10="side decks < 0,4m",480*'Worksheet 1'!$I$17*'Worksheet 5c'!$E$16*COS(RADIANS(A15)))) -> FALSE | I15: 3 | BA15: 3 | BC15: FALSE | BG15: =IF(B12="","",LOOKUP(1,BL12:BL112,BI12:BI112)) ->  | BK15: =IF($B$10="normal",961*'Worksheet 1'!$I$17*('Worksheet 5c'!$E$16/2-0.2)*COS(RADIANS(BI15)),IF($B$10="side decks < 0,4m",480*'Worksheet 1'!$I$17*'Worksheet 5c'!$E$16*COS(RADIANS(BI15)))) -> FALSE
A16: 4 | E16: =E15+F12 ->  | G16: =IF($B$10="normal",961*'Worksheet 1'!$I$17*('Worksheet 5c'!$E$16/2-0.2)*COS(RADIANS(A16)),IF($B$10="side decks < 0,4m",480*'Worksheet 1'!$I$17*'Worksheet 5c'!$E$16*COS(RADIANS(A16)))) -> FALSE | I16: 4 | BA16: 4 | BC16: FALSE | BK16: =IF($B$10="normal",961*'Worksheet 1'!$I$17*('Worksheet 5c'!$E$16/2-0.2)*COS(RADIANS(BI16)),IF($B$10="side decks < 0,4m",480*'Worksheet 1'!$I$17*'Worksheet 5c'!$E$16*COS(RADIANS(BI16)))) -> FALSE
A17: 5 | E17: =IF($B$9="N m",B17/9.806/$H$7,IF($B$9="kg m",B17/$H$7,IF($B$9="m",B17,"error"))) -> error | F17: =(E22-E17)/5 ->  | G17: =IF($B$10="normal",961*'Worksheet 1'!$I$17*('Worksheet 5c'!$E$16/2-0.2)*COS(RADIANS(A17)),IF($B$10="side decks < 0,4m",480*'Worksheet 1'!$I$17*'Worksheet 5c'!$E$16*COS(RADIANS(A17)))) -> FALSE | I17: 5 | AV17: No | BA17: 5 | BC17: FALSE | BK17: =IF($B$10="normal",961*'Worksheet 1'!$I$17*('Worksheet 5c'!$E$16/2-0.2)*COS(RADIANS(BI17)),IF($B$10="side decks < 0,4m",480*'Worksheet 1'!$I$17*'Worksheet 5c'!$E$16*COS(RADIANS(BI17)))) -> FALSE
A18: 6 | E18: =E17+F17 ->  | G18: =IF($B$10="normal",961*'Worksheet 1'!$I$17*('Worksheet 5c'!$E$16/2-0.2)*COS(RADIANS(A18)),IF($B$10="side decks < 0,4m",480*'Worksheet 1'!$I$17*'Worksheet 5c'!$E$16*COS(RADIANS(A18)))) -> FALSE | I18: 6 | BA18: 6 | BC18: FALSE | BG18: Nachbestimmung | BK18: =IF($B$10="normal",961*'Worksheet 1'!$I$17*('Worksheet 5c'!$E$16/2-0.2)*COS(RADIANS(BI18)),IF($B$10="side decks < 0,4m",480*'Worksheet 1'!$I$17*'Worksheet 5c'!$E$16*COS(RADIANS(BI18)))) -> FALSE
A19: 7 | E19: =E18+F17 ->  | G19: =IF($B$10="normal",961*'Worksheet 1'!$I$17*('Worksheet 5c'!$E$16/2-0.2)*COS(RADIANS(A19)),IF($B$10="side decks < 0,4m",480*'Worksheet 1'!$I$17*'Worksheet 5c'!$E$16*COS(RADIANS(A19)))) -> FALSE | I19: 7 | BA19: 7 | BC19: FALSE | BG19: =LOOKUP(BG13,BA12:BA62,BB12:BB62) ->  | BK19: =IF($B$10="normal",961*'Worksheet 1'!$I$17*('Worksheet 5c'!$E$16/2-0.2)*COS(RADIANS(BI19)),IF($B$10="side decks < 0,4m",480*'Worksheet 1'!$I$17*'Worksheet 5c'!$E$16*COS(RADIANS(BI19)))) -> FALSE
A20: 8 | E20: =E19+F17 ->  | G20: =IF($B$10="normal",961*'Worksheet 1'!$I$17*('Worksheet 5c'!$E$16/2-0.2)*COS(RADIANS(A20)),IF($B$10="side decks < 0,4m",480*'Worksheet 1'!$I$17*'Worksheet 5c'!$E$16*COS(RADIANS(A20)))) -> FALSE | I20: 8 | BA20: 8 | BC20: FALSE | BG20: =LOOKUP(BG13+1,BA12:BA62,BB12:BB62) ->  | BK20: =IF($B$10="normal",961*'Worksheet 1'!$I$17*('Worksheet 5c'!$E$16/2-0.2)*COS(RADIANS(BI20)),IF($B$10="side decks < 0,4m",480*'Worksheet 1'!$I$17*'Worksheet 5c'!$E$16*COS(RADIANS(BI20)))) -> FALSE
A21: 9 | E21: =E20+F17 ->  | G21: =IF($B$10="normal",961*'Worksheet 1'!$I$17*('Worksheet 5c'!$E$16/2-0.2)*COS(RADIANS(A21)),IF($B$10="side decks < 0,4m",480*'Worksheet 1'!$I$17*'Worksheet 5c'!$E$16*COS(RADIANS(A21)))) -> FALSE | I21: 9 | BA21: 9 | BC21: FALSE | BK21: =IF($B$10="normal",961*'Worksheet 1'!$I$17*('Worksheet 5c'!$E$16/2-0.2)*COS(RADIANS(BI21)),IF($B$10="side decks < 0,4m",480*'Worksheet 1'!$I$17*'Worksheet 5c'!$E$16*COS(RADIANS(BI21)))) -> FALSE
A22: 10 | E22: =IF($B$9="N m",B22/9.806/$H$7,IF($B$9="kg m",B22/$H$7,IF($B$9="m",B22,"error"))) -> error | F22: =(E27-E22)/5 ->  | G22: =IF($B$10="normal",961*'Worksheet 1'!$I$17*('Worksheet 5c'!$E$16/2-0.2)*COS(RADIANS(A22)),IF($B$10="side decks < 0,4m",480*'Worksheet 1'!$I$17*'Worksheet 5c'!$E$16*COS(RADIANS(A22)))) -> FALSE | I22: 10 | N22: Please insert unit of righting moment curve in B9! | BA22: 10 | BC22: FALSE | BG22: =BG20-BG19 ->  | BK22: =IF($B$10="normal",961*'Worksheet 1'!$I$17*('Worksheet 5c'!$E$16/2-0.2)*COS(RADIANS(BI22)),IF($B$10="side decks < 0,4m",480*'Worksheet 1'!$I$17*'Worksheet 5c'!$E$16*COS(RADIANS(BI22)))) -> FALSE
A23: 11 | E23: =E22+F22 ->  | G23: =IF($B$10="normal",961*'Worksheet 1'!$I$17*('Worksheet 5c'!$E$16/2-0.2)*COS(RADIANS(A23)),IF($B$10="side decks < 0,4m",480*'Worksheet 1'!$I$17*'Worksheet 5c'!$E$16*COS(RADIANS(A23)))) -> FALSE | I23: 11 | BA23: 11 | BC23: FALSE | BG23: =BG22/100 ->  | BK23: =IF($B$10="normal",961*'Worksheet 1'!$I$17*('Worksheet 5c'!$E$16/2-0.2)*COS(RADIANS(BI23)),IF($B$10="side decks < 0,4m",480*'Worksheet 1'!$I$17*'Worksheet 5c'!$E$16*COS(RADIANS(BI23)))) -> FALSE
A24: 12 | E24: =E23+F22 ->  | G24: =IF($B$10="normal",961*'Worksheet 1'!$I$17*('Worksheet 5c'!$E$16/2-0.2)*COS(RADIANS(A24)),IF($B$10="side decks < 0,4m",480*'Worksheet 1'!$I$17*'Worksheet 5c'!$E$16*COS(RADIANS(A24)))) -> FALSE | I24: 12 | BA24: 12 | BC24: FALSE | BK24: =IF($B$10="normal",961*'Worksheet 1'!$I$17*('Worksheet 5c'!$E$16/2-0.2)*COS(RADIANS(BI24)),IF($B$10="side decks < 0,4m",480*'Worksheet 1'!$I$17*'Worksheet 5c'!$E$16*COS(RADIANS(BI24)))) -> FALSE
A25: 13 | E25: =E24+F22 ->  | G25: =IF($B$10="normal",961*'Worksheet 1'!$I$17*('Worksheet 5c'!$E$16/2-0.2)*COS(RADIANS(A25)),IF($B$10="side decks < 0,4m",480*'Worksheet 1'!$I$17*'Worksheet 5c'!$E$16*COS(RADIANS(A25)))) -> FALSE | I25: 13 | BA25: 13 | BC25: FALSE | BK25: =IF($B$10="normal",961*'Worksheet 1'!$I$17*('Worksheet 5c'!$E$16/2-0.2)*COS(RADIANS(BI25)),IF($B$10="side decks < 0,4m",480*'Worksheet 1'!$I$17*'Worksheet 5c'!$E$16*COS(RADIANS(BI25)))) -> FALSE
A26: 14 | E26: =E25+F22 ->  | G26: =IF($B$10="normal",961*'Worksheet 1'!$I$17*('Worksheet 5c'!$E$16/2-0.2)*COS(RADIANS(A26)),IF($B$10="side decks < 0,4m",480*'Worksheet 1'!$I$17*'Worksheet 5c'!$E$16*COS(RADIANS(A26)))) -> FALSE | I26: 14 | BA26: 14 | BC26: FALSE | BK26: =IF($B$10="normal",961*'Worksheet 1'!$I$17*('Worksheet 5c'!$E$16/2-0.2)*COS(RADIANS(BI26)),IF($B$10="side decks < 0,4m",480*'Worksheet 1'!$I$17*'Worksheet 5c'!$E$16*COS(RADIANS(BI26)))) -> FALSE
A27: 15 | E27: =IF($B$9="N m",B27/9.806/$H$7,IF($B$9="kg m",B27/$H$7,IF($B$9="m",B27,"error"))) -> error | F27: =(E32-E27)/5 ->  | G27: =IF($B$10="normal",961*'Worksheet 1'!$I$17*('Worksheet 5c'!$E$16/2-0.2)*COS(RADIANS(A27)),IF($B$10="side decks < 0,4m",480*'Worksheet 1'!$I$17*'Worksheet 5c'!$E$16*COS(RADIANS(A27)))) -> FALSE | I27: 15 | BA27: 15 | BC27: FALSE | BK27: =IF($B$10="normal",961*'Worksheet 1'!$I$17*('Worksheet 5c'!$E$16/2-0.2)*COS(RADIANS(BI27)),IF($B$10="side decks < 0,4m",480*'Worksheet 1'!$I$17*'Worksheet 5c'!$E$16*COS(RADIANS(BI27)))) -> FALSE
A28: 16 | E28: =E27+F27 ->  | G28: =IF($B$10="normal",961*'Worksheet 1'!$I$17*('Worksheet 5c'!$E$16/2-0.2)*COS(RADIANS(A28)),IF($B$10="side decks < 0,4m",480*'Worksheet 1'!$I$17*'Worksheet 5c'!$E$16*COS(RADIANS(A28)))) -> FALSE | I28: 16 | BA28: 16 | BC28: FALSE | BK28: =IF($B$10="normal",961*'Worksheet 1'!$I$17*('Worksheet 5c'!$E$16/2-0.2)*COS(RADIANS(BI28)),IF($B$10="side decks < 0,4m",480*'Worksheet 1'!$I$17*'Worksheet 5c'!$E$16*COS(RADIANS(BI28)))) -> FALSE
A29: 17 | E29: =E28+F27 ->  | G29: =IF($B$10="normal",961*'Worksheet 1'!$I$17*('Worksheet 5c'!$E$16/2-0.2)*COS(RADIANS(A29)),IF($B$10="side decks < 0,4m",480*'Worksheet 1'!$I$17*'Worksheet 5c'!$E$16*COS(RADIANS(A29)))) -> FALSE | I29: 17 | BA29: 17 | BC29: FALSE | BK29: =IF($B$10="normal",961*'Worksheet 1'!$I$17*('Worksheet 5c'!$E$16/2-0.2)*COS(RADIANS(BI29)),IF($B$10="side decks < 0,4m",480*'Worksheet 1'!$I$17*'Worksheet 5c'!$E$16*COS(RADIANS(BI29)))) -> FALSE
A30: 18 | E30: =E29+F27 ->  | G30: =IF($B$10="normal",961*'Worksheet 1'!$I$17*('Worksheet 5c'!$E$16/2-0.2)*COS(RADIANS(A30)),IF($B$10="side decks < 0,4m",480*'Worksheet 1'!$I$17*'Worksheet 5c'!$E$16*COS(RADIANS(A30)))) -> FALSE | I30: 18 | BA30: 18 | BC30: FALSE | BK30: =IF($B$10="normal",961*'Worksheet 1'!$I$17*('Worksheet 5c'!$E$16/2-0.2)*COS(RADIANS(BI30)),IF($B$10="side decks < 0,4m",480*'Worksheet 1'!$I$17*'Worksheet 5c'!$E$16*COS(RADIANS(BI30)))) -> FALSE
A31: 19 | E31: =E30+F27 ->  | G31: =IF($B$10="normal",961*'Worksheet 1'!$I$17*('Worksheet 5c'!$E$16/2-0.2)*COS(RADIANS(A31)),IF($B$10="side decks < 0,4m",480*'Worksheet 1'!$I$17*'Worksheet 5c'!$E$16*COS(RADIANS(A31)))) -> FALSE | I31: 19 | BA31: 19 | BC31: FALSE | BK31: =IF($B$10="normal",961*'Worksheet 1'!$I$17*('Worksheet 5c'!$E$16/2-0.2)*COS(RADIANS(BI31)),IF($B$10="side decks < 0,4m",480*'Worksheet 1'!$I$17*'Worksheet 5c'!$E$16*COS(RADIANS(BI31)))) -> FALSE
A32: 20 | E32: =IF($B$9="N m",B32/9.806/$H$7,IF($B$9="kg m",B32/$H$7,IF($B$9="m",B32,"error"))) -> error | F32: =(E37-E32)/5 ->  | G32: =IF($B$10="normal",961*'Worksheet 1'!$I$17*('Worksheet 5c'!$E$16/2-0.2)*COS(RADIANS(A32)),IF($B$10="side decks < 0,4m",480*'Worksheet 1'!$I$17*'Worksheet 5c'!$E$16*COS(RADIANS(A32)))) -> FALSE | I32: 20 | BA32: 20 | BC32: FALSE | BK32: =IF($B$10="normal",961*'Worksheet 1'!$I$17*('Worksheet 5c'!$E$16/2-0.2)*COS(RADIANS(BI32)),IF($B$10="side decks < 0,4m",480*'Worksheet 1'!$I$17*'Worksheet 5c'!$E$16*COS(RADIANS(BI32)))) -> FALSE
A33: 21 | E33: =E32+F32 ->  | G33: =IF($B$10="normal",961*'Worksheet 1'!$I$17*('Worksheet 5c'!$E$16/2-0.2)*COS(RADIANS(A33)),IF($B$10="side decks < 0,4m",480*'Worksheet 1'!$I$17*'Worksheet 5c'!$E$16*COS(RADIANS(A33)))) -> FALSE | I33: 21 | BA33: 21 | BC33: FALSE | BK33: =IF($B$10="normal",961*'Worksheet 1'!$I$17*('Worksheet 5c'!$E$16/2-0.2)*COS(RADIANS(BI33)),IF($B$10="side decks < 0,4m",480*'Worksheet 1'!$I$17*'Worksheet 5c'!$E$16*COS(RADIANS(BI33)))) -> FALSE
A34: 22 | E34: =E33+F32 ->  | G34: =IF($B$10="normal",961*'Worksheet 1'!$I$17*('Worksheet 5c'!$E$16/2-0.2)*COS(RADIANS(A34)),IF($B$10="side decks < 0,4m",480*'Worksheet 1'!$I$17*'Worksheet 5c'!$E$16*COS(RADIANS(A34)))) -> FALSE | I34: 22 | BA34: 22 | BC34: FALSE | BK34: =IF($B$10="normal",961*'Worksheet 1'!$I$17*('Worksheet 5c'!$E$16/2-0.2)*COS(RADIANS(BI34)),IF($B$10="side decks < 0,4m",480*'Worksheet 1'!$I$17*'Worksheet 5c'!$E$16*COS(RADIANS(BI34)))) -> FALSE
A35: 23 | E35: =E34+F32 ->  | G35: =IF($B$10="normal",961*'Worksheet 1'!$I$17*('Worksheet 5c'!$E$16/2-0.2)*COS(RADIANS(A35)),IF($B$10="side decks < 0,4m",480*'Worksheet 1'!$I$17*'Worksheet 5c'!$E$16*COS(RADIANS(A35)))) -> FALSE | I35: 23 | BA35: 23 | BC35: FALSE | BK35: =IF($B$10="normal",961*'Worksheet 1'!$I$17*('Worksheet 5c'!$E$16/2-0.2)*COS(RADIANS(BI35)),IF($B$10="side decks < 0,4m",480*'Worksheet 1'!$I$17*'Worksheet 5c'!$E$16*COS(RADIANS(BI35)))) -> FALSE
A36: 24 | E36: =E35+F32 ->  | G36: =IF($B$10="normal",961*'Worksheet 1'!$I$17*('Worksheet 5c'!$E$16/2-0.2)*COS(RADIANS(A36)),IF($B$10="side decks < 0,4m",480*'Worksheet 1'!$I$17*'Worksheet 5c'!$E$16*COS(RADIANS(A36)))) -> FALSE | I36: 24 | BA36: 24 | BC36: FALSE | BK36: =IF($B$10="normal",961*'Worksheet 1'!$I$17*('Worksheet 5c'!$E$16/2-0.2)*COS(RADIANS(BI36)),IF($B$10="side decks < 0,4m",480*'Worksheet 1'!$I$17*'Worksheet 5c'!$E$16*COS(RADIANS(BI36)))) -> FALSE
A37: 25 | E37: =IF($B$9="N m",B37/9.806/$H$7,IF($B$9="kg m",B37/$H$7,IF($B$9="m",B37,"error"))) -> error | F37: =(E42-E37)/5 ->  | G37: =IF($B$10="normal",961*'Worksheet 1'!$I$17*('Worksheet 5c'!$E$16/2-0.2)*COS(RADIANS(A37)),IF($B$10="side decks < 0,4m",480*'Worksheet 1'!$I$17*'Worksheet 5c'!$E$16*COS(RADIANS(A37)))) -> FALSE | I37: 25 | BA37: 25 | BC37: FALSE | BK37: =IF($B$10="normal",961*'Worksheet 1'!$I$17*('Worksheet 5c'!$E$16/2-0.2)*COS(RADIANS(BI37)),IF($B$10="side decks < 0,4m",480*'Worksheet 1'!$I$17*'Worksheet 5c'!$E$16*COS(RADIANS(BI37)))) -> FALSE
A38: 26 | E38: =E37+F37 ->  | G38: =IF($B$10="normal",961*'Worksheet 1'!$I$17*('Worksheet 5c'!$E$16/2-0.2)*COS(RADIANS(A38)),IF($B$10="side decks < 0,4m",480*'Worksheet 1'!$I$17*'Worksheet 5c'!$E$16*COS(RADIANS(A38)))) -> FALSE | I38: 26 | BA38: 26 | BC38: FALSE | BK38: =IF($B$10="normal",961*'Worksheet 1'!$I$17*('Worksheet 5c'!$E$16/2-0.2)*COS(RADIANS(BI38)),IF($B$10="side decks < 0,4m",480*'Worksheet 1'!$I$17*'Worksheet 5c'!$E$16*COS(RADIANS(BI38)))) -> FALSE
A39: 27 | E39: =E38+F37 ->  | G39: =IF($B$10="normal",961*'Worksheet 1'!$I$17*('Worksheet 5c'!$E$16/2-0.2)*COS(RADIANS(A39)),IF($B$10="side decks < 0,4m",480*'Worksheet 1'!$I$17*'Worksheet 5c'!$E$16*COS(RADIANS(A39)))) -> FALSE | I39: 27 | BA39: 27 | BC39: FALSE | BK39: =IF($B$10="normal",961*'Worksheet 1'!$I$17*('Worksheet 5c'!$E$16/2-0.2)*COS(RADIANS(BI39)),IF($B$10="side decks < 0,4m",480*'Worksheet 1'!$I$17*'Worksheet 5c'!$E$16*COS(RADIANS(BI39)))) -> FALSE
A40: 28 | E40: =E39+F37 ->  | G40: =IF($B$10="normal",961*'Worksheet 1'!$I$17*('Worksheet 5c'!$E$16/2-0.2)*COS(RADIANS(A40)),IF($B$10="side decks < 0,4m",480*'Worksheet 1'!$I$17*'Worksheet 5c'!$E$16*COS(RADIANS(A40)))) -> FALSE | I40: 28 | BA40: 28 | BC40: FALSE | BK40: =IF($B$10="normal",961*'Worksheet 1'!$I$17*('Worksheet 5c'!$E$16/2-0.2)*COS(RADIANS(BI40)),IF($B$10="side decks < 0,4m",480*'Worksheet 1'!$I$17*'Worksheet 5c'!$E$16*COS(RADIANS(BI40)))) -> FALSE
A41: 29 | E41: =E40+F37 ->  | G41: =IF($B$10="normal",961*'Worksheet 1'!$I$17*('Worksheet 5c'!$E$16/2-0.2)*COS(RADIANS(A41)),IF($B$10="side decks < 0,4m",480*'Worksheet 1'!$I$17*'Worksheet 5c'!$E$16*COS(RADIANS(A41)))) -> FALSE | I41: 29 | BA41: 29 | BC41: FALSE | BK41: =IF($B$10="normal",961*'Worksheet 1'!$I$17*('Worksheet 5c'!$E$16/2-0.2)*COS(RADIANS(BI41)),IF($B$10="side decks < 0,4m",480*'Worksheet 1'!$I$17*'Worksheet 5c'!$E$16*COS(RADIANS(BI41)))) -> FALSE
A42: 30 | E42: =IF($B$9="N m",B42/9.806/$H$7,IF($B$9="kg m",B42/$H$7,IF($B$9="m",B42,"error"))) -> error | F42: =(E47-E42)/5 ->  | G42: =IF($B$10="normal",961*'Worksheet 1'!$I$17*('Worksheet 5c'!$E$16/2-0.2)*COS(RADIANS(A42)),IF($B$10="side decks < 0,4m",480*'Worksheet 1'!$I$17*'Worksheet 5c'!$E$16*COS(RADIANS(A42)))) -> FALSE | I42: 30 | BA42: 30 | BC42: FALSE | BK42: =IF($B$10="normal",961*'Worksheet 1'!$I$17*('Worksheet 5c'!$E$16/2-0.2)*COS(RADIANS(BI42)),IF($B$10="side decks < 0,4m",480*'Worksheet 1'!$I$17*'Worksheet 5c'!$E$16*COS(RADIANS(BI42)))) -> FALSE
A43: 31 | E43: =E42+F42 ->  | G43: =IF($B$10="normal",961*'Worksheet 1'!$I$17*('Worksheet 5c'!$E$16/2-0.2)*COS(RADIANS(A43)),IF($B$10="side decks < 0,4m",480*'Worksheet 1'!$I$17*'Worksheet 5c'!$E$16*COS(RADIANS(A43)))) -> FALSE | I43: 31 | BA43: 31 | BC43: FALSE | BK43: =IF($B$10="normal",961*'Worksheet 1'!$I$17*('Worksheet 5c'!$E$16/2-0.2)*COS(RADIANS(BI43)),IF($B$10="side decks < 0,4m",480*'Worksheet 1'!$I$17*'Worksheet 5c'!$E$16*COS(RADIANS(BI43)))) -> FALSE
A44: 32 | E44: =E43+F42 ->  | G44: =IF($B$10="normal",961*'Worksheet 1'!$I$17*('Worksheet 5c'!$E$16/2-0.2)*COS(RADIANS(A44)),IF($B$10="side decks < 0,4m",480*'Worksheet 1'!$I$17*'Worksheet 5c'!$E$16*COS(RADIANS(A44)))) -> FALSE | I44: 32 | BA44: 32 | BC44: FALSE | BK44: =IF($B$10="normal",961*'Worksheet 1'!$I$17*('Worksheet 5c'!$E$16/2-0.2)*COS(RADIANS(BI44)),IF($B$10="side decks < 0,4m",480*'Worksheet 1'!$I$17*'Worksheet 5c'!$E$16*COS(RADIANS(BI44)))) -> FALSE
A45: 33 | E45: =E44+F42 ->  | G45: =IF($B$10="normal",961*'Worksheet 1'!$I$17*('Worksheet 5c'!$E$16/2-0.2)*COS(RADIANS(A45)),IF($B$10="side decks < 0,4m",480*'Worksheet 1'!$I$17*'Worksheet 5c'!$E$16*COS(RADIANS(A45)))) -> FALSE | I45: 33 | BA45: 33 | BC45: FALSE | BK45: =IF($B$10="normal",961*'Worksheet 1'!$I$17*('Worksheet 5c'!$E$16/2-0.2)*COS(RADIANS(BI45)),IF($B$10="side decks < 0,4m",480*'Worksheet 1'!$I$17*'Worksheet 5c'!$E$16*COS(RADIANS(BI45)))) -> FALSE
A46: 34 | E46: =E45+F42 ->  | G46: =IF($B$10="normal",961*'Worksheet 1'!$I$17*('Worksheet 5c'!$E$16/2-0.2)*COS(RADIANS(A46)),IF($B$10="side decks < 0,4m",480*'Worksheet 1'!$I$17*'Worksheet 5c'!$E$16*COS(RADIANS(A46)))) -> FALSE | I46: 34 | BA46: 34 | BC46: FALSE | BK46: =IF($B$10="normal",961*'Worksheet 1'!$I$17*('Worksheet 5c'!$E$16/2-0.2)*COS(RADIANS(BI46)),IF($B$10="side decks < 0,4m",480*'Worksheet 1'!$I$17*'Worksheet 5c'!$E$16*COS(RADIANS(BI46)))) -> FALSE
A47: 35 | E47: =IF($B$9="N m",B47/9.806/$H$7,IF($B$9="kg m",B47/$H$7,IF($B$9="m",B47,"error"))) -> error | F47: =(E52-E47)/5 ->  | G47: =IF($B$10="normal",961*'Worksheet 1'!$I$17*('Worksheet 5c'!$E$16/2-0.2)*COS(RADIANS(A47)),IF($B$10="side decks < 0,4m",480*'Worksheet 1'!$I$17*'Worksheet 5c'!$E$16*COS(RADIANS(A47)))) -> FALSE | I47: 35 | BA47: 35 | BC47: FALSE | BK47: =IF($B$10="normal",961*'Worksheet 1'!$I$17*('Worksheet 5c'!$E$16/2-0.2)*COS(RADIANS(BI47)),IF($B$10="side decks < 0,4m",480*'Worksheet 1'!$I$17*'Worksheet 5c'!$E$16*COS(RADIANS(BI47)))) -> FALSE
A48: 36 | E48: =E47+F47 ->  | G48: =IF($B$10="normal",961*'Worksheet 1'!$I$17*('Worksheet 5c'!$E$16/2-0.2)*COS(RADIANS(A48)),IF($B$10="side decks < 0,4m",480*'Worksheet 1'!$I$17*'Worksheet 5c'!$E$16*COS(RADIANS(A48)))) -> FALSE | I48: 36 | BA48: 36 | BC48: FALSE | BK48: =IF($B$10="normal",961*'Worksheet 1'!$I$17*('Worksheet 5c'!$E$16/2-0.2)*COS(RADIANS(BI48)),IF($B$10="side decks < 0,4m",480*'Worksheet 1'!$I$17*'Worksheet 5c'!$E$16*COS(RADIANS(BI48)))) -> FALSE
A49: 37 | E49: =E48+F47 ->  | G49: =IF($B$10="normal",961*'Worksheet 1'!$I$17*('Worksheet 5c'!$E$16/2-0.2)*COS(RADIANS(A49)),IF($B$10="side decks < 0,4m",480*'Worksheet 1'!$I$17*'Worksheet 5c'!$E$16*COS(RADIANS(A49)))) -> FALSE | I49: 37 | BA49: 37 | BC49: FALSE | BK49: =IF($B$10="normal",961*'Worksheet 1'!$I$17*('Worksheet 5c'!$E$16/2-0.2)*COS(RADIANS(BI49)),IF($B$10="side decks < 0,4m",480*'Worksheet 1'!$I$17*'Worksheet 5c'!$E$16*COS(RADIANS(BI49)))) -> FALSE
A50: 38 | E50: =E49+F47 ->  | G50: =IF($B$10="normal",961*'Worksheet 1'!$I$17*('Worksheet 5c'!$E$16/2-0.2)*COS(RADIANS(A50)),IF($B$10="side decks < 0,4m",480*'Worksheet 1'!$I$17*'Worksheet 5c'!$E$16*COS(RADIANS(A50)))) -> FALSE | I50: 38 | BA50: 38 | BC50: FALSE | BK50: =IF($B$10="normal",961*'Worksheet 1'!$I$17*('Worksheet 5c'!$E$16/2-0.2)*COS(RADIANS(BI50)),IF($B$10="side decks < 0,4m",480*'Worksheet 1'!$I$17*'Worksheet 5c'!$E$16*COS(RADIANS(BI50)))) -> FALSE
A51: 39 | E51: =E50+F47 ->  | G51: =IF($B$10="normal",961*'Worksheet 1'!$I$17*('Worksheet 5c'!$E$16/2-0.2)*COS(RADIANS(A51)),IF($B$10="side decks < 0,4m",480*'Worksheet 1'!$I$17*'Worksheet 5c'!$E$16*COS(RADIANS(A51)))) -> FALSE | I51: 39 | BA51: 39 | BC51: FALSE | BK51: =IF($B$10="normal",961*'Worksheet 1'!$I$17*('Worksheet 5c'!$E$16/2-0.2)*COS(RADIANS(BI51)),IF($B$10="side decks < 0,4m",480*'Worksheet 1'!$I$17*'Worksheet 5c'!$E$16*COS(RADIANS(BI51)))) -> FALSE
A52: 40 | C52: =D52*9.806 ->  | E52: =IF($B$9="N m",B52/9.806/$H$7,IF($B$9="kg m",B52/$H$7,IF($B$9="m",B52,"error"))) -> error | F52: =(E57-E52)/5 ->  | G52: =IF($B$10="normal",961*'Worksheet 1'!$I$17*('Worksheet 5c'!$E$16/2-0.2)*COS(RADIANS(A52)),IF($B$10="side decks < 0,4m",480*'Worksheet 1'!$I$17*'Worksheet 5c'!$E$16*COS(RADIANS(A52)))) -> FALSE | I52: 40 | BA52: 40 | BC52: FALSE | BK52: =IF($B$10="normal",961*'Worksheet 1'!$I$17*('Worksheet 5c'!$E$16/2-0.2)*COS(RADIANS(BI52)),IF($B$10="side decks < 0,4m",480*'Worksheet 1'!$I$17*'Worksheet 5c'!$E$16*COS(RADIANS(BI52)))) -> FALSE
A53: 41 | E53: =E52+F52 ->  | G53: =IF($B$10="normal",961*'Worksheet 1'!$I$17*('Worksheet 5c'!$E$16/2-0.2)*COS(RADIANS(A53)),IF($B$10="side decks < 0,4m",480*'Worksheet 1'!$I$17*'Worksheet 5c'!$E$16*COS(RADIANS(A53)))) -> FALSE | I53: 41 | BA53: 41 | BC53: FALSE | BK53: =IF($B$10="normal",961*'Worksheet 1'!$I$17*('Worksheet 5c'!$E$16/2-0.2)*COS(RADIANS(BI53)),IF($B$10="side decks < 0,4m",480*'Worksheet 1'!$I$17*'Worksheet 5c'!$E$16*COS(RADIANS(BI53)))) -> FALSE
A54: 42 | E54: =E53+F52 ->  | G54: =IF($B$10="normal",961*'Worksheet 1'!$I$17*('Worksheet 5c'!$E$16/2-0.2)*COS(RADIANS(A54)),IF($B$10="side decks < 0,4m",480*'Worksheet 1'!$I$17*'Worksheet 5c'!$E$16*COS(RADIANS(A54)))) -> FALSE | I54: 42 | BA54: 42 | BC54: FALSE | BK54: =IF($B$10="normal",961*'Worksheet 1'!$I$17*('Worksheet 5c'!$E$16/2-0.2)*COS(RADIANS(BI54)),IF($B$10="side decks < 0,4m",480*'Worksheet 1'!$I$17*'Worksheet 5c'!$E$16*COS(RADIANS(BI54)))) -> FALSE
A55: 43 | E55: =E54+F52 ->  | G55: =IF($B$10="normal",961*'Worksheet 1'!$I$17*('Worksheet 5c'!$E$16/2-0.2)*COS(RADIANS(A55)),IF($B$10="side decks < 0,4m",480*'Worksheet 1'!$I$17*'Worksheet 5c'!$E$16*COS(RADIANS(A55)))) -> FALSE | I55: 43 | BA55: 43 | BC55: FALSE | BK55: =IF($B$10="normal",961*'Worksheet 1'!$I$17*('Worksheet 5c'!$E$16/2-0.2)*COS(RADIANS(BI55)),IF($B$10="side decks < 0,4m",480*'Worksheet 1'!$I$17*'Worksheet 5c'!$E$16*COS(RADIANS(BI55)))) -> FALSE
A56: 44 | E56: =E55+F52 ->  | G56: =IF($B$10="normal",961*'Worksheet 1'!$I$17*('Worksheet 5c'!$E$16/2-0.2)*COS(RADIANS(A56)),IF($B$10="side decks < 0,4m",480*'Worksheet 1'!$I$17*'Worksheet 5c'!$E$16*COS(RADIANS(A56)))) -> FALSE | I56: 44 | BA56: 44 | BC56: FALSE | BK56: =IF($B$10="normal",961*'Worksheet 1'!$I$17*('Worksheet 5c'!$E$16/2-0.2)*COS(RADIANS(BI56)),IF($B$10="side decks < 0,4m",480*'Worksheet 1'!$I$17*'Worksheet 5c'!$E$16*COS(RADIANS(BI56)))) -> FALSE
A57: 45 | E57: =IF($B$9="N m",B57/9.806/$H$7,IF($B$9="kg m",B57/$H$7,IF($B$9="m",B57,"error"))) -> error | F57: =(E62-E57)/5 ->  | G57: =IF($B$10="normal",961*'Worksheet 1'!$I$17*('Worksheet 5c'!$E$16/2-0.2)*COS(RADIANS(A57)),IF($B$10="side decks < 0,4m",480*'Worksheet 1'!$I$17*'Worksheet 5c'!$E$16*COS(RADIANS(A57)))) -> FALSE | I57: 45 | BA57: 45 | BC57: FALSE | BK57: =IF($B$10="normal",961*'Worksheet 1'!$I$17*('Worksheet 5c'!$E$16/2-0.2)*COS(RADIANS(BI57)),IF($B$10="side decks < 0,4m",480*'Worksheet 1'!$I$17*'Worksheet 5c'!$E$16*COS(RADIANS(BI57)))) -> FALSE
A58: 46 | E58: =E57+F57 ->  | G58: =IF($B$10="normal",961*'Worksheet 1'!$I$17*('Worksheet 5c'!$E$16/2-0.2)*COS(RADIANS(A58)),IF($B$10="side decks < 0,4m",480*'Worksheet 1'!$I$17*'Worksheet 5c'!$E$16*COS(RADIANS(A58)))) -> FALSE | I58: 46 | BA58: 46 | BC58: FALSE | BK58: =IF($B$10="normal",961*'Worksheet 1'!$I$17*('Worksheet 5c'!$E$16/2-0.2)*COS(RADIANS(BI58)),IF($B$10="side decks < 0,4m",480*'Worksheet 1'!$I$17*'Worksheet 5c'!$E$16*COS(RADIANS(BI58)))) -> FALSE
A59: 47 | E59: =E58+F57 ->  | G59: =IF($B$10="normal",961*'Worksheet 1'!$I$17*('Worksheet 5c'!$E$16/2-0.2)*COS(RADIANS(A59)),IF($B$10="side decks < 0,4m",480*'Worksheet 1'!$I$17*'Worksheet 5c'!$E$16*COS(RADIANS(A59)))) -> FALSE | I59: 47 | BA59: 47 | BC59: FALSE | BK59: =IF($B$10="normal",961*'Worksheet 1'!$I$17*('Worksheet 5c'!$E$16/2-0.2)*COS(RADIANS(BI59)),IF($B$10="side decks < 0,4m",480*'Worksheet 1'!$I$17*'Worksheet 5c'!$E$16*COS(RADIANS(BI59)))) -> FALSE
A60: 48 | E60: =E59+F57 ->  | G60: =IF($B$10="normal",961*'Worksheet 1'!$I$17*('Worksheet 5c'!$E$16/2-0.2)*COS(RADIANS(A60)),IF($B$10="side decks < 0,4m",480*'Worksheet 1'!$I$17*'Worksheet 5c'!$E$16*COS(RADIANS(A60)))) -> FALSE | I60: 48 | BA60: 48 | BC60: FALSE | BK60: =IF($B$10="normal",961*'Worksheet 1'!$I$17*('Worksheet 5c'!$E$16/2-0.2)*COS(RADIANS(BI60)),IF($B$10="side decks < 0,4m",480*'Worksheet 1'!$I$17*'Worksheet 5c'!$E$16*COS(RADIANS(BI60)))) -> FALSE
A61: 49 | E61: =E60+F57 ->  | G61: =IF($B$10="normal",961*'Worksheet 1'!$I$17*('Worksheet 5c'!$E$16/2-0.2)*COS(RADIANS(A61)),IF($B$10="side decks < 0,4m",480*'Worksheet 1'!$I$17*'Worksheet 5c'!$E$16*COS(RADIANS(A61)))) -> FALSE | I61: 49 | BA61: 49 | BC61: FALSE | BK61: =IF($B$10="normal",961*'Worksheet 1'!$I$17*('Worksheet 5c'!$E$16/2-0.2)*COS(RADIANS(BI61)),IF($B$10="side decks < 0,4m",480*'Worksheet 1'!$I$17*'Worksheet 5c'!$E$16*COS(RADIANS(BI61)))) -> FALSE
A62: 50 | E62: =IF($B$9="N m",B62/9.806/$H$7,IF($B$9="kg m",B62/$H$7,IF($B$9="m",B62,"error"))) -> error | F62: =(#REF!-E62)/5 ->  | G62: =IF($B$10="normal",961*'Worksheet 1'!$I$17*('Worksheet 5c'!$E$16/2-0.2)*COS(RADIANS(A62)),IF($B$10="side decks < 0,4m",480*'Worksheet 1'!$I$17*'Worksheet 5c'!$E$16*COS(RADIANS(A62)))) -> FALSE | I62: 50 | BA62: 50 | BC62: FALSE | BK62: =IF($B$10="normal",961*'Worksheet 1'!$I$17*('Worksheet 5c'!$E$16/2-0.2)*COS(RADIANS(BI62)),IF($B$10="side decks < 0,4m",480*'Worksheet 1'!$I$17*'Worksheet 5c'!$E$16*COS(RADIANS(BI62)))) -> FALSE
BK63: =IF($B$10="normal",961*'Worksheet 1'!$I$17*('Worksheet 5c'!$E$16/2-0.2)*COS(RADIANS(BI63)),IF($B$10="side decks < 0,4m",480*'Worksheet 1'!$I$17*'Worksheet 5c'!$E$16*COS(RADIANS(BI63)))) -> FALSE
B64: point of intersection of righting moment curve and crew heeling moment curve | BK64: =IF($B$10="normal",961*'Worksheet 1'!$I$17*('Worksheet 5c'!$E$16/2-0.2)*COS(RADIANS(BI64)),IF($B$10="side decks < 0,4m",480*'Worksheet 1'!$I$17*'Worksheet 5c'!$E$16*COS(RADIANS(BI64)))) -> FALSE
B65: ΦC | BK65: =IF($B$10="normal",961*'Worksheet 1'!$I$17*('Worksheet 5c'!$E$16/2-0.2)*COS(RADIANS(BI65)),IF($B$10="side decks < 0,4m",480*'Worksheet 1'!$I$17*'Worksheet 5c'!$E$16*COS(RADIANS(BI65)))) -> FALSE
B66: =BG15 ->  | BK66: =IF($B$10="normal",961*'Worksheet 1'!$I$17*('Worksheet 5c'!$E$16/2-0.2)*COS(RADIANS(BI66)),IF($B$10="side decks < 0,4m",480*'Worksheet 1'!$I$17*'Worksheet 5c'!$E$16*COS(RADIANS(BI66)))) -> FALSE
BK67: =IF($B$10="normal",961*'Worksheet 1'!$I$17*('Worksheet 5c'!$E$16/2-0.2)*COS(RADIANS(BI67)),IF($B$10="side decks < 0,4m",480*'Worksheet 1'!$I$17*'Worksheet 5c'!$E$16*COS(RADIANS(BI67)))) -> FALSE
BK68: =IF($B$10="normal",961*'Worksheet 1'!$I$17*('Worksheet 5c'!$E$16/2-0.2)*COS(RADIANS(BI68)),IF($B$10="side decks < 0,4m",480*'Worksheet 1'!$I$17*'Worksheet 5c'!$E$16*COS(RADIANS(BI68)))) -> FALSE
N69: For a clean curve drawing, either insert values up to 50° or delete yellow cells in colum BB | BK69: =IF($B$10="normal",961*'Worksheet 1'!$I$17*('Worksheet 5c'!$E$16/2-0.2)*COS(RADIANS(BI69)),IF($B$10="side decks < 0,4m",480*'Worksheet 1'!$I$17*'Worksheet 5c'!$E$16*COS(RADIANS(BI69)))) -> FALSE
BK70: =IF($B$10="normal",961*'Worksheet 1'!$I$17*('Worksheet 5c'!$E$16/2-0.2)*COS(RADIANS(BI70)),IF($B$10="side decks < 0,4m",480*'Worksheet 1'!$I$17*'Worksheet 5c'!$E$16*COS(RADIANS(BI70)))) -> FALSE
BK71: =IF($B$10="normal",961*'Worksheet 1'!$I$17*('Worksheet 5c'!$E$16/2-0.2)*COS(RADIANS(BI71)),IF($B$10="side decks < 0,4m",480*'Worksheet 1'!$I$17*'Worksheet 5c'!$E$16*COS(RADIANS(BI71)))) -> FALSE
N72: Maximum moment LC1 | BK72: =IF($B$10="normal",961*'Worksheet 1'!$I$17*('Worksheet 5c'!$E$16/2-0.2)*COS(RADIANS(BI72)),IF($B$10="side decks < 0,4m",480*'Worksheet 1'!$I$17*'Worksheet 5c'!$E$16*COS(RADIANS(BI72)))) -> FALSE
N73: =MAX(C12:C62) ->  | BK73: =IF($B$10="normal",961*'Worksheet 1'!$I$17*('Worksheet 5c'!$E$16/2-0.2)*COS(RADIANS(BI73)),IF($B$10="side decks < 0,4m",480*'Worksheet 1'!$I$17*'Worksheet 5c'!$E$16*COS(RADIANS(BI73)))) -> FALSE
N74: downflooding angle | BK74: =IF($B$10="normal",961*'Worksheet 1'!$I$17*('Worksheet 5c'!$E$16/2-0.2)*COS(RADIANS(BI74)),IF($B$10="side decks < 0,4m",480*'Worksheet 1'!$I$17*'Worksheet 5c'!$E$16*COS(RADIANS(BI74)))) -> FALSE
N75: ='Worksheet 5c'!E19 -> 0 | BK75: =IF($B$10="normal",961*'Worksheet 1'!$I$17*('Worksheet 5c'!$E$16/2-0.2)*COS(RADIANS(BI75)),IF($B$10="side decks < 0,4m",480*'Worksheet 1'!$I$17*'Worksheet 5c'!$E$16*COS(RADIANS(BI75)))) -> FALSE
N76: Maximum at which degree? | BK76: =IF($B$10="normal",961*'Worksheet 1'!$I$17*('Worksheet 5c'!$E$16/2-0.2)*COS(RADIANS(BI76)),IF($B$10="side decks < 0,4m",480*'Worksheet 1'!$I$17*'Worksheet 5c'!$E$16*COS(RADIANS(BI76)))) -> FALSE
N77: =VLOOKUP(N73,C12:I62,7,FALSE) ->  | BK77: =IF($B$10="normal",961*'Worksheet 1'!$I$17*('Worksheet 5c'!$E$16/2-0.2)*COS(RADIANS(BI77)),IF($B$10="side decks < 0,4m",480*'Worksheet 1'!$I$17*'Worksheet 5c'!$E$16*COS(RADIANS(BI77)))) -> FALSE | BL77: =IF(AND(BJ76<BK76,BJ77>BK77),1,"") -> 
N78: Maximum value up to PhiDA | BI78: =BI77+0.01 ->  | BJ78: =BJ77+$BG$23 ->  | BK78: =IF($B$10="normal",961*'Worksheet 1'!$I$17*('Worksheet 5c'!$E$16/2-0.2)*COS(RADIANS(BI78)),IF($B$10="side decks < 0,4m",480*'Worksheet 1'!$I$17*'Worksheet 5c'!$E$16*COS(RADIANS(BI78)))) -> FALSE
N79: =IF(N77<N75,N73,LOOKUP(N75,A12:A62,C12:C62)) ->  | BK79: =IF($B$10="normal",961*'Worksheet 1'!$I$17*('Worksheet 5c'!$E$16/2-0.2)*COS(RADIANS(BI79)),IF($B$10="side decks < 0,4m",480*'Worksheet 1'!$I$17*'Worksheet 5c'!$E$16*COS(RADIANS(BI79)))) -> FALSE
BK80: =IF($B$10="normal",961*'Worksheet 1'!$I$17*('Worksheet 5c'!$E$16/2-0.2)*COS(RADIANS(BI80)),IF($B$10="side decks < 0,4m",480*'Worksheet 1'!$I$17*'Worksheet 5c'!$E$16*COS(RADIANS(BI80)))) -> FALSE
BK81: =IF($B$10="normal",961*'Worksheet 1'!$I$17*('Worksheet 5c'!$E$16/2-0.2)*COS(RADIANS(BI81)),IF($B$10="side decks < 0,4m",480*'Worksheet 1'!$I$17*'Worksheet 5c'!$E$16*COS(RADIANS(BI81)))) -> FALSE
BK82: =IF($B$10="normal",961*'Worksheet 1'!$I$17*('Worksheet 5c'!$E$16/2-0.2)*COS(RADIANS(BI82)),IF($B$10="side decks < 0,4m",480*'Worksheet 1'!$I$17*'Worksheet 5c'!$E$16*COS(RADIANS(BI82)))) -> FALSE
BK83: =IF($B$10="normal",961*'Worksheet 1'!$I$17*('Worksheet 5c'!$E$16/2-0.2)*COS(RADIANS(BI83)),IF($B$10="side decks < 0,4m",480*'Worksheet 1'!$I$17*'Worksheet 5c'!$E$16*COS(RADIANS(BI83)))) -> FALSE
BK84: =IF($B$10="normal",961*'Worksheet 1'!$I$17*('Worksheet 5c'!$E$16/2-0.2)*COS(RADIANS(BI84)),IF($B$10="side decks < 0,4m",480*'Worksheet 1'!$I$17*'Worksheet 5c'!$E$16*COS(RADIANS(BI84)))) -> FALSE
BK85: =IF($B$10="normal",961*'Worksheet 1'!$I$17*('Worksheet 5c'!$E$16/2-0.2)*COS(RADIANS(BI85)),IF($B$10="side decks < 0,4m",480*'Worksheet 1'!$I$17*'Worksheet 5c'!$E$16*COS(RADIANS(BI85)))) -> FALSE
BK86: =IF($B$10="normal",961*'Worksheet 1'!$I$17*('Worksheet 5c'!$E$16/2-0.2)*COS(RADIANS(BI86)),IF($B$10="side decks < 0,4m",480*'Worksheet 1'!$I$17*'Worksheet 5c'!$E$16*COS(RADIANS(BI86)))) -> FALSE
BK87: =IF($B$10="normal",961*'Worksheet 1'!$I$17*('Worksheet 5c'!$E$16/2-0.2)*COS(RADIANS(BI87)),IF($B$10="side decks < 0,4m",480*'Worksheet 1'!$I$17*'Worksheet 5c'!$E$16*COS(RADIANS(BI87)))) -> FALSE
BK88: =IF($B$10="normal",961*'Worksheet 1'!$I$17*('Worksheet 5c'!$E$16/2-0.2)*COS(RADIANS(BI88)),IF($B$10="side decks < 0,4m",480*'Worksheet 1'!$I$17*'Worksheet 5c'!$E$16*COS(RADIANS(BI88)))) -> FALSE
BK89: =IF($B$10="normal",961*'Worksheet 1'!$I$17*('Worksheet 5c'!$E$16/2-0.2)*COS(RADIANS(BI89)),IF($B$10="side decks < 0,4m",480*'Worksheet 1'!$I$17*'Worksheet 5c'!$E$16*COS(RADIANS(BI89)))) -> FALSE
BK90: =IF($B$10="normal",961*'Worksheet 1'!$I$17*('Worksheet 5c'!$E$16/2-0.2)*COS(RADIANS(BI90)),IF($B$10="side decks < 0,4m",480*'Worksheet 1'!$I$17*'Worksheet 5c'!$E$16*COS(RADIANS(BI90)))) -> FALSE
BK91: =IF($B$10="normal",961*'Worksheet 1'!$I$17*('Worksheet 5c'!$E$16/2-0.2)*COS(RADIANS(BI91)),IF($B$10="side decks < 0,4m",480*'Worksheet 1'!$I$17*'Worksheet 5c'!$E$16*COS(RADIANS(BI91)))) -> FALSE
BK92: =IF($B$10="normal",961*'Worksheet 1'!$I$17*('Worksheet 5c'!$E$16/2-0.2)*COS(RADIANS(BI92)),IF($B$10="side decks < 0,4m",480*'Worksheet 1'!$I$17*'Worksheet 5c'!$E$16*COS(RADIANS(BI92)))) -> FALSE
BK93: =IF($B$10="normal",961*'Worksheet 1'!$I$17*('Worksheet 5c'!$E$16/2-0.2)*COS(RADIANS(BI93)),IF($B$10="side decks < 0,4m",480*'Worksheet 1'!$I$17*'Worksheet 5c'!$E$16*COS(RADIANS(BI93)))) -> FALSE
BK94: =IF($B$10="normal",961*'Worksheet 1'!$I$17*('Worksheet 5c'!$E$16/2-0.2)*COS(RADIANS(BI94)),IF($B$10="side decks < 0,4m",480*'Worksheet 1'!$I$17*'Worksheet 5c'!$E$16*COS(RADIANS(BI94)))) -> FALSE
BK95: =IF($B$10="normal",961*'Worksheet 1'!$I$17*('Worksheet 5c'!$E$16/2-0.2)*COS(RADIANS(BI95)),IF($B$10="side decks < 0,4m",480*'Worksheet 1'!$I$17*'Worksheet 5c'!$E$16*COS(RADIANS(BI95)))) -> FALSE
BK96: =IF($B$10="normal",961*'Worksheet 1'!$I$17*('Worksheet 5c'!$E$16/2-0.2)*COS(RADIANS(BI96)),IF($B$10="side decks < 0,4m",480*'Worksheet 1'!$I$17*'Worksheet 5c'!$E$16*COS(RADIANS(BI96)))) -> FALSE
BK97: =IF($B$10="normal",961*'Worksheet 1'!$I$17*('Worksheet 5c'!$E$16/2-0.2)*COS(RADIANS(BI97)),IF($B$10="side decks < 0,4m",480*'Worksheet 1'!$I$17*'Worksheet 5c'!$E$16*COS(RADIANS(BI97)))) -> FALSE
BK98: =IF($B$10="normal",961*'Worksheet 1'!$I$17*('Worksheet 5c'!$E$16/2-0.2)*COS(RADIANS(BI98)),IF($B$10="side decks < 0,4m",480*'Worksheet 1'!$I$17*'Worksheet 5c'!$E$16*COS(RADIANS(BI98)))) -> FALSE
BK99: =IF($B$10="normal",961*'Worksheet 1'!$I$17*('Worksheet 5c'!$E$16/2-0.2)*COS(RADIANS(BI99)),IF($B$10="side decks < 0,4m",480*'Worksheet 1'!$I$17*'Worksheet 5c'!$E$16*COS(RADIANS(BI99)))) -> FALSE
BK100: =IF($B$10="normal",961*'Worksheet 1'!$I$17*('Worksheet 5c'!$E$16/2-0.2)*COS(RADIANS(BI100)),IF($B$10="side decks < 0,4m",480*'Worksheet 1'!$I$17*'Worksheet 5c'!$E$16*COS(RADIANS(BI100)))) -> FALSE
BK101: =IF($B$10="normal",961*'Worksheet 1'!$I$17*('Worksheet 5c'!$E$16/2-0.2)*COS(RADIANS(BI101)),IF($B$10="side decks < 0,4m",480*'Worksheet 1'!$I$17*'Worksheet 5c'!$E$16*COS(RADIANS(BI101)))) -> FALSE
BK102: =IF($B$10="normal",961*'Worksheet 1'!$I$17*('Worksheet 5c'!$E$16/2-0.2)*COS(RADIANS(BI102)),IF($B$10="side decks < 0,4m",480*'Worksheet 1'!$I$17*'Worksheet 5c'!$E$16*COS(RADIANS(BI102)))) -> FALSE
BK103: =IF($B$10="normal",961*'Worksheet 1'!$I$17*('Worksheet 5c'!$E$16/2-0.2)*COS(RADIANS(BI103)),IF($B$10="side decks < 0,4m",480*'Worksheet 1'!$I$17*'Worksheet 5c'!$E$16*COS(RADIANS(BI103)))) -> FALSE
BK104: =IF($B$10="normal",961*'Worksheet 1'!$I$17*('Worksheet 5c'!$E$16/2-0.2)*COS(RADIANS(BI104)),IF($B$10="side decks < 0,4m",480*'Worksheet 1'!$I$17*'Worksheet 5c'!$E$16*COS(RADIANS(BI104)))) -> FALSE
BK105: =IF($B$10="normal",961*'Worksheet 1'!$I$17*('Worksheet 5c'!$E$16/2-0.2)*COS(RADIANS(BI105)),IF($B$10="side decks < 0,4m",480*'Worksheet 1'!$I$17*'Worksheet 5c'!$E$16*COS(RADIANS(BI105)))) -> FALSE
BK106: =IF($B$10="normal",961*'Worksheet 1'!$I$17*('Worksheet 5c'!$E$16/2-0.2)*COS(RADIANS(BI106)),IF($B$10="side decks < 0,4m",480*'Worksheet 1'!$I$17*'Worksheet 5c'!$E$16*COS(RADIANS(BI106)))) -> FALSE
BK107: =IF($B$10="normal",961*'Worksheet 1'!$I$17*('Worksheet 5c'!$E$16/2-0.2)*COS(RADIANS(BI107)),IF($B$10="side decks < 0,4m",480*'Worksheet 1'!$I$17*'Worksheet 5c'!$E$16*COS(RADIANS(BI107)))) -> FALSE
BK108: =IF($B$10="normal",961*'Worksheet 1'!$I$17*('Worksheet 5c'!$E$16/2-0.2)*COS(RADIANS(BI108)),IF($B$10="side decks < 0,4m",480*'Worksheet 1'!$I$17*'Worksheet 5c'!$E$16*COS(RADIANS(BI108)))) -> FALSE
BK109: =IF($B$10="normal",961*'Worksheet 1'!$I$17*('Worksheet 5c'!$E$16/2-0.2)*COS(RADIANS(BI109)),IF($B$10="side decks < 0,4m",480*'Worksheet 1'!$I$17*'Worksheet 5c'!$E$16*COS(RADIANS(BI109)))) -> FALSE
BK110: =IF($B$10="normal",961*'Worksheet 1'!$I$17*('Worksheet 5c'!$E$16/2-0.2)*COS(RADIANS(BI110)),IF($B$10="side decks < 0,4m",480*'Worksheet 1'!$I$17*'Worksheet 5c'!$E$16*COS(RADIANS(BI110)))) -> FALSE
BK111: =IF($B$10="normal",961*'Worksheet 1'!$I$17*('Worksheet 5c'!$E$16/2-0.2)*COS(RADIANS(BI111)),IF($B$10="side decks < 0,4m",480*'Worksheet 1'!$I$17*'Worksheet 5c'!$E$16*COS(RADIANS(BI111)))) -> FALSE
BK112: =IF($B$10="normal",961*'Worksheet 1'!$I$17*('Worksheet 5c'!$E$16/2-0.2)*COS(RADIANS(BI112)),IF($B$10="side decks < 0,4m",480*'Worksheet 1'!$I$17*'Worksheet 5c'!$E$16*COS(RADIANS(BI112)))) -> FALSE

Sheet Worksheet 5e
N1: Comments
B2: ISO 12217-1:2017 CALCULATION WORKSHEET No. 5e curve of righting moment LC2 | O2: Derived values
O3: Input values | AV3: list:
A4: =CONCATENATE(coverSheet!B5," ",coverSheet!B12) -> 
AV5: crew heeling moment curve
A6: insert curve of righting moment in 5° steps in one of following units: | H6: OFFSET LOAD TEST | J6: for the calculation of mLC2; are tanks transverse dimensions > 0,35 BH ? Default value 'Yes', please change otherwise | AV6: normal
B7: N m | C7: kg m | D7: m | G7: mLC2 | H7: =IF(J7="Yes",'Worksheet 1'!$I$34+'Worksheet 1'!$I$17*10-('Worksheet 1'!$I$21+'Worksheet 1'!$I$22+'Worksheet 1'!$I$23+'Worksheet 1'!$I$24+'Worksheet 1'!$I$25+'Worksheet 1'!$I$27)*0.5,'Worksheet 1'!$I$34+'Worksheet 1'!$I$17*10) -> 0 | J7: Yes | AV7: side decks < 0,4m
C9: chosen unit | N9: B.3.2.4 Calculate the curve of crew heeling moments equal to 961CL(BC/2 -0,2)cosΦ(N⋅m), where BC is the maximum transverse distance between the outboard extremities of any parts of the crew area as defined in B.3.1.7, and fis the heel angle. Where the crew area includes side decks less than 0,4 m wide, the moment used shall be 480CL BCcosΦ(N⋅m). Ledges less than 0,10 m wide can be excluded from the crew area.
C10: crew heeling moment curve (either normal or if side decks smaller 0,4m)
A11: heel angle [°] | B11: insert righting arm / moment [Nm, kg m, m] | C11: righting moment [Nm] | D11: righting moment [kg m] | E11: righting arm Gz [m] | F11: Diff(B-A/5) | G11: crew heeling moment curve [N m] | I11: heel angle [°] | BB11: Righting Moment [Nm] | BC11: Crew Heeling moment curve [N m] | BD11: check | BG11: calc | BI11: nachkomma | BJ11: Righting Moment [Nm] | BK11: Crew Heeling moment curve [N m]
A12: 0 | C12: =D12*9.806 ->  | D12: =E12*$H$7 ->  | E12: =IF($B$9="N m",B12/9.806/$H$7,IF($B$9="kg m",B12/$H$7,IF($B$9="m",B12,"error"))) -> error | F12: =(E17-E12)/5 ->  | G12: =IF($B$10="normal",961*'Worksheet 1'!$I$17*('Worksheet 5c'!$E$16/2-0.2)*COS(RADIANS(A12)),IF($B$10="side decks < 0,4m",480*'Worksheet 1'!$I$17*'Worksheet 5c'!$E$16*COS(RADIANS(A12)))) -> FALSE | I12: 0 | N12: Please insert BC in worksheet 5c for calculation of crew heeling moment | AV12: Yes | BA12: 0 | BB12: =C12 ->  | BC12: =G12 -> FALSE | BD12: =IF(AND(BB11<BC11,BB12>BC12),1,"") ->  | BG12: Vorkomma | BI12: =BG13 ->  | BJ12: =BG19 ->  | BK12: =IF($B$10="normal",961*'Worksheet 1'!$I$17*('Worksheet 5c'!$E$16/2-0.2)*COS(RADIANS(BI12)),IF($B$10="side decks < 0,4m",480*'Worksheet 1'!$I$17*'Worksheet 5c'!$E$16*COS(RADIANS(BI12)))) -> FALSE | BL12: =IF(AND(BJ11<BK11,BJ12>BK12),1,"") -> 
A13: 1 | D13: =E13*$H$7 ->  | E13: =E12+F12 ->  | G13: =IF($B$10="normal",961*'Worksheet 1'!$I$17*('Worksheet 5c'!$E$16/2-0.2)*COS(RADIANS(A13)),IF($B$10="side decks < 0,4m",480*'Worksheet 1'!$I$17*'Worksheet 5c'!$E$16*COS(RADIANS(A13)))) -> FALSE | I13: 1 | BA13: 1 | BB13: =C13 ->  | BC13: =G13 -> FALSE | BD13: =IF(AND(BB12<BC12,BB13>BC13),1,"") ->  | BG13: =LOOKUP(1,BD12:BD62,BA12:BA62-1) ->  | BI13: =BI12+0.01 ->  | BJ13: =BJ12+$BG$23 ->  | BK13: =IF($B$10="normal",961*'Worksheet 1'!$I$17*('Worksheet 5c'!$E$16/2-0.2)*COS(RADIANS(BI13)),IF($B$10="side decks < 0,4m",480*'Worksheet 1'!$I$17*'Worksheet 5c'!$E$16*COS(RADIANS(BI13)))) -> FALSE | BL13: =IF(AND(BJ12<BK12,BJ13>BK13),1,"") -> 
A14: 2 | E14: =E13+F12 ->  | G14: =IF($B$10="normal",961*'Worksheet 1'!$I$17*('Worksheet 5c'!$E$16/2-0.2)*COS(RADIANS(A14)),IF($B$10="side decks < 0,4m",480*'Worksheet 1'!$I$17*'Worksheet 5c'!$E$16*COS(RADIANS(A14)))) -> FALSE | I14: 2 | BA14: 2 | BC14: FALSE | BG14: Genau | BI14: =BI13+0.01 ->  | BJ14: =BJ13+$BG$23 ->  | BK14: =IF($B$10="normal",961*'Worksheet 1'!$I$17*('Worksheet 5c'!$E$16/2-0.2)*COS(RADIANS(BI14)),IF($B$10="side decks < 0,4m",480*'Worksheet 1'!$I$17*'Worksheet 5c'!$E$16*COS(RADIANS(BI14)))) -> FALSE
A15: 3 | E15: =E14+F12 ->  | G15: =IF($B$10="normal",961*'Worksheet 1'!$I$17*('Worksheet 5c'!$E$16/2-0.2)*COS(RADIANS(A15)),IF($B$10="side decks < 0,4m",480*'Worksheet 1'!$I$17*'Worksheet 5c'!$E$16*COS(RADIANS(A15)))) -> FALSE | I15: 3 | BA15: 3 | BC15: FALSE | BG15: =IF(B12="","",LOOKUP(1,BL12:BL112,BI12:BI112)) ->  | BK15: =IF($B$10="normal",961*'Worksheet 1'!$I$17*('Worksheet 5c'!$E$16/2-0.2)*COS(RADIANS(BI15)),IF($B$10="side decks < 0,4m",480*'Worksheet 1'!$I$17*'Worksheet 5c'!$E$16*COS(RADIANS(BI15)))) -> FALSE
A16: 4 | E16: =E15+F12 ->  | G16: =IF($B$10="normal",961*'Worksheet 1'!$I$17*('Worksheet 5c'!$E$16/2-0.2)*COS(RADIANS(A16)),IF($B$10="side decks < 0,4m",480*'Worksheet 1'!$I$17*'Worksheet 5c'!$E$16*COS(RADIANS(A16)))) -> FALSE | I16: 4 | BA16: 4 | BC16: FALSE | BK16: =IF($B$10="normal",961*'Worksheet 1'!$I$17*('Worksheet 5c'!$E$16/2-0.2)*COS(RADIANS(BI16)),IF($B$10="side decks < 0,4m",480*'Worksheet 1'!$I$17*'Worksheet 5c'!$E$16*COS(RADIANS(BI16)))) -> FALSE
A17: 5 | E17: =IF($B$9="N m",B17/9.806/$H$7,IF($B$9="kg m",B17/$H$7,IF($B$9="m",B17,"error"))) -> error | F17: =(E22-E17)/5 ->  | G17: =IF($B$10="normal",961*'Worksheet 1'!$I$17*('Worksheet 5c'!$E$16/2-0.2)*COS(RADIANS(A17)),IF($B$10="side decks < 0,4m",480*'Worksheet 1'!$I$17*'Worksheet 5c'!$E$16*COS(RADIANS(A17)))) -> FALSE | I17: 5 | AV17: No | BA17: 5 | BC17: FALSE | BK17: =IF($B$10="normal",961*'Worksheet 1'!$I$17*('Worksheet 5c'!$E$16/2-0.2)*COS(RADIANS(BI17)),IF($B$10="side decks < 0,4m",480*'Worksheet 1'!$I$17*'Worksheet 5c'!$E$16*COS(RADIANS(BI17)))) -> FALSE
A18: 6 | E18: =E17+F17 ->  | G18: =IF($B$10="normal",961*'Worksheet 1'!$I$17*('Worksheet 5c'!$E$16/2-0.2)*COS(RADIANS(A18)),IF($B$10="side decks < 0,4m",480*'Worksheet 1'!$I$17*'Worksheet 5c'!$E$16*COS(RADIANS(A18)))) -> FALSE | I18: 6 | BA18: 6 | BC18: FALSE | BG18: Nachbestimmung | BK18: =IF($B$10="normal",961*'Worksheet 1'!$I$17*('Worksheet 5c'!$E$16/2-0.2)*COS(RADIANS(BI18)),IF($B$10="side decks < 0,4m",480*'Worksheet 1'!$I$17*'Worksheet 5c'!$E$16*COS(RADIANS(BI18)))) -> FALSE
A19: 7 | E19: =E18+F17 ->  | G19: =IF($B$10="normal",961*'Worksheet 1'!$I$17*('Worksheet 5c'!$E$16/2-0.2)*COS(RADIANS(A19)),IF($B$10="side decks < 0,4m",480*'Worksheet 1'!$I$17*'Worksheet 5c'!$E$16*COS(RADIANS(A19)))) -> FALSE | I19: 7 | BA19: 7 | BC19: FALSE | BG19: =LOOKUP(BG13,BA12:BA62,BB12:BB62) ->  | BK19: =IF($B$10="normal",961*'Worksheet 1'!$I$17*('Worksheet 5c'!$E$16/2-0.2)*COS(RADIANS(BI19)),IF($B$10="side decks < 0,4m",480*'Worksheet 1'!$I$17*'Worksheet 5c'!$E$16*COS(RADIANS(BI19)))) -> FALSE
A20: 8 | E20: =E19+F17 ->  | G20: =IF($B$10="normal",961*'Worksheet 1'!$I$17*('Worksheet 5c'!$E$16/2-0.2)*COS(RADIANS(A20)),IF($B$10="side decks < 0,4m",480*'Worksheet 1'!$I$17*'Worksheet 5c'!$E$16*COS(RADIANS(A20)))) -> FALSE | I20: 8 | BA20: 8 | BC20: FALSE | BG20: =LOOKUP(BG13+1,BA12:BA62,BB12:BB62) ->  | BK20: =IF($B$10="normal",961*'Worksheet 1'!$I$17*('Worksheet 5c'!$E$16/2-0.2)*COS(RADIANS(BI20)),IF($B$10="side decks < 0,4m",480*'Worksheet 1'!$I$17*'Worksheet 5c'!$E$16*COS(RADIANS(BI20)))) -> FALSE
A21: 9 | E21: =E20+F17 ->  | G21: =IF($B$10="normal",961*'Worksheet 1'!$I$17*('Worksheet 5c'!$E$16/2-0.2)*COS(RADIANS(A21)),IF($B$10="side decks < 0,4m",480*'Worksheet 1'!$I$17*'Worksheet 5c'!$E$16*COS(RADIANS(A21)))) -> FALSE | I21: 9 | BA21: 9 | BC21: FALSE | BK21: =IF($B$10="normal",961*'Worksheet 1'!$I$17*('Worksheet 5c'!$E$16/2-0.2)*COS(RADIANS(BI21)),IF($B$10="side decks < 0,4m",480*'Worksheet 1'!$I$17*'Worksheet 5c'!$E$16*COS(RADIANS(BI21)))) -> FALSE
A22: 10 | E22: =IF($B$9="N m",B22/9.806/$H$7,IF($B$9="kg m",B22/$H$7,IF($B$9="m",B22,"error"))) -> error | F22: =(E27-E22)/5 ->  | G22: =IF($B$10="normal",961*'Worksheet 1'!$I$17*('Worksheet 5c'!$E$16/2-0.2)*COS(RADIANS(A22)),IF($B$10="side decks < 0,4m",480*'Worksheet 1'!$I$17*'Worksheet 5c'!$E$16*COS(RADIANS(A22)))) -> FALSE | I22: 10 | N22: Please insert unit of righting moment curve in B9! | BA22: 10 | BC22: FALSE | BG22: =BG20-BG19 ->  | BK22: =IF($B$10="normal",961*'Worksheet 1'!$I$17*('Worksheet 5c'!$E$16/2-0.2)*COS(RADIANS(BI22)),IF($B$10="side decks < 0,4m",480*'Worksheet 1'!$I$17*'Worksheet 5c'!$E$16*COS(RADIANS(BI22)))) -> FALSE
A23: 11 | E23: =E22+F22 ->  | G23: =IF($B$10="normal",961*'Worksheet 1'!$I$17*('Worksheet 5c'!$E$16/2-0.2)*COS(RADIANS(A23)),IF($B$10="side decks < 0,4m",480*'Worksheet 1'!$I$17*'Worksheet 5c'!$E$16*COS(RADIANS(A23)))) -> FALSE | I23: 11 | BA23: 11 | BC23: FALSE | BG23: =BG22/100 ->  | BK23: =IF($B$10="normal",961*'Worksheet 1'!$I$17*('Worksheet 5c'!$E$16/2-0.2)*COS(RADIANS(BI23)),IF($B$10="side decks < 0,4m",480*'Worksheet 1'!$I$17*'Worksheet 5c'!$E$16*COS(RADIANS(BI23)))) -> FALSE
A24: 12 | E24: =E23+F22 ->  | G24: =IF($B$10="normal",961*'Worksheet 1'!$I$17*('Worksheet 5c'!$E$16/2-0.2)*COS(RADIANS(A24)),IF($B$10="side decks < 0,4m",480*'Worksheet 1'!$I$17*'Worksheet 5c'!$E$16*COS(RADIANS(A24)))) -> FALSE | I24: 12 | BA24: 12 | BC24: FALSE | BK24: =IF($B$10="normal",961*'Worksheet 1'!$I$17*('Worksheet 5c'!$E$16/2-0.2)*COS(RADIANS(BI24)),IF($B$10="side decks < 0,4m",480*'Worksheet 1'!$I$17*'Worksheet 5c'!$E$16*COS(RADIANS(BI24)))) -> FALSE
A25: 13 | E25: =E24+F22 ->  | G25: =IF($B$10="normal",961*'Worksheet 1'!$I$17*('Worksheet 5c'!$E$16/2-0.2)*COS(RADIANS(A25)),IF($B$10="side decks < 0,4m",480*'Worksheet 1'!$I$17*'Worksheet 5c'!$E$16*COS(RADIANS(A25)))) -> FALSE | I25: 13 | BA25: 13 | BC25: FALSE | BK25: =IF($B$10="normal",961*'Worksheet 1'!$I$17*('Worksheet 5c'!$E$16/2-0.2)*COS(RADIANS(BI25)),IF($B$10="side decks < 0,4m",480*'Worksheet 1'!$I$17*'Worksheet 5c'!$E$16*COS(RADIANS(BI25)))) -> FALSE
A26: 14 | E26: =E25+F22 ->  | G26: =IF($B$10="normal",961*'Worksheet 1'!$I$17*('Worksheet 5c'!$E$16/2-0.2)*COS(RADIANS(A26)),IF($B$10="side decks < 0,4m",480*'Worksheet 1'!$I$17*'Worksheet 5c'!$E$16*COS(RADIANS(A26)))) -> FALSE | I26: 14 | BA26: 14 | BC26: FALSE | BK26: =IF($B$10="normal",961*'Worksheet 1'!$I$17*('Worksheet 5c'!$E$16/2-0.2)*COS(RADIANS(BI26)),IF($B$10="side decks < 0,4m",480*'Worksheet 1'!$I$17*'Worksheet 5c'!$E$16*COS(RADIANS(BI26)))) -> FALSE
A27: 15 | E27: =IF($B$9="N m",B27/9.806/$H$7,IF($B$9="kg m",B27/$H$7,IF($B$9="m",B27,"error"))) -> error | F27: =(E32-E27)/5 ->  | G27: =IF($B$10="normal",961*'Worksheet 1'!$I$17*('Worksheet 5c'!$E$16/2-0.2)*COS(RADIANS(A27)),IF($B$10="side decks < 0,4m",480*'Worksheet 1'!$I$17*'Worksheet 5c'!$E$16*COS(RADIANS(A27)))) -> FALSE | I27: 15 | BA27: 15 | BC27: FALSE | BK27: =IF($B$10="normal",961*'Worksheet 1'!$I$17*('Worksheet 5c'!$E$16/2-0.2)*COS(RADIANS(BI27)),IF($B$10="side decks < 0,4m",480*'Worksheet 1'!$I$17*'Worksheet 5c'!$E$16*COS(RADIANS(BI27)))) -> FALSE
A28: 16 | E28: =E27+F27 ->  | G28: =IF($B$10="normal",961*'Worksheet 1'!$I$17*('Worksheet 5c'!$E$16/2-0.2)*COS(RADIANS(A28)),IF($B$10="side decks < 0,4m",480*'Worksheet 1'!$I$17*'Worksheet 5c'!$E$16*COS(RADIANS(A28)))) -> FALSE | I28: 16 | BA28: 16 | BC28: FALSE | BK28: =IF($B$10="normal",961*'Worksheet 1'!$I$17*('Worksheet 5c'!$E$16/2-0.2)*COS(RADIANS(BI28)),IF($B$10="side decks < 0,4m",480*'Worksheet 1'!$I$17*'Worksheet 5c'!$E$16*COS(RADIANS(BI28)))) -> FALSE
A29: 17 | E29: =E28+F27 ->  | G29: =IF($B$10="normal",961*'Worksheet 1'!$I$17*('Worksheet 5c'!$E$16/2-0.2)*COS(RADIANS(A29)),IF($B$10="side decks < 0,4m",480*'Worksheet 1'!$I$17*'Worksheet 5c'!$E$16*COS(RADIANS(A29)))) -> FALSE | I29: 17 | BA29: 17 | BC29: FALSE | BK29: =IF($B$10="normal",961*'Worksheet 1'!$I$17*('Worksheet 5c'!$E$16/2-0.2)*COS(RADIANS(BI29)),IF($B$10="side decks < 0,4m",480*'Worksheet 1'!$I$17*'Worksheet 5c'!$E$16*COS(RADIANS(BI29)))) -> FALSE
A30: 18 | E30: =E29+F27 ->  | G30: =IF($B$10="normal",961*'Worksheet 1'!$I$17*('Worksheet 5c'!$E$16/2-0.2)*COS(RADIANS(A30)),IF($B$10="side decks < 0,4m",480*'Worksheet 1'!$I$17*'Worksheet 5c'!$E$16*COS(RADIANS(A30)))) -> FALSE | I30: 18 | BA30: 18 | BC30: FALSE | BK30: =IF($B$10="normal",961*'Worksheet 1'!$I$17*('Worksheet 5c'!$E$16/2-0.2)*COS(RADIANS(BI30)),IF($B$10="side decks < 0,4m",480*'Worksheet 1'!$I$17*'Worksheet 5c'!$E$16*COS(RADIANS(BI30)))) -> FALSE
A31: 19 | E31: =E30+F27 ->  | G31: =IF($B$10="normal",961*'Worksheet 1'!$I$17*('Worksheet 5c'!$E$16/2-0.2)*COS(RADIANS(A31)),IF($B$10="side decks < 0,4m",480*'Worksheet 1'!$I$17*'Worksheet 5c'!$E$16*COS(RADIANS(A31)))) -> FALSE | I31: 19 | BA31: 19 | BC31: FALSE | BK31: =IF($B$10="normal",961*'Worksheet 1'!$I$17*('Worksheet 5c'!$E$16/2-0.2)*COS(RADIANS(BI31)),IF($B$10="side decks < 0,4m",480*'Worksheet 1'!$I$17*'Worksheet 5c'!$E$16*COS(RADIANS(BI31)))) -> FALSE
A32: 20 | E32: =IF($B$9="N m",B32/9.806/$H$7,IF($B$9="kg m",B32/$H$7,IF($B$9="m",B32,"error"))) -> error | F32: =(E37-E32)/5 ->  | G32: =IF($B$10="normal",961*'Worksheet 1'!$I$17*('Worksheet 5c'!$E$16/2-0.2)*COS(RADIANS(A32)),IF($B$10="side decks < 0,4m",480*'Worksheet 1'!$I$17*'Worksheet 5c'!$E$16*COS(RADIANS(A32)))) -> FALSE | I32: 20 | BA32: 20 | BC32: FALSE | BK32: =IF($B$10="normal",961*'Worksheet 1'!$I$17*('Worksheet 5c'!$E$16/2-0.2)*COS(RADIANS(BI32)),IF($B$10="side decks < 0,4m",480*'Worksheet 1'!$I$17*'Worksheet 5c'!$E$16*COS(RADIANS(BI32)))) -> FALSE
A33: 21 | E33: =E32+F32 ->  | G33: =IF($B$10="normal",961*'Worksheet 1'!$I$17*('Worksheet 5c'!$E$16/2-0.2)*COS(RADIANS(A33)),IF($B$10="side decks < 0,4m",480*'Worksheet 1'!$I$17*'Worksheet 5c'!$E$16*COS(RADIANS(A33)))) -> FALSE | I33: 21 | BA33: 21 | BC33: FALSE | BK33: =IF($B$10="normal",961*'Worksheet 1'!$I$17*('Worksheet 5c'!$E$16/2-0.2)*COS(RADIANS(BI33)),IF($B$10="side decks < 0,4m",480*'Worksheet 1'!$I$17*'Worksheet 5c'!$E$16*COS(RADIANS(BI33)))) -> FALSE
A34: 22 | E34: =E33+F32 ->  | G34: =IF($B$10="normal",961*'Worksheet 1'!$I$17*('Worksheet 5c'!$E$16/2-0.2)*COS(RADIANS(A34)),IF($B$10="side decks < 0,4m",480*'Worksheet 1'!$I$17*'Worksheet 5c'!$E$16*COS(RADIANS(A34)))) -> FALSE | I34: 22 | BA34: 22 | BC34: FALSE | BK34: =IF($B$10="normal",961*'Worksheet 1'!$I$17*('Worksheet 5c'!$E$16/2-0.2)*COS(RADIANS(BI34)),IF($B$10="side decks < 0,4m",480*'Worksheet 1'!$I$17*'Worksheet 5c'!$E$16*COS(RADIANS(BI34)))) -> FALSE
A35: 23 | E35: =E34+F32 ->  | G35: =IF($B$10="normal",961*'Worksheet 1'!$I$17*('Worksheet 5c'!$E$16/2-0.2)*COS(RADIANS(A35)),IF($B$10="side decks < 0,4m",480*'Worksheet 1'!$I$17*'Worksheet 5c'!$E$16*COS(RADIANS(A35)))) -> FALSE | I35: 23 | BA35: 23 | BC35: FALSE | BK35: =IF($B$10="normal",961*'Worksheet 1'!$I$17*('Worksheet 5c'!$E$16/2-0.2)*COS(RADIANS(BI35)),IF($B$10="side decks < 0,4m",480*'Worksheet 1'!$I$17*'Worksheet 5c'!$E$16*COS(RADIANS(BI35)))) -> FALSE
A36: 24 | E36: =E35+F32 ->  | G36: =IF($B$10="normal",961*'Worksheet 1'!$I$17*('Worksheet 5c'!$E$16/2-0.2)*COS(RADIANS(A36)),IF($B$10="side decks < 0,4m",480*'Worksheet 1'!$I$17*'Worksheet 5c'!$E$16*COS(RADIANS(A36)))) -> FALSE | I36: 24 | BA36: 24 | BC36: FALSE | BK36: =IF($B$10="normal",961*'Worksheet 1'!$I$17*('Worksheet 5c'!$E$16/2-0.2)*COS(RADIANS(BI36)),IF($B$10="side decks < 0,4m",480*'Worksheet 1'!$I$17*'Worksheet 5c'!$E$16*COS(RADIANS(BI36)))) -> FALSE
A37: 25 | E37: =IF($B$9="N m",B37/9.806/$H$7,IF($B$9="kg m",B37/$H$7,IF($B$9="m",B37,"error"))) -> error | F37: =(E42-E37)/5 ->  | G37: =IF($B$10="normal",961*'Worksheet 1'!$I$17*('Worksheet 5c'!$E$16/2-0.2)*COS(RADIANS(A37)),IF($B$10="side decks < 0,4m",480*'Worksheet 1'!$I$17*'Worksheet 5c'!$E$16*COS(RADIANS(A37)))) -> FALSE | I37: 25 | BA37: 25 | BC37: FALSE | BK37: =IF($B$10="normal",961*'Worksheet 1'!$I$17*('Worksheet 5c'!$E$16/2-0.2)*COS(RADIANS(BI37)),IF($B$10="side decks < 0,4m",480*'Worksheet 1'!$I$17*'Worksheet 5c'!$E$16*COS(RADIANS(BI37)))) -> FALSE
A38: 26 | E38: =E37+F37 ->  | G38: =IF($B$10="normal",961*'Worksheet 1'!$I$17*('Worksheet 5c'!$E$16/2-0.2)*COS(RADIANS(A38)),IF($B$10="side decks < 0,4m",480*'Worksheet 1'!$I$17*'Worksheet 5c'!$E$16*COS(RADIANS(A38)))) -> FALSE | I38: 26 | BA38: 26 | BC38: FALSE | BK38: =IF($B$10="normal",961*'Worksheet 1'!$I$17*('Worksheet 5c'!$E$16/2-0.2)*COS(RADIANS(BI38)),IF($B$10="side decks < 0,4m",480*'Worksheet 1'!$I$17*'Worksheet 5c'!$E$16*COS(RADIANS(BI38)))) -> FALSE
A39: 27 | E39: =E38+F37 ->  | G39: =IF($B$10="normal",961*'Worksheet 1'!$I$17*('Worksheet 5c'!$E$16/2-0.2)*COS(RADIANS(A39)),IF($B$10="side decks < 0,4m",480*'Worksheet 1'!$I$17*'Worksheet 5c'!$E$16*COS(RADIANS(A39)))) -> FALSE | I39: 27 | BA39: 27 | BC39: FALSE | BK39: =IF($B$10="normal",961*'Worksheet 1'!$I$17*('Worksheet 5c'!$E$16/2-0.2)*COS(RADIANS(BI39)),IF($B$10="side decks < 0,4m",480*'Worksheet 1'!$I$17*'Worksheet 5c'!$E$16*COS(RADIANS(BI39)))) -> FALSE
A40: 28 | E40: =E39+F37 ->  | G40: =IF($B$10="normal",961*'Worksheet 1'!$I$17*('Worksheet 5c'!$E$16/2-0.2)*COS(RADIANS(A40)),IF($B$10="side decks < 0,4m",480*'Worksheet 1'!$I$17*'Worksheet 5c'!$E$16*COS(RADIANS(A40)))) -> FALSE | I40: 28 | BA40: 28 | BC40: FALSE | BK40: =IF($B$10="normal",961*'Worksheet 1'!$I$17*('Worksheet 5c'!$E$16/2-0.2)*COS(RADIANS(BI40)),IF($B$10="side decks < 0,4m",480*'Worksheet 1'!$I$17*'Worksheet 5c'!$E$16*COS(RADIANS(BI40)))) -> FALSE
A41: 29 | E41: =E40+F37 ->  | G41: =IF($B$10="normal",961*'Worksheet 1'!$I$17*('Worksheet 5c'!$E$16/2-0.2)*COS(RADIANS(A41)),IF($B$10="side decks < 0,4m",480*'Worksheet 1'!$I$17*'Worksheet 5c'!$E$16*COS(RADIANS(A41)))) -> FALSE | I41: 29 | BA41: 29 | BC41: FALSE | BK41: =IF($B$10="normal",961*'Worksheet 1'!$I$17*('Worksheet 5c'!$E$16/2-0.2)*COS(RADIANS(BI41)),IF($B$10="side decks < 0,4m",480*'Worksheet 1'!$I$17*'Worksheet 5c'!$E$16*COS(RADIANS(BI41)))) -> FALSE
A42: 30 | E42: =IF($B$9="N m",B42/9.806/$H$7,IF($B$9="kg m",B42/$H$7,IF($B$9="m",B42,"error"))) -> error | F42: =(E47-E42)/5 ->  | G42: =IF($B$10="normal",961*'Worksheet 1'!$I$17*('Worksheet 5c'!$E$16/2-0.2)*COS(RADIANS(A42)),IF($B$10="side decks < 0,4m",480*'Worksheet 1'!$I$17*'Worksheet 5c'!$E$16*COS(RADIANS(A42)))) -> FALSE | I42: 30 | BA42: 30 | BC42: FALSE | BK42: =IF($B$10="normal",961*'Worksheet 1'!$I$17*('Worksheet 5c'!$E$16/2-0.2)*COS(RADIANS(BI42)),IF($B$10="side decks < 0,4m",480*'Worksheet 1'!$I$17*'Worksheet 5c'!$E$16*COS(RADIANS(BI42)))) -> FALSE
A43: 31 | E43: =E42+F42 ->  | G43: =IF($B$10="normal",961*'Worksheet 1'!$I$17*('Worksheet 5c'!$E$16/2-0.2)*COS(RADIANS(A43)),IF($B$10="side decks < 0,4m",480*'Worksheet 1'!$I$17*'Worksheet 5c'!$E$16*COS(RADIANS(A43)))) -> FALSE | I43: 31 | BA43: 31 | BC43: FALSE | BK43: =IF($B$10="normal",961*'Worksheet 1'!$I$17*('Worksheet 5c'!$E$16/2-0.2)*COS(RADIANS(BI43)),IF($B$10="side decks < 0,4m",480*'Worksheet 1'!$I$17*'Worksheet 5c'!$E$16*COS(RADIANS(BI43)))) -> FALSE
A44: 32 | E44: =E43+F42 ->  | G44: =IF($B$10="normal",961*'Worksheet 1'!$I$17*('Worksheet 5c'!$E$16/2-0.2)*COS(RADIANS(A44)),IF($B$10="side decks < 0,4m",480*'Worksheet 1'!$I$17*'Worksheet 5c'!$E$16*COS(RADIANS(A44)))) -> FALSE | I44: 32 | BA44: 32 | BC44: FALSE | BK44: =IF($B$10="normal",961*'Worksheet 1'!$I$17*('Worksheet 5c'!$E$16/2-0.2)*COS(RADIANS(BI44)),IF($B$10="side decks < 0,4m",480*'Worksheet 1'!$I$17*'Worksheet 5c'!$E$16*COS(RADIANS(BI44)))) -> FALSE
A45: 33 | E45: =E44+F42 ->  | G45: =IF($B$10="normal",961*'Worksheet 1'!$I$17*('Worksheet 5c'!$E$16/2-0.2)*COS(RADIANS(A45)),IF($B$10="side decks < 0,4m",480*'Worksheet 1'!$I$17*'Worksheet 5c'!$E$16*COS(RADIANS(A45)))) -> FALSE | I45: 33 | BA45: 33 | BC45: FALSE | BK45: =IF($B$10="normal",961*'Worksheet 1'!$I$17*('Worksheet 5c'!$E$16/2-0.2)*COS(RADIANS(BI45)),IF($B$10="side decks < 0,4m",480*'Worksheet 1'!$I$17*'Worksheet 5c'!$E$16*COS(RADIANS(BI45)))) -> FALSE
A46: 34 | E46: =E45+F42 ->  | G46: =IF($B$10="normal",961*'Worksheet 1'!$I$17*('Worksheet 5c'!$E$16/2-0.2)*COS(RADIANS(A46)),IF($B$10="side decks < 0,4m",480*'Worksheet 1'!$I$17*'Worksheet 5c'!$E$16*COS(RADIANS(A46)))) -> FALSE | I46: 34 | BA46: 34 | BC46: FALSE | BK46: =IF($B$10="normal",961*'Worksheet 1'!$I$17*('Worksheet 5c'!$E$16/2-0.2)*COS(RADIANS(BI46)),IF($B$10="side decks < 0,4m",480*'Worksheet 1'!$I$17*'Worksheet 5c'!$E$16*COS(RADIANS(BI46)))) -> FALSE
A47: 35 | E47: =IF($B$9="N m",B47/9.806/$H$7,IF($B$9="kg m",B47/$H$7,IF($B$9="m",B47,"error"))) -> error | F47: =(E52-E47)/5 ->  | G47: =IF($B$10="normal",961*'Worksheet 1'!$I$17*('Worksheet 5c'!$E$16/2-0.2)*COS(RADIANS(A47)),IF($B$10="side decks < 0,4m",480*'Worksheet 1'!$I$17*'Worksheet 5c'!$E$16*COS(RADIANS(A47)))) -> FALSE | I47: 35 | BA47: 35 | BC47: FALSE | BK47: =IF($B$10="normal",961*'Worksheet 1'!$I$17*('Worksheet 5c'!$E$16/2-0.2)*COS(RADIANS(BI47)),IF($B$10="side decks < 0,4m",480*'Worksheet 1'!$I$17*'Worksheet 5c'!$E$16*COS(RADIANS(BI47)))) -> FALSE
A48: 36 | E48: =E47+F47 ->  | G48: =IF($B$10="normal",961*'Worksheet 1'!$I$17*('Worksheet 5c'!$E$16/2-0.2)*COS(RADIANS(A48)),IF($B$10="side decks < 0,4m",480*'Worksheet 1'!$I$17*'Worksheet 5c'!$E$16*COS(RADIANS(A48)))) -> FALSE | I48: 36 | BA48: 36 | BC48: FALSE | BK48: =IF($B$10="normal",961*'Worksheet 1'!$I$17*('Worksheet 5c'!$E$16/2-0.2)*COS(RADIANS(BI48)),IF($B$10="side decks < 0,4m",480*'Worksheet 1'!$I$17*'Worksheet 5c'!$E$16*COS(RADIANS(BI48)))) -> FALSE
A49: 37 | E49: =E48+F47 ->  | G49: =IF($B$10="normal",961*'Worksheet 1'!$I$17*('Worksheet 5c'!$E$16/2-0.2)*COS(RADIANS(A49)),IF($B$10="side decks < 0,4m",480*'Worksheet 1'!$I$17*'Worksheet 5c'!$E$16*COS(RADIANS(A49)))) -> FALSE | I49: 37 | BA49: 37 | BC49: FALSE | BK49: =IF($B$10="normal",961*'Worksheet 1'!$I$17*('Worksheet 5c'!$E$16/2-0.2)*COS(RADIANS(BI49)),IF($B$10="side decks < 0,4m",480*'Worksheet 1'!$I$17*'Worksheet 5c'!$E$16*COS(RADIANS(BI49)))) -> FALSE
A50: 38 | E50: =E49+F47 ->  | G50: =IF($B$10="normal",961*'Worksheet 1'!$I$17*('Worksheet 5c'!$E$16/2-0.2)*COS(RADIANS(A50)),IF($B$10="side decks < 0,4m",480*'Worksheet 1'!$I$17*'Worksheet 5c'!$E$16*COS(RADIANS(A50)))) -> FALSE | I50: 38 | BA50: 38 | BC50: FALSE | BK50: =IF($B$10="normal",961*'Worksheet 1'!$I$17*('Worksheet 5c'!$E$16/2-0.2)*COS(RADIANS(BI50)),IF($B$10="side decks < 0,4m",480*'Worksheet 1'!$I$17*'Worksheet 5c'!$E$16*COS(RADIANS(BI50)))) -> FALSE
A51: 39 | E51: =E50+F47 ->  | G51: =IF($B$10="normal",961*'Worksheet 1'!$I$17*('Worksheet 5c'!$E$16/2-0.2)*COS(RADIANS(A51)),IF($B$10="side decks < 0,4m",480*'Worksheet 1'!$I$17*'Worksheet 5c'!$E$16*COS(RADIANS(A51)))) -> FALSE | I51: 39 | BA51: 39 | BC51: FALSE | BK51: =IF($B$10="normal",961*'Worksheet 1'!$I$17*('Worksheet 5c'!$E$16/2-0.2)*COS(RADIANS(BI51)),IF($B$10="side decks < 0,4m",480*'Worksheet 1'!$I$17*'Worksheet 5c'!$E$16*COS(RADIANS(BI51)))) -> FALSE
A52: 40 | E52: =IF($B$9="N m",B52/9.806/$H$7,IF($B$9="kg m",B52/$H$7,IF($B$9="m",B52,"error"))) -> error | F52: =(E57-E52)/5 ->  | G52: =IF($B$10="normal",961*'Worksheet 1'!$I$17*('Worksheet 5c'!$E$16/2-0.2)*COS(RADIANS(A52)),IF($B$10="side decks < 0,4m",480*'Worksheet 1'!$I$17*'Worksheet 5c'!$E$16*COS(RADIANS(A52)))) -> FALSE | I52: 40 | BA52: 40 | BC52: FALSE | BK52: =IF($B$10="normal",961*'Worksheet 1'!$I$17*('Worksheet 5c'!$E$16/2-0.2)*COS(RADIANS(BI52)),IF($B$10="side decks < 0,4m",480*'Worksheet 1'!$I$17*'Worksheet 5c'!$E$16*COS(RADIANS(BI52)))) -> FALSE
A53: 41 | E53: =E52+F52 ->  | G53: =IF($B$10="normal",961*'Worksheet 1'!$I$17*('Worksheet 5c'!$E$16/2-0.2)*COS(RADIANS(A53)),IF($B$10="side decks < 0,4m",480*'Worksheet 1'!$I$17*'Worksheet 5c'!$E$16*COS(RADIANS(A53)))) -> FALSE | I53: 41 | BA53: 41 | BC53: FALSE | BK53: =IF($B$10="normal",961*'Worksheet 1'!$I$17*('Worksheet 5c'!$E$16/2-0.2)*COS(RADIANS(BI53)),IF($B$10="side decks < 0,4m",480*'Worksheet 1'!$I$17*'Worksheet 5c'!$E$16*COS(RADIANS(BI53)))) -> FALSE
A54: 42 | E54: =E53+F52 ->  | G54: =IF($B$10="normal",961*'Worksheet 1'!$I$17*('Worksheet 5c'!$E$16/2-0.2)*COS(RADIANS(A54)),IF($B$10="side decks < 0,4m",480*'Worksheet 1'!$I$17*'Worksheet 5c'!$E$16*COS(RADIANS(A54)))) -> FALSE | I54: 42 | BA54: 42 | BC54: FALSE | BK54: =IF($B$10="normal",961*'Worksheet 1'!$I$17*('Worksheet 5c'!$E$16/2-0.2)*COS(RADIANS(BI54)),IF($B$10="side decks < 0,4m",480*'Worksheet 1'!$I$17*'Worksheet 5c'!$E$16*COS(RADIANS(BI54)))) -> FALSE
A55: 43 | E55: =E54+F52 ->  | G55: =IF($B$10="normal",961*'Worksheet 1'!$I$17*('Worksheet 5c'!$E$16/2-0.2)*COS(RADIANS(A55)),IF($B$10="side decks < 0,4m",480*'Worksheet 1'!$I$17*'Worksheet 5c'!$E$16*COS(RADIANS(A55)))) -> FALSE | I55: 43 | BA55: 43 | BC55: FALSE | BK55: =IF($B$10="normal",961*'Worksheet 1'!$I$17*('Worksheet 5c'!$E$16/2-0.2)*COS(RADIANS(BI55)),IF($B$10="side decks < 0,4m",480*'Worksheet 1'!$I$17*'Worksheet 5c'!$E$16*COS(RADIANS(BI55)))) -> FALSE
A56: 44 | E56: =E55+F52 ->  | G56: =IF($B$10="normal",961*'Worksheet 1'!$I$17*('Worksheet 5c'!$E$16/2-0.2)*COS(RADIANS(A56)),IF($B$10="side decks < 0,4m",480*'Worksheet 1'!$I$17*'Worksheet 5c'!$E$16*COS(RADIANS(A56)))) -> FALSE | I56: 44 | BA56: 44 | BC56: FALSE | BK56: =IF($B$10="normal",961*'Worksheet 1'!$I$17*('Worksheet 5c'!$E$16/2-0.2)*COS(RADIANS(BI56)),IF($B$10="side decks < 0,4m",480*'Worksheet 1'!$I$17*'Worksheet 5c'!$E$16*COS(RADIANS(BI56)))) -> FALSE
A57: 45 | E57: =IF($B$9="N m",B57/9.806/$H$7,IF($B$9="kg m",B57/$H$7,IF($B$9="m",B57,"error"))) -> error | F57: =(E62-E57)/5 ->  | G57: =IF($B$10="normal",961*'Worksheet 1'!$I$17*('Worksheet 5c'!$E$16/2-0.2)*COS(RADIANS(A57)),IF($B$10="side decks < 0,4m",480*'Worksheet 1'!$I$17*'Worksheet 5c'!$E$16*COS(RADIANS(A57)))) -> FALSE | I57: 45 | BA57: 45 | BC57: FALSE | BK57: =IF($B$10="normal",961*'Worksheet 1'!$I$17*('Worksheet 5c'!$E$16/2-0.2)*COS(RADIANS(BI57)),IF($B$10="side decks < 0,4m",480*'Worksheet 1'!$I$17*'Worksheet 5c'!$E$16*COS(RADIANS(BI57)))) -> FALSE
A58: 46 | E58: =E57+F57 ->  | G58: =IF($B$10="normal",961*'Worksheet 1'!$I$17*('Worksheet 5c'!$E$16/2-0.2)*COS(RADIANS(A58)),IF($B$10="side decks < 0,4m",480*'Worksheet 1'!$I$17*'Worksheet 5c'!$E$16*COS(RADIANS(A58)))) -> FALSE | I58: 46 | BA58: 46 | BC58: FALSE | BK58: =IF($B$10="normal",961*'Worksheet 1'!$I$17*('Worksheet 5c'!$E$16/2-0.2)*COS(RADIANS(BI58)),IF($B$10="side decks < 0,4m",480*'Worksheet 1'!$I$17*'Worksheet 5c'!$E$16*COS(RADIANS(BI58)))) -> FALSE
A59: 47 | E59: =E58+F57 ->  | G59: =IF($B$10="normal",961*'Worksheet 1'!$I$17*('Worksheet 5c'!$E$16/2-0.2)*COS(RADIANS(A59)),IF($B$10="side decks < 0,4m",480*'Worksheet 1'!$I$17*'Worksheet 5c'!$E$16*COS(RADIANS(A59)))) -> FALSE | I59: 47 | BA59: 47 | BC59: FALSE | BK59: =IF($B$10="normal",961*'Worksheet 1'!$I$17*('Worksheet 5c'!$E$16/2-0.2)*COS(RADIANS(BI59)),IF($B$10="side decks < 0,4m",480*'Worksheet 1'!$I$17*'Worksheet 5c'!$E$16*COS(RADIANS(BI59)))) -> FALSE
A60: 48 | E60: =E59+F57 ->  | G60: =IF($B$10="normal",961*'Worksheet 1'!$I$17*('Worksheet 5c'!$E$16/2-0.2)*COS(RADIANS(A60)),IF($B$10="side decks < 0,4m",480*'Worksheet 1'!$I$17*'Worksheet 5c'!$E$16*COS(RADIANS(A60)))) -> FALSE | I60: 48 | BA60: 48 | BC60: FALSE | BK60: =IF($B$10="normal",961*'Worksheet 1'!$I$17*('Worksheet 5c'!$E$16/2-0.2)*COS(RADIANS(BI60)),IF($B$10="side decks < 0,4m",480*'Worksheet 1'!$I$17*'Worksheet 5c'!$E$16*COS(RADIANS(BI60)))) -> FALSE
A61: 49 | E61: =E60+F57 ->  | G61: =IF($B$10="normal",961*'Worksheet 1'!$I$17*('Worksheet 5c'!$E$16/2-0.2)*COS(RADIANS(A61)),IF($B$10="side decks < 0,4m",480*'Worksheet 1'!$I$17*'Worksheet 5c'!$E$16*COS(RADIANS(A61)))) -> FALSE | I61: 49 | BA61: 49 | BC61: FALSE | BK61: =IF($B$10="normal",961*'Worksheet 1'!$I$17*('Worksheet 5c'!$E$16/2-0.2)*COS(RADIANS(BI61)),IF($B$10="side decks < 0,4m",480*'Worksheet 1'!$I$17*'Worksheet 5c'!$E$16*COS(RADIANS(BI61)))) -> FALSE
A62: 50 | E62: =IF($B$9="N m",B62/9.806/$H$7,IF($B$9="kg m",B62/$H$7,IF($B$9="m",B62,"error"))) -> error | F62: =(#REF!-E62)/5 ->  | G62: =IF($B$10="normal",961*'Worksheet 1'!$I$17*('Worksheet 5c'!$E$16/2-0.2)*COS(RADIANS(A62)),IF($B$10="side decks < 0,4m",480*'Worksheet 1'!$I$17*'Worksheet 5c'!$E$16*COS(RADIANS(A62)))) -> FALSE | I62: 50 | BA62: 50 | BC62: FALSE | BK62: =IF($B$10="normal",961*'Worksheet 1'!$I$17*('Worksheet 5c'!$E$16/2-0.2)*COS(RADIANS(BI62)),IF($B$10="side decks < 0,4m",480*'Worksheet 1'!$I$17*'Worksheet 5c'!$E$16*COS(RADIANS(BI62)))) -> FALSE
BK63: =IF($B$10="normal",961*'Worksheet 1'!$I$17*('Worksheet 5c'!$E$16/2-0.2)*COS(RADIANS(BI63)),IF($B$10="side decks < 0,4m",480*'Worksheet 1'!$I$17*'Worksheet 5c'!$E$16*COS(RADIANS(BI63)))) -> FALSE
B64: point of intersection of righting moment curve and crew heeling moment curve | BK64: =IF($B$10="normal",961*'Worksheet 1'!$I$17*('Worksheet 5c'!$E$16/2-0.2)*COS(RADIANS(BI64)),IF($B$10="side decks < 0,4m",480*'Worksheet 1'!$I$17*'Worksheet 5c'!$E$16*COS(RADIANS(BI64)))) -> FALSE
B65: ΦC | BK65: =IF($B$10="normal",961*'Worksheet 1'!$I$17*('Worksheet 5c'!$E$16/2-0.2)*COS(RADIANS(BI65)),IF($B$10="side decks < 0,4m",480*'Worksheet 1'!$I$17*'Worksheet 5c'!$E$16*COS(RADIANS(BI65)))) -> FALSE
B66: =BG15 ->  | BK66: =IF($B$10="normal",961*'Worksheet 1'!$I$17*('Worksheet 5c'!$E$16/2-0.2)*COS(RADIANS(BI66)),IF($B$10="side decks < 0,4m",480*'Worksheet 1'!$I$17*'Worksheet 5c'!$E$16*COS(RADIANS(BI66)))) -> FALSE
BK67: =IF($B$10="normal",961*'Worksheet 1'!$I$17*('Worksheet 5c'!$E$16/2-0.2)*COS(RADIANS(BI67)),IF($B$10="side decks < 0,4m",480*'Worksheet 1'!$I$17*'Worksheet 5c'!$E$16*COS(RADIANS(BI67)))) -> FALSE
BK68: =IF($B$10="normal",961*'Worksheet 1'!$I$17*('Worksheet 5c'!$E$16/2-0.2)*COS(RADIANS(BI68)),IF($B$10="side decks < 0,4m",480*'Worksheet 1'!$I$17*'Worksheet 5c'!$E$16*COS(RADIANS(BI68)))) -> FALSE
N69: For a clean curve drawing, either insert values up to 50° or delete yellow cells in colum BB | BK69: =IF($B$10="normal",961*'Worksheet 1'!$I$17*('Worksheet 5c'!$E$16/2-0.2)*COS(RADIANS(BI69)),IF($B$10="side decks < 0,4m",480*'Worksheet 1'!$I$17*'Worksheet 5c'!$E$16*COS(RADIANS(BI69)))) -> FALSE
BK70: =IF($B$10="normal",961*'Worksheet 1'!$I$17*('Worksheet 5c'!$E$16/2-0.2)*COS(RADIANS(BI70)),IF($B$10="side decks < 0,4m",480*'Worksheet 1'!$I$17*'Worksheet 5c'!$E$16*COS(RADIANS(BI70)))) -> FALSE
BK71: =IF($B$10="normal",961*'Worksheet 1'!$I$17*('Worksheet 5c'!$E$16/2-0.2)*COS(RADIANS(BI71)),IF($B$10="side decks < 0,4m",480*'Worksheet 1'!$I$17*'Worksheet 5c'!$E$16*COS(RADIANS(BI71)))) -> FALSE
N72: Maximum moment LC1 | BK72: =IF($B$10="normal",961*'Worksheet 1'!$I$17*('Worksheet 5c'!$E$16/2-0.2)*COS(RADIANS(BI72)),IF($B$10="side decks < 0,4m",480*'Worksheet 1'!$I$17*'Worksheet 5c'!$E$16*COS(RADIANS(BI72)))) -> FALSE
N73: =MAX(C12:C62) ->  | BK73: =IF($B$10="normal",961*'Worksheet 1'!$I$17*('Worksheet 5c'!$E$16/2-0.2)*COS(RADIANS(BI73)),IF($B$10="side decks < 0,4m",480*'Worksheet 1'!$I$17*'Worksheet 5c'!$E$16*COS(RADIANS(BI73)))) -> FALSE
N74: downflooding angle | BK74: =IF($B$10="normal",961*'Worksheet 1'!$I$17*('Worksheet 5c'!$E$16/2-0.2)*COS(RADIANS(BI74)),IF($B$10="side decks < 0,4m",480*'Worksheet 1'!$I$17*'Worksheet 5c'!$E$16*COS(RADIANS(BI74)))) -> FALSE
N75: ='Worksheet 5c'!F19 -> 0 | BK75: =IF($B$10="normal",961*'Worksheet 1'!$I$17*('Worksheet 5c'!$E$16/2-0.2)*COS(RADIANS(BI75)),IF($B$10="side decks < 0,4m",480*'Worksheet 1'!$I$17*'Worksheet 5c'!$E$16*COS(RADIANS(BI75)))) -> FALSE
N76: Maximum at which degree? | BK76: =IF($B$10="normal",961*'Worksheet 1'!$I$17*('Worksheet 5c'!$E$16/2-0.2)*COS(RADIANS(BI76)),IF($B$10="side decks < 0,4m",480*'Worksheet 1'!$I$17*'Worksheet 5c'!$E$16*COS(RADIANS(BI76)))) -> FALSE
N77: =VLOOKUP(N73,C12:I62,7,FALSE) ->  | BK77: =IF($B$10="normal",961*'Worksheet 1'!$I$17*('Worksheet 5c'!$E$16/2-0.2)*COS(RADIANS(BI77)),IF($B$10="side decks < 0,4m",480*'Worksheet 1'!$I$17*'Worksheet 5c'!$E$16*COS(RADIANS(BI77)))) -> FALSE | BL77: =IF(AND(BJ76<BK76,BJ77>BK77),1,"") -> 
N78: Maximum value up to PhiDA | BI78: =BI77+0.01 ->  | BJ78: =BJ77+$BG$23 ->  | BK78: =IF($B$10="normal",961*'Worksheet 1'!$I$17*('Worksheet 5c'!$E$16/2-0.2)*COS(RADIANS(BI78)),IF($B$10="side decks < 0,4m",480*'Worksheet 1'!$I$17*'Worksheet 5c'!$E$16*COS(RADIANS(BI78)))) -> FALSE
N79: =IF(N77<N75,N73,LOOKUP(N75,A12:A62,C12:C62)) ->  | BK79: =IF($B$10="normal",961*'Worksheet 1'!$I$17*('Worksheet 5c'!$E$16/2-0.2)*COS(RADIANS(BI79)),IF($B$10="side decks < 0,4m",480*'Worksheet 1'!$I$17*'Worksheet 5c'!$E$16*COS(RADIANS(BI79)))) -> FALSE
BK80: =IF($B$10="normal",961*'Worksheet 1'!$I$17*('Worksheet 5c'!$E$16/2-0.2)*COS(RADIANS(BI80)),IF($B$10="side decks < 0,4m",480*'Worksheet 1'!$I$17*'Worksheet 5c'!$E$16*COS(RADIANS(BI80)))) -> FALSE
BK81: =IF($B$10="normal",961*'Worksheet 1'!$I$17*('Worksheet 5c'!$E$16/2-0.2)*COS(RADIANS(BI81)),IF($B$10="side decks < 0,4m",480*'Worksheet 1'!$I$17*'Worksheet 5c'!$E$16*COS(RADIANS(BI81)))) -> FALSE
BK82: =IF($B$10="normal",961*'Worksheet 1'!$I$17*('Worksheet 5c'!$E$16/2-0.2)*COS(RADIANS(BI82)),IF($B$10="side decks < 0,4m",480*'Worksheet 1'!$I$17*'Worksheet 5c'!$E$16*COS(RADIANS(BI82)))) -> FALSE
BK83: =IF($B$10="normal",961*'Worksheet 1'!$I$17*('Worksheet 5c'!$E$16/2-0.2)*COS(RADIANS(BI83)),IF($B$10="side decks < 0,4m",480*'Worksheet 1'!$I$17*'Worksheet 5c'!$E$16*COS(RADIANS(BI83)))) -> FALSE
BK84: =IF($B$10="normal",961*'Worksheet 1'!$I$17*('Worksheet 5c'!$E$16/2-0.2)*COS(RADIANS(BI84)),IF($B$10="side decks < 0,4m",480*'Worksheet 1'!$I$17*'Worksheet 5c'!$E$16*COS(RADIANS(BI84)))) -> FALSE
BK85: =IF($B$10="normal",961*'Worksheet 1'!$I$17*('Worksheet 5c'!$E$16/2-0.2)*COS(RADIANS(BI85)),IF($B$10="side decks < 0,4m",480*'Worksheet 1'!$I$17*'Worksheet 5c'!$E$16*COS(RADIANS(BI85)))) -> FALSE
BK86: =IF($B$10="normal",961*'Worksheet 1'!$I$17*('Worksheet 5c'!$E$16/2-0.2)*COS(RADIANS(BI86)),IF($B$10="side decks < 0,4m",480*'Worksheet 1'!$I$17*'Worksheet 5c'!$E$16*COS(RADIANS(BI86)))) -> FALSE
BK87: =IF($B$10="normal",961*'Worksheet 1'!$I$17*('Worksheet 5c'!$E$16/2-0.2)*COS(RADIANS(BI87)),IF($B$10="side decks < 0,4m",480*'Worksheet 1'!$I$17*'Worksheet 5c'!$E$16*COS(RADIANS(BI87)))) -> FALSE
BK88: =IF($B$10="normal",961*'Worksheet 1'!$I$17*('Worksheet 5c'!$E$16/2-0.2)*COS(RADIANS(BI88)),IF($B$10="side decks < 0,4m",480*'Worksheet 1'!$I$17*'Worksheet 5c'!$E$16*COS(RADIANS(BI88)))) -> FALSE
BK89: =IF($B$10="normal",961*'Worksheet 1'!$I$17*('Worksheet 5c'!$E$16/2-0.2)*COS(RADIANS(BI89)),IF($B$10="side decks < 0,4m",480*'Worksheet 1'!$I$17*'Worksheet 5c'!$E$16*COS(RADIANS(BI89)))) -> FALSE
BK90: =IF($B$10="normal",961*'Worksheet 1'!$I$17*('Worksheet 5c'!$E$16/2-0.2)*COS(RADIANS(BI90)),IF($B$10="side decks < 0,4m",480*'Worksheet 1'!$I$17*'Worksheet 5c'!$E$16*COS(RADIANS(BI90)))) -> FALSE
BK91: =IF($B$10="normal",961*'Worksheet 1'!$I$17*('Worksheet 5c'!$E$16/2-0.2)*COS(RADIANS(BI91)),IF($B$10="side decks < 0,4m",480*'Worksheet 1'!$I$17*'Worksheet 5c'!$E$16*COS(RADIANS(BI91)))) -> FALSE
BK92: =IF($B$10="normal",961*'Worksheet 1'!$I$17*('Worksheet 5c'!$E$16/2-0.2)*COS(RADIANS(BI92)),IF($B$10="side decks < 0,4m",480*'Worksheet 1'!$I$17*'Worksheet 5c'!$E$16*COS(RADIANS(BI92)))) -> FALSE
BK93: =IF($B$10="normal",961*'Worksheet 1'!$I$17*('Worksheet 5c'!$E$16/2-0.2)*COS(RADIANS(BI93)),IF($B$10="side decks < 0,4m",480*'Worksheet 1'!$I$17*'Worksheet 5c'!$E$16*COS(RADIANS(BI93)))) -> FALSE
BK94: =IF($B$10="normal",961*'Worksheet 1'!$I$17*('Worksheet 5c'!$E$16/2-0.2)*COS(RADIANS(BI94)),IF($B$10="side decks < 0,4m",480*'Worksheet 1'!$I$17*'Worksheet 5c'!$E$16*COS(RADIANS(BI94)))) -> FALSE
BK95: =IF($B$10="normal",961*'Worksheet 1'!$I$17*('Worksheet 5c'!$E$16/2-0.2)*COS(RADIANS(BI95)),IF($B$10="side decks < 0,4m",480*'Worksheet 1'!$I$17*'Worksheet 5c'!$E$16*COS(RADIANS(BI95)))) -> FALSE
BK96: =IF($B$10="normal",961*'Worksheet 1'!$I$17*('Worksheet 5c'!$E$16/2-0.2)*COS(RADIANS(BI96)),IF($B$10="side decks < 0,4m",480*'Worksheet 1'!$I$17*'Worksheet 5c'!$E$16*COS(RADIANS(BI96)))) -> FALSE
BK97: =IF($B$10="normal",961*'Worksheet 1'!$I$17*('Worksheet 5c'!$E$16/2-0.2)*COS(RADIANS(BI97)),IF($B$10="side decks < 0,4m",480*'Worksheet 1'!$I$17*'Worksheet 5c'!$E$16*COS(RADIANS(BI97)))) -> FALSE
BK98: =IF($B$10="normal",961*'Worksheet 1'!$I$17*('Worksheet 5c'!$E$16/2-0.2)*COS(RADIANS(BI98)),IF($B$10="side decks < 0,4m",480*'Worksheet 1'!$I$17*'Worksheet 5c'!$E$16*COS(RADIANS(BI98)))) -> FALSE
BK99: =IF($B$10="normal",961*'Worksheet 1'!$I$17*('Worksheet 5c'!$E$16/2-0.2)*COS(RADIANS(BI99)),IF($B$10="side decks < 0,4m",480*'Worksheet 1'!$I$17*'Worksheet 5c'!$E$16*COS(RADIANS(BI99)))) -> FALSE
BK100: =IF($B$10="normal",961*'Worksheet 1'!$I$17*('Worksheet 5c'!$E$16/2-0.2)*COS(RADIANS(BI100)),IF($B$10="side decks < 0,4m",480*'Worksheet 1'!$I$17*'Worksheet 5c'!$E$16*COS(RADIANS(BI100)))) -> FALSE
BK101: =IF($B$10="normal",961*'Worksheet 1'!$I$17*('Worksheet 5c'!$E$16/2-0.2)*COS(RADIANS(BI101)),IF($B$10="side decks < 0,4m",480*'Worksheet 1'!$I$17*'Worksheet 5c'!$E$16*COS(RADIANS(BI101)))) -> FALSE
BK102: =IF($B$10="normal",961*'Worksheet 1'!$I$17*('Worksheet 5c'!$E$16/2-0.2)*COS(RADIANS(BI102)),IF($B$10="side decks < 0,4m",480*'Worksheet 1'!$I$17*'Worksheet 5c'!$E$16*COS(RADIANS(BI102)))) -> FALSE
BK103: =IF($B$10="normal",961*'Worksheet 1'!$I$17*('Worksheet 5c'!$E$16/2-0.2)*COS(RADIANS(BI103)),IF($B$10="side decks < 0,4m",480*'Worksheet 1'!$I$17*'Worksheet 5c'!$E$16*COS(RADIANS(BI103)))) -> FALSE
BK104: =IF($B$10="normal",961*'Worksheet 1'!$I$17*('Worksheet 5c'!$E$16/2-0.2)*COS(RADIANS(BI104)),IF($B$10="side decks < 0,4m",480*'Worksheet 1'!$I$17*'Worksheet 5c'!$E$16*COS(RADIANS(BI104)))) -> FALSE
BK105: =IF($B$10="normal",961*'Worksheet 1'!$I$17*('Worksheet 5c'!$E$16/2-0.2)*COS(RADIANS(BI105)),IF($B$10="side decks < 0,4m",480*'Worksheet 1'!$I$17*'Worksheet 5c'!$E$16*COS(RADIANS(BI105)))) -> FALSE
BK106: =IF($B$10="normal",961*'Worksheet 1'!$I$17*('Worksheet 5c'!$E$16/2-0.2)*COS(RADIANS(BI106)),IF($B$10="side decks < 0,4m",480*'Worksheet 1'!$I$17*'Worksheet 5c'!$E$16*COS(RADIANS(BI106)))) -> FALSE
BK107: =IF($B$10="normal",961*'Worksheet 1'!$I$17*('Worksheet 5c'!$E$16/2-0.2)*COS(RADIANS(BI107)),IF($B$10="side decks < 0,4m",480*'Worksheet 1'!$I$17*'Worksheet 5c'!$E$16*COS(RADIANS(BI107)))) -> FALSE
BK108: =IF($B$10="normal",961*'Worksheet 1'!$I$17*('Worksheet 5c'!$E$16/2-0.2)*COS(RADIANS(BI108)),IF($B$10="side decks < 0,4m",480*'Worksheet 1'!$I$17*'Worksheet 5c'!$E$16*COS(RADIANS(BI108)))) -> FALSE
BK109: =IF($B$10="normal",961*'Worksheet 1'!$I$17*('Worksheet 5c'!$E$16/2-0.2)*COS(RADIANS(BI109)),IF($B$10="side decks < 0,4m",480*'Worksheet 1'!$I$17*'Worksheet 5c'!$E$16*COS(RADIANS(BI109)))) -> FALSE
BK110: =IF($B$10="normal",961*'Worksheet 1'!$I$17*('Worksheet 5c'!$E$16/2-0.2)*COS(RADIANS(BI110)),IF($B$10="side decks < 0,4m",480*'Worksheet 1'!$I$17*'Worksheet 5c'!$E$16*COS(RADIANS(BI110)))) -> FALSE
BK111: =IF($B$10="normal",961*'Worksheet 1'!$I$17*('Worksheet 5c'!$E$16/2-0.2)*COS(RADIANS(BI111)),IF($B$10="side decks < 0,4m",480*'Worksheet 1'!$I$17*'Worksheet 5c'!$E$16*COS(RADIANS(BI111)))) -> FALSE
BK112: =IF($B$10="normal",961*'Worksheet 1'!$I$17*('Worksheet 5c'!$E$16/2-0.2)*COS(RADIANS(BI112)),IF($B$10="side decks < 0,4m",480*'Worksheet 1'!$I$17*'Worksheet 5c'!$E$16*COS(RADIANS(BI112)))) -> FALSE

Sheet Worksheet 6a
L1: Comments
M2: Derived values
A3: ISO 12217-1:2017 CALCULATION WORKSHEET No. 6a RESISTANCE TO WAVES+WIND | M3: Input values
A5: =CONCATENATE(coverSheet!B5," ",coverSheet!B12) -> 
A6: Input data: | F6: Design categories A and B only | L6: to be used for calculation of angle of heel due to wind in category C also (see worksheet 7)
A7: Item | B7: Symbol | C7: Unit | D7: mLA | E7: mMO | F7: Ref.
A8: Mass in minimum operating condition | B8: mMO | C8: kg | E8: ='Worksheet 1'!I43 -> 0.00 | F8: 3.4.3
A9: Loaded arrival masss | B9: mLA | C9: kg | D9: ='Worksheet 1'!I36 -> 0.00 | F9: 3.4.6
A10: Displacement volume ( = mMO/1025 or mLA/1025) | B10: VD | C10: m3 | D10: =D9/1025 -> 0.00 | E10: =E8/1025 -> 0.00 | F10: 3.4.7
A11: Windage area (of above water profile of boat) | B11: ALV | C11: m2 | E11: ='Worksheet 2'!G11 -> 0.00 | F11: 3.3.7
A12: Windage area to be used (not to be < 0.5 LHBH) | B12: A'LV | C12: m2 | D12: =IF(OR('Worksheet 1'!D7="C",'Worksheet 1'!D7="D"),D11,MAX(D11,0.5*'Worksheet 1'!I9*'Worksheet 2'!G13)) -> 0.00 | E12: =IF(OR('Worksheet 1'!D7="C",'Worksheet 1'!D7="D"),E11,MAX(0.5*'Worksheet 1'!I9*'Worksheet 2'!G13,E11)) -> 0.00 | F12: 6.3.2 | L12: greater of ALV or 0,5*LH*BH !
A13: Length waterline | B13: LWL | C13: m | D13: ='Worksheet 1'!I10 -> 0.00 | F13: 3.3.2
A14: Lever between centroids of above and below water areas | B14: h | C14: m | F14: 6.3.2
A15: Draught of canoe body at the mid-point of the waterline length | B15: TM | C15: m
A16: Downflooding angle | B16: fDA | C16: degrees | D16: ='Worksheet 3'!H37 -> 0 | E16: ='Worksheet 3'!H36 -> 0 | F16: 3.2.2
A17: Calculation windspeed | B17: vW | C17: m/s | D17: =IF('Worksheet 1'!D7="A",28,IF('Worksheet 1'!D7="B",21,IF('Worksheet 1'!D7="C",17,13))) -> 13 | E17: =IF('Worksheet 1'!D7="A",28,IF('Worksheet 1'!D7="B",21,IF('Worksheet 1'!D7="C",17,13))) -> 13 | F17: 3.5.1 | L17: 28 m/s for cat A, 21 m/s for cat B

Sheet Worksheet 6b
N1: Comments
O2: Derived values
A3: ISO 12217-1:2017 CALCULATION WORKSHEET No. 6b RESISTANCE TO WAVES+WIND | O3: Input values
A5: =CONCATENATE(coverSheet!B5," ",coverSheet!B12) -> 
A7: Rolling in beam waves and wind: | F7: Design categories A and B only | N7: to be used for calculation of angle of heel due to wind in category C also (see worksheet 7)
A9: Item | B9: Symbol | C9: Unit | D9: mLA | E9: mMO | F9: Ref.
A10: Second wind heel equilibrium angle | C10: degrees | F10: Fig. 6 | N10: To be taken from righting moment curve, see worksheets 6c(mLA) and 6d(mMO)
A11: Least value of øDA, 500 or second wind heel equilibrium angle | B11: øA2 | C11: degrees | D11: =MIN(D10,50,'Worksheet 3'!H37) -> 50.0 | E11: =MIN(E10,50,'Worksheet 3'!H36) -> 50.0 | F11: Fig. 6
A12: Wind heeling moment (1) = 0.53 A'LV h vW2 | B12: MW1 | C12: N-m | D12: =IF('Worksheet 6a'!$D$14="","",0.53*'Worksheet 6a'!D12*'Worksheet 6a'!D14*'Worksheet 6a'!D17^2) ->  | E12: =IF('Worksheet 6a'!$E$14="","",0.53*'Worksheet 6a'!E12*'Worksheet 6a'!E14*'Worksheet 6a'!E17^2) ->  | F12: 6.3.2 | N12: Please be aware that Formula 2 usually gives a more advantageous result.
A13: Wind heeling moment (2) = 0.30 A'LV (A'LV / LWL + TM) vW2 | B13: MW2 | D13: =IF('Worksheet 6a'!$D$15="","",0.3*'Worksheet 6a'!$D$12*('Worksheet 6a'!$D$12/'Worksheet 6a'!$D$13+'Worksheet 6a'!$D$15)*'Worksheet 6a'!$D$17^2) ->  | E13: =IF('Worksheet 6a'!$E$15="","",0.3*'Worksheet 6a'!$E$12*('Worksheet 6a'!$E$12/'Worksheet 6a'!$E$13+'Worksheet 6a'!$E$15)*'Worksheet 6a'!$E$17^2) -> 
A14: Assumed roll angle Category A = (25+20/VD) | B14: øR | C14: degrees | D14: =IF('Worksheet 1'!D7="A",25+20/'Worksheet 6a'!D10,IF('Worksheet 1'!D7="B",20+20/'Worksheet 6a'!D10,"n.a.")) -> n.a. | E14: =IF('Worksheet 1'!D7="A",25+20/'Worksheet 6a'!E10,IF('Worksheet 1'!D7="B",20+20/'Worksheet 6a'!E10,"n.a.")) -> n.a. | F14: 6.3.2
A15: Category B = (20+20/VD)
A16: Area 1 (see fig. 6) | B16: A1 | C16: any | D16: ='Worksheet 6c'!BL31 ->  | E16: ='Worksheet 6d'!BL31 ->  | F16: Fig. 6
A17: Area 2 (see fig. 6) | B17: A2 | C17: any | D17: ='Worksheet 6c'!BN31 ->  | E17: ='Worksheet 6d'!BN31 ->  | F17: Fig. 6
A18: Ratio of A2/A1 | C18: -- | D18: =D17/D16 ->  | E18: =E17/E16 ->  | F18: 6.3.2 | N18: Please fill in worksheets 6c (mLA) and 6d (mMO)
A19: Is ratio of A2/A1 greater than or equal to 1.0? | B19: YES / NO | D19: =IF(D18>1,"YES", "NO") ->  | E19: =IF(E18>1,"YES", "NO") ->  | F19: 6.3.2
A21: Resistance to waves:
A23: Item | B23: Symbol | C23: Unit | D23: mLA | E23: mMO | F23: Ref.
A24: Least value of øDA, 500 or second wind heel equilibrium angle | C24: degrees | D24: =D11 -> 50.00 | E24: =E11 -> 50.00 | F24: 6.3.3
A25: Heel angle when righting moment is maximum | B25: øGZMax | C25: degrees | D25: ='Worksheet 6c'!C128 ->  | E25: ='Worksheet 6d'!C128 ->  | F25: 6.3.3
A26: If øGZMax is greater than or equal to 30o | B26: RM30 | C26: kN m | D26: =IF(D25>=30,'Worksheet 6c'!C68/1000,"n.a.") ->  | E26: =IF(E25>=30,'Worksheet 6d'!C68/1000,"n.a.") ->  | F26: 6.3.3a)
A27: Max value of righting moment @ 30o heel?
A28: Required value of righting moment | C28: kN m | D28: =IF('Worksheet 1'!D7="A",25,7) -> 7.00 | E28: =IF('Worksheet 1'!D7="A",25,7) -> 7.00 | F28: 6.3.3a)
A29: Is RM30 greater than or equal to required max value? | D29: =IF(D25<30,"n.a.",IF(D26>=D28, "PASS","FAIL")) ->  | E29: =IF(E25<30,"n.a.",IF(E26>=E28, "PASS","FAIL")) ->  | F29: 6.3.3b)
A30: Value of righting lever at 300 = RM30/(9.806*mass) | B30: GZ30 | C30: m | D30: =IF(D25>=30,(D26*1000)/('Worksheet 1'!I36*9.806),"n.a.") ->  | E30: =IF(E25>=30,(E26*1000)/('Worksheet 1'!I43*9.806),"n.a.") ->  | F30: 3.5.10
A31: Required value of righting lever at 300 | C31: m | D31: 0.20 | E31: 0.20 | F31: 6.3.3a)
A32: Is GZ30 greater than or equal to required max value? | D32: =IF(D25<30,"n.a.",IF(D30>=D31, "PASS","FAIL")) ->  | E32: =IF(E25<30,"n.a.",IF(E30>=E31, "PASS","FAIL")) ->  | F32: 6.3.3a)
A33: IF øGZMax is less than 30o | B33: RMMAX | C33: kN m | D33: ='Worksheet 6c'!C127*9.806*'Worksheet 1'!I36/1000 ->  | E33: ='Worksheet 6d'!C127*9.806*'Worksheet 1'!I43/1000 ->  | F33: 6.3.3b)
A34: Max value of righting moment
A35: Required value of RMMAX (A = 750/øGZMax, B = 210/øGZMax | C35: kN m | D35: =IF('Worksheet 1'!D7="A",750/'Worksheet 6b'!D25,IF('Worksheet 1'!D7="B",210/'Worksheet 6b'!D25,"n.a.")) -> n.a. | E35: =IF('Worksheet 1'!D7="A",750/'Worksheet 6b'!E25,IF('Worksheet 1'!D7="B",210/'Worksheet 6b'!E25,"n.a.")) -> n.a. | F35: 6.3.3b)
A36: Is RMMAX greater than or equal to required max value? | D36: =IF(D25>=30,"n.a.",IF(D33>=D35,"PASS","Fail")) ->  | E36: =IF(E25>=30,"n.a.",IF(E33>=E35,"PASS","Fail")) ->  | F36: 6.3.3b)
A37: Max value of righting lever = RMMAX/(9.806*mass) | B37: GZMax | C37: m | D37: =D33*1000/9.806/'Worksheet 1'!I36 ->  | E37: =E33*1000/9.806/'Worksheet 1'!I43 ->  | F37: 3.5.10
A38: Required max value of righting lever = 6/øGZMax | C38: m | D38: =IF(D25>=30,"n.a.",6/D25) ->  | E38: =IF(E25>=30,"n.a.",6/E25) ->  | F38: 6.3.3b)
A39: Is GZMAX greater than or equal to the required max value? PASS / FAIL | D39: =IF(D25>=30,"n.a.",IF(D37>=D38,"PASS","Fail")) ->  | E39: =IF(E25>=30,"n.a.",IF(E37>=E38,"PASS","Fail")) ->  | F39: 6.3.3b)
A41: Design Category given: NB: Boat must have ratio of A2/A1 greater | F41: =IF(AND(MIN(D18:E18)>1,COUNTIF(D29:E39,"PASS")=4),'Worksheet 1'!D7,"Fail") -> 
A42: than or equal to 1.0, and also get PASS twice under resistance to waves.

Sheet Worksheet 6c
O1: Comments
P2: Derived values
B3: ISO 12217-1:2017 CALCULATION WORKSHEET No. 6c curve of righting moment mLA | P3: Input values
AW4: list:
A5: =CONCATENATE(coverSheet!B5," ",coverSheet!B12) -> 
A7: insert curve of righting moment in 5° steps in one of following units: | AW7: MW1
B8: N m | C8: kg m | D8: m | AW8: MW2
A9: chosen unit
A10: chose of MW | BB10: Winkel [°] | BC10: Hebelarm [m] | BD10: GZ + Mw | BE10: Diff(B-A/5) | BF10: Berechnung Schnittpunkt Kurve und Mw | BG10: Null-Linie hervorgehoben | BK10: Wind Heeling moment curve | BL10: Flächen-berechnung | BM10: A1 | BN10: Flächen-berechnung | BO10: A2
A12: heel angle[°] | B12: insert Righting Arm/Moment [Nm, kg m, m] | C12: Righting Moment [Nm] | D12: Righting Moment [kg m] | E12: Arm Gz [m] | F12: Diff(B-A/5) | G12: Basis | H12: Wind Heeling moment curve [m] | AF12: heel angle | AG12: Righting Moment [Nm] | AH12: Righting Moment [Nm] up to ΦDA | BB12: heeling angle[°] | BC12: Arm [m] | BD12: Gz + Mw | BF12: calc. of point of intersection Gz and MW | BI12: Arm [m] | BK12: Wind Heeling moment curve [m]
A13: -25 | C13: =D13*9.806 ->  | D13: =E13*'Worksheet 1'!$I$36 ->  | E13: =IF($B$9="N m",B13/9.806/'Worksheet 1'!$I$36,IF($B$9="kg m",B13/'Worksheet 1'!$I$36,IF($B$9="m",B13,"error"))) -> error | F13: =(E18-E13)/5 ->  | G13: 0 | H13: =$AX$15 ->  | AF13: -25 | AG13: =C13 ->  | AH13: =IF(AF13<=$AG$111,AG13,"") ->  | AW13: Mw | AX13: =IF(B10="MW1",'Worksheet 6b'!D12,IF(B10="MW2",'Worksheet 6b'!D13,"")) ->  | AY13: Nm | BB13: -25 | BC13: =E13 -> error | BD13: =BC13-$AX$15 ->  | BF13: =LOOKUP(0,BD13:BD108,BB13:BB108) ->  | BG13: Vorkomma | BH13: -25 | BI13: =E13 -> error | BJ13: 0 | BK13: =$H$13 ->  | BM13: =IF(AND(BB13>$BL$20,BB13<=$BL$22),BD13,"") ->  | BO13: =IF(AND(BB13>=$AX$25,BB13<=$AZ$25),BD13,"") -> 
A14: -24 | C14: =D14*9.806 ->  | D14: =E14*'Worksheet 1'!$I$36 ->  | E14: =E13+F13 ->  | G14: 0 | H14: =$AX$15 ->  | AF14: -24 | AG14: =C14 ->  | AH14: =IF(AF14<=$AG$111,AG14,"") ->  | AW14: Mw | AX14: =AX13/9.806 ->  | AY14: kg m | BB14: -24 | BC14: =E14 ->  | BD14: =BC14-$AX$15 ->  | BF14: =(-1)*BF16/((-1)*BF16+BF17) ->  | BG14: Nachkomma | BH14: -24 | BI14: =E14 ->  | BJ14: 0 | BK14: =$H$13 ->  | BM14: =IF(AND(BB14>$BL$20,BB14<=$BL$22),BD14,"") ->  | BO14: =IF(AND(BB14>=$AX$25,BB14<=$AZ$25),BD14,"") -> 
A15: -23 | D15: =E15*'Worksheet 1'!$I$36 ->  | E15: =E14+F13 ->  | G15: 0 | AF15: -23 | AW15: Mw | AX15: =AX14/'Worksheet 1'!I36 ->  | AY15: m | BB15: -23 | BH15: -23 | BJ15: 0
A16: -22 | D16: =E16*'Worksheet 1'!$I$36 ->  | E16: =E15+F13 ->  | G16: 0 | AF16: -22 | AW16: Phi W | AX16: =BF20 ->  | BB16: -22 | BF16: =LOOKUP(BF13,BB13:BB108,BD13:BD108) ->  | BG16: Nachkomma | BH16: -22 | BJ16: 0
A17: -21 | D17: =E17*'Worksheet 1'!$I$36 ->  | E17: =E16+F13 ->  | G17: 0 | AF17: -21 | AW17: Phi A2 | AX17: ='Worksheet 6b'!D11 -> 50 | BB17: -21 | BF17: =LOOKUP(BF13+1,BB13:BB108,BD13:BD108) ->  | BG17: calc. | BH17: -21 | BJ17: 0
A18: -20 | D18: =E18*'Worksheet 1'!$I$36 ->  | E18: =IF($B$9="N m",B18/9.806/'Worksheet 1'!$I$36,IF($B$9="kg m",B18/'Worksheet 1'!$I$36,IF($B$9="m",B18,"error"))) -> error | F18: =(E23-E18)/5 ->  | G18: 0 | AF18: -20 | AW18: Phi R | AX18: ='Worksheet 6b'!D14 -> n.a. | BB18: -20 | BC18: error | BH18: -20 | BI18: error | BJ18: 0 | BL18: A1 | BN18: A2
A19: -19 | D19: =E19*'Worksheet 1'!$I$36 ->  | E19: =E18+F18 ->  | G19: 0 | AF19: -19 | BB19: -19 | BF19: ΦW | BH19: -19 | BJ19: 0 | BL19: untere Grenze | BN19: untere Grenze
A20: -18 | D20: =E20*'Worksheet 1'!$I$36 ->  | E20: =E19+F18 ->  | G20: 0 | AF20: -18 | AW20: Max mLA | AY20: =MAX(E13:E108) ->  | BB20: -18 | BF20: =BF13+BF14 ->  | BG20: degrees | BH20: -18 | BJ20: 0 | BL20: =ROUNDUP(AX24,0) ->  | BN20: =ROUNDUP(AX25,0) -> 
A21: -17 | D21: =E21*'Worksheet 1'!$I$36 ->  | E21: =E20+F18 ->  | G21: 0 | AF21: -17 | AW21: heel at GZ max | AY21: =MATCH(AY20,BC39:BC108,0) ->  | BB21: -17 | BH21: -17 | BJ21: 0 | BL21: obere Grenze | BN21: obere Grenze
A22: -16 | D22: =E22*'Worksheet 1'!$I$36 ->  | E22: =E21+F18 ->  | G22: 0 | AF22: -16 | BB22: -16 | BH22: -16 | BJ22: 0 | BL22: =ROUNDDOWN(AZ24,0) ->  | BN22: =ROUNDDOWN(AZ25,0) -> 50
A23: -15 | D23: =E23*'Worksheet 1'!$I$36 ->  | E23: =IF($B$9="N m",B23/9.806/'Worksheet 1'!$I$36,IF($B$9="kg m",B23/'Worksheet 1'!$I$36,IF($B$9="m",B23,"error"))) -> error | F23: =(E28-E23)/5 ->  | G23: 0 | AF23: -15 | BB23: -15 | BC23: error | BH23: -15 | BI23: error | BJ23: 0 | BL23: Flächenber. A1 | BN23: Flächenber. A1
A24: -14 | D24: =E24*'Worksheet 1'!$I$36 ->  | E24: =E23+F23 ->  | G24: 0 | AF24: -14 | AW24: A1 von | AX24: =AX16-AX18 ->  | AY24: bis | AZ24: =AX16 ->  | BB24: -14 | BH24: -14 | BJ24: 0 | BL24: =(-1)*SUM(BM13:BM108) ->  | BN24: =SUM(BO13:BO108) -> 
A25: -13 | D25: =E25*'Worksheet 1'!$I$36 ->  | E25: =E24+F23 ->  | G25: 0 | AF25: -13 | AW25: A2 von | AX25: =AX16 ->  | AY25: bis | AZ25: =AX17 -> 50.00 | BB25: -13 | BH25: -13 | BJ25: 0 | BL25: Grenzwert, Nachkomma | BN25: Grenzwert, Nachkomma
A26: -12 | D26: =E26*'Worksheet 1'!$I$36 ->  | E26: =E25+F23 ->  | G26: 0 | AF26: -12 | BB26: -12 | BH26: -12 | BJ26: 0 | BL26: =(-1)*AX24-(-1)*(INT(AX24)+1) ->  | BN26: =AZ25-INT(AZ25) -> 0.0000000
A27: -11 | D27: =E27*'Worksheet 1'!$I$36 ->  | E27: =E26+F23 ->  | G27: 0 | AF27: -11 | BB27: -11 | BH27: -11 | BJ27: 0 | BL27: =(-1)*LOOKUP(BL20,BB13:BB108,BD13:BD108) ->  | BN27: =LOOKUP(BN22+1,BB13:BB108,BD13:BD108) -> 
A28: -10 | D28: =E28*'Worksheet 1'!$I$36 ->  | E28: =IF($B$9="N m",B28/9.806/'Worksheet 1'!$I$36,IF($B$9="kg m",B28/'Worksheet 1'!$I$36,IF($B$9="m",B28,"error"))) -> error | F28: =(E33-E28)/5 ->  | G28: 0 | AF28: -10 | BB28: -10 | BC28: error | BH28: -10 | BI28: error | BJ28: 0 | BL28: =BL27*BL26 ->  | BN28: =BN27*BN26 -> 
A29: -9 | D29: =E29*'Worksheet 1'!$I$36 ->  | E29: =E28+F28 ->  | G29: 0 | AF29: -9 | BB29: -9 | BH29: -9 | BJ29: 0
A30: -8 | D30: =E30*'Worksheet 1'!$I$36 ->  | E30: =E29+F28 ->  | G30: 0 | AF30: -8 | BB30: -8 | BH30: -8 | BJ30: 0 | BL30: Gesamt A1 | BN30: Gesamt A2
A31: -7 | D31: =E31*'Worksheet 1'!$I$36 ->  | E31: =E30+F28 ->  | G31: 0 | AF31: -7 | BB31: -7 | BH31: -7 | BJ31: 0 | BL31: =BL24+BL28 ->  | BN31: =BN24+BN28 -> 
A32: -6 | D32: =E32*'Worksheet 1'!$I$36 ->  | E32: =E31+F28 ->  | G32: 0 | AF32: -6 | BB32: -6 | BH32: -6 | BJ32: 0
A33: -5 | D33: =E33*'Worksheet 1'!$I$36 ->  | E33: =IF($B$9="N m",B33/9.806/'Worksheet 1'!$I$36,IF($B$9="kg m",B33/'Worksheet 1'!$I$36,IF($B$9="m",B33,"error"))) -> error | F33: =(E38-E33)/5 ->  | G33: 0 | AF33: -5 | BB33: -5 | BC33: error | BH33: -5 | BI33: error | BJ33: 0
A34: -4 | D34: =E34*'Worksheet 1'!$I$36 ->  | E34: =E33+F33 ->  | G34: 0 | AF34: -4 | BB34: -4 | BH34: -4 | BJ34: 0
A35: -3 | D35: =E35*'Worksheet 1'!$I$36 ->  | E35: =E34+F33 ->  | G35: 0 | AF35: -3 | BB35: -3 | BH35: -3 | BJ35: 0
A36: -2 | D36: =E36*'Worksheet 1'!$I$36 ->  | E36: =E35+F33 ->  | G36: 0 | AF36: -2 | BB36: -2 | BH36: -2 | BJ36: 0
A37: -1 | D37: =E37*'Worksheet 1'!$I$36 ->  | E37: =E36+F33 ->  | G37: 0 | AF37: -1 | BB37: -1 | BH37: -1 | BJ37: 0
A38: 0 | D38: =E38*'Worksheet 1'!$I$36 ->  | E38: =IF($B$9="N m",B38/9.806/'Worksheet 1'!$I$36,IF($B$9="kg m",B38/'Worksheet 1'!$I$36,IF($B$9="m",B38,"error"))) -> error | F38: =(E43-E38)/5 ->  | G38: 0 | AF38: 0 | BB38: 0 | BC38: error | BH38: 0 | BI38: error | BJ38: 0
A39: 1 | D39: =E39*'Worksheet 1'!$I$36 ->  | E39: =E38+F38 ->  | G39: 0 | AF39: 1 | BB39: 1 | BH39: 1 | BJ39: 0
A40: 2 | D40: =E40*'Worksheet 1'!$I$36 ->  | E40: =E39+F38 ->  | G40: 0 | AF40: 2 | BB40: 2 | BH40: 2 | BJ40: 0
A41: 3 | D41: =E41*'Worksheet 1'!$I$36 ->  | E41: =E40+F38 ->  | G41: 0 | AF41: 3 | BB41: 3 | BH41: 3 | BJ41: 0
A42: 4 | D42: =E42*'Worksheet 1'!$I$36 ->  | E42: =E41+F38 ->  | G42: 0 | AF42: 4 | BB42: 4 | BH42: 4 | BJ42: 0
A43: 5 | D43: =E43*'Worksheet 1'!$I$36 ->  | E43: =IF($B$9="N m",B43/9.806/'Worksheet 1'!$I$36,IF($B$9="kg m",B43/'Worksheet 1'!$I$36,IF($B$9="m",B43,"error"))) -> error | F43: =(E48-E43)/5 ->  | G43: 0 | AF43: 5 | BB43: 5 | BC43: error | BH43: 5 | BI43: error | BJ43: 0
A44: 6 | D44: =E44*'Worksheet 1'!$I$36 ->  | E44: =E43+F43 ->  | G44: 0 | AF44: 6 | BB44: 6 | BH44: 6 | BJ44: 0
A45: 7 | D45: =E45*'Worksheet 1'!$I$36 ->  | E45: =E44+F43 ->  | G45: 0 | AF45: 7 | BB45: 7 | BH45: 7 | BJ45: 0
A46: 8 | D46: =E46*'Worksheet 1'!$I$36 ->  | E46: =E45+F43 ->  | G46: 0 | AF46: 8 | BB46: 8 | BH46: 8 | BJ46: 0
A47: 9 | D47: =E47*'Worksheet 1'!$I$36 ->  | E47: =E46+F43 ->  | G47: 0 | AF47: 9 | BB47: 9 | BH47: 9 | BJ47: 0
A48: 10 | D48: =E48*'Worksheet 1'!$I$36 ->  | E48: =IF($B$9="N m",B48/9.806/'Worksheet 1'!$I$36,IF($B$9="kg m",B48/'Worksheet 1'!$I$36,IF($B$9="m",B48,"error"))) -> error | F48: =(E53-E48)/5 ->  | G48: 0 | AF48: 10 | BB48: 10 | BC48: error | BH48: 10 | BI48: error | BJ48: 0
A49: 11 | D49: =E49*'Worksheet 1'!$I$36 ->  | E49: =E48+F48 ->  | G49: 0 | AF49: 11 | BB49: 11 | BH49: 11 | BJ49: 0
A50: 12 | D50: =E50*'Worksheet 1'!$I$36 ->  | E50: =E49+F48 ->  | G50: 0 | AF50: 12 | BB50: 12 | BH50: 12 | BJ50: 0
A51: 13 | D51: =E51*'Worksheet 1'!$I$36 ->  | E51: =E50+F48 ->  | G51: 0 | AF51: 13 | BB51: 13 | BH51: 13 | BJ51: 0
A52: 14 | D52: =E52*'Worksheet 1'!$I$36 ->  | E52: =E51+F48 ->  | G52: 0 | AF52: 14 | BB52: 14 | BH52: 14 | BJ52: 0
A53: 15 | D53: =E53*'Worksheet 1'!$I$36 ->  | E53: =IF($B$9="N m",B53/9.806/'Worksheet 1'!$I$36,IF($B$9="kg m",B53/'Worksheet 1'!$I$36,IF($B$9="m",B53,"error"))) -> error | F53: =(E58-E53)/5 ->  | G53: 0 | AF53: 15 | BB53: 15 | BC53: error | BH53: 15 | BI53: error | BJ53: 0
A54: 16 | D54: =E54*'Worksheet 1'!$I$36 ->  | E54: =E53+F53 ->  | G54: 0 | AF54: 16 | BB54: 16 | BH54: 16 | BJ54: 0
A55: 17 | D55: =E55*'Worksheet 1'!$I$36 ->  | E55: =E54+F53 ->  | G55: 0 | AF55: 17 | BB55: 17 | BH55: 17 | BJ55: 0
A56: 18 | D56: =E56*'Worksheet 1'!$I$36 ->  | E56: =E55+F53 ->  | G56: 0 | AF56: 18 | BB56: 18 | BH56: 18 | BJ56: 0
A57: 19 | D57: =E57*'Worksheet 1'!$I$36 ->  | E57: =E56+F53 ->  | G57: 0 | AF57: 19 | BB57: 19 | BH57: 19 | BJ57: 0
A58: 20 | D58: =E58*'Worksheet 1'!$I$36 ->  | E58: =IF($B$9="N m",B58/9.806/'Worksheet 1'!$I$36,IF($B$9="kg m",B58/'Worksheet 1'!$I$36,IF($B$9="m",B58,"error"))) -> error | F58: =(E63-E58)/5 ->  | G58: 0 | AF58: 20 | BB58: 20 | BC58: error | BH58: 20 | BI58: error | BJ58: 0
A59: 21 | D59: =E59*'Worksheet 1'!$I$36 ->  | E59: =E58+F58 ->  | G59: 0 | AF59: 21 | BB59: 21 | BH59: 21 | BJ59: 0
A60: 22 | D60: =E60*'Worksheet 1'!$I$36 ->  | E60: =E59+F58 ->  | G60: 0 | AF60: 22 | BB60: 22 | BH60: 22 | BJ60: 0
A61: 23 | D61: =E61*'Worksheet 1'!$I$36 ->  | E61: =E60+F58 ->  | G61: 0 | AF61: 23 | BB61: 23 | BH61: 23 | BJ61: 0
A62: 24 | D62: =E62*'Worksheet 1'!$I$36 ->  | E62: =E61+F58 ->  | G62: 0 | AF62: 24 | BB62: 24 | BH62: 24 | BJ62: 0
A63: 25 | D63: =E63*'Worksheet 1'!$I$36 ->  | E63: =IF($B$9="N m",B63/9.806/'Worksheet 1'!$I$36,IF($B$9="kg m",B63/'Worksheet 1'!$I$36,IF($B$9="m",B63,"error"))) -> error | F63: =(E68-E63)/5 ->  | G63: 0 | AF63: 25 | BB63: 25 | BC63: error | BH63: 25 | BI63: error | BJ63: 0
A64: 26 | D64: =E64*'Worksheet 1'!$I$36 ->  | E64: =E63+F63 ->  | G64: 0 | AF64: 26 | BB64: 26 | BH64: 26 | BJ64: 0
A65: 27 | D65: =E65*'Worksheet 1'!$I$36 ->  | E65: =E64+F63 ->  | G65: 0 | AF65: 27 | BB65: 27 | BH65: 27 | BJ65: 0
A66: 28 | D66: =E66*'Worksheet 1'!$I$36 ->  | E66: =E65+F63 ->  | G66: 0 | AF66: 28 | BB66: 28 | BH66: 28 | BJ66: 0
A67: 29 | D67: =E67*'Worksheet 1'!$I$36 ->  | E67: =E66+F63 ->  | G67: 0 | AF67: 29 | BB67: 29 | BH67: 29 | BJ67: 0
A68: 30 | D68: =E68*'Worksheet 1'!$I$36 ->  | E68: =IF($B$9="N m",B68/9.806/'Worksheet 1'!$I$36,IF($B$9="kg m",B68/'Worksheet 1'!$I$36,IF($B$9="m",B68,"error"))) -> error | F68: =(E73-E68)/5 ->  | G68: 0 | AF68: 30 | BB68: 30 | BC68: error | BH68: 30 | BI68: error | BJ68: 0
A69: 31 | D69: =E69*'Worksheet 1'!$I$36 ->  | E69: =E68+F68 ->  | G69: 0 | AF69: 31 | BB69: 31 | BH69: 31 | BJ69: 0
A70: 32 | D70: =E70*'Worksheet 1'!$I$36 ->  | E70: =E69+F68 ->  | G70: 0 | AF70: 32 | BB70: 32 | BH70: 32 | BJ70: 0
A71: 33 | D71: =E71*'Worksheet 1'!$I$36 ->  | E71: =E70+F68 ->  | G71: 0 | AF71: 33 | BB71: 33 | BH71: 33 | BJ71: 0
A72: 34 | D72: =E72*'Worksheet 1'!$I$36 ->  | E72: =E71+F68 ->  | G72: 0 | AF72: 34 | BB72: 34 | BH72: 34 | BJ72: 0
A73: 35 | D73: =E73*'Worksheet 1'!$I$36 ->  | E73: =IF($B$9="N m",B73/9.806/'Worksheet 1'!$I$36,IF($B$9="kg m",B73/'Worksheet 1'!$I$36,IF($B$9="m",B73,"error"))) -> error | F73: =(E78-E73)/5 ->  | G73: 0 | AF73: 35 | BB73: 35 | BC73: error | BH73: 35 | BI73: error | BJ73: 0
A74: 36 | D74: =E74*'Worksheet 1'!$I$36 ->  | E74: =E73+F73 ->  | G74: 0 | AF74: 36 | BB74: 36 | BH74: 36 | BJ74: 0
A75: 37 | D75: =E75*'Worksheet 1'!$I$36 ->  | E75: =E74+F73 ->  | G75: 0 | AF75: 37 | BB75: 37 | BH75: 37 | BJ75: 0
A76: 38 | D76: =E76*'Worksheet 1'!$I$36 ->  | E76: =E75+F73 ->  | G76: 0 | AF76: 38 | BB76: 38 | BH76: 38 | BJ76: 0
A77: 39 | D77: =E77*'Worksheet 1'!$I$36 ->  | E77: =E76+F73 ->  | G77: 0 | AF77: 39 | BB77: 39 | BH77: 39 | BJ77: 0
A78: 40 | C78: =D78*9.806 ->  | D78: =E78*'Worksheet 1'!$I$36 ->  | E78: =IF($B$9="N m",B78/9.806/'Worksheet 1'!$I$36,IF($B$9="kg m",B78/'Worksheet 1'!$I$36,IF($B$9="m",B78,"error"))) -> error | F78: =(E83-E78)/5 ->  | G78: 0 | H78: =$AX$15 ->  | AF78: 40 | AG78: =C78 ->  | AH78: =IF(AF78<=$AG$111,AG78,"") ->  | BB78: 40 | BC78: =E78 -> error | BD78: =BC78-$AX$15 ->  | BH78: 40 | BI78: =E78 -> error | BJ78: 0 | BK78: =$H$13 ->  | BM78: =IF(AND(BB78>$BL$20,BB78<=$BL$22),BD78,"") ->  | BO78: =IF(AND(BB78>=$AX$25,BB78<=$AZ$25),BD78,"") -> 
A79: 41 | D79: =E79*'Worksheet 1'!$I$36 ->  | E79: =E78+F78 ->  | G79: 0 | AF79: 41 | BB79: 41 | BH79: 41 | BJ79: 0
A80: 42 | D80: =E80*'Worksheet 1'!$I$36 ->  | E80: =E79+F78 ->  | G80: 0 | AF80: 42 | BB80: 42 | BH80: 42 | BJ80: 0
A81: 43 | D81: =E81*'Worksheet 1'!$I$36 ->  | E81: =E80+F78 ->  | G81: 0 | AF81: 43 | BB81: 43 | BH81: 43 | BJ81: 0
A82: 44 | D82: =E82*'Worksheet 1'!$I$36 ->  | E82: =E81+F78 ->  | G82: 0 | AF82: 44 | BB82: 44 | BH82: 44 | BJ82: 0
A83: 45 | D83: =E83*'Worksheet 1'!$I$36 ->  | E83: =IF($B$9="N m",B83/9.806/'Worksheet 1'!$I$36,IF($B$9="kg m",B83/'Worksheet 1'!$I$36,IF($B$9="m",B83,"error"))) -> error | F83: =(E88-E83)/5 ->  | G83: 0 | AF83: 45 | BB83: 45 | BC83: error | BH83: 45 | BI83: error | BJ83: 0
A84: 46 | D84: =E84*'Worksheet 1'!$I$36 ->  | E84: =E83+F83 ->  | G84: 0 | AF84: 46 | BB84: 46 | BH84: 46 | BJ84: 0
A85: 47 | D85: =E85*'Worksheet 1'!$I$36 ->  | E85: =E84+F83 ->  | G85: 0 | AF85: 47 | BB85: 47 | BH85: 47 | BJ85: 0
A86: 48 | D86: =E86*'Worksheet 1'!$I$36 ->  | E86: =E85+F83 ->  | G86: 0 | AF86: 48 | BB86: 48 | BH86: 48 | BJ86: 0
A87: 49 | D87: =E87*'Worksheet 1'!$I$36 ->  | E87: =E86+F83 ->  | G87: 0 | AF87: 49 | BB87: 49 | BH87: 49 | BJ87: 0
A88: 50 | D88: =E88*'Worksheet 1'!$I$36 ->  | E88: =IF($B$9="N m",B88/9.806/'Worksheet 1'!$I$36,IF($B$9="kg m",B88/'Worksheet 1'!$I$36,IF($B$9="m",B88,"error"))) -> error | F88: =(E93-E88)/5 ->  | G88: 0 | M88: in case of no data >50° delete yellow cells in colum BI | AF88: 50 | BB88: 50 | BC88: error | BH88: 50 | BI88: error | BJ88: 0
A89: 51 | D89: =E89*'Worksheet 1'!$I$36 ->  | E89: =E88+F88 ->  | G89: 0 | AF89: 51 | BB89: 51 | BH89: 51 | BJ89: 0
A90: 52 | D90: =E90*'Worksheet 1'!$I$36 ->  | E90: =E89+F88 ->  | G90: 0 | AF90: 52 | BB90: 52 | BH90: 52 | BJ90: 0
A91: 53 | D91: =E91*'Worksheet 1'!$I$36 ->  | E91: =E90+F88 ->  | G91: 0 | AF91: 53 | BB91: 53 | BH91: 53 | BJ91: 0
A92: 54 | D92: =E92*'Worksheet 1'!$I$36 ->  | E92: =E91+F88 ->  | G92: 0 | AF92: 54 | BB92: 54 | BH92: 54 | BJ92: 0
A93: 55 | D93: =E93*'Worksheet 1'!$I$36 ->  | E93: =IF($B$9="N m",B93/9.806/'Worksheet 1'!$I$36,IF($B$9="kg m",B93/'Worksheet 1'!$I$36,IF($B$9="m",B93,"error"))) -> error | F93: =(E98-E93)/5 ->  | G93: 0 | M93: for a better curve drawing | AF93: 55 | BB93: 55 | BC93: error | BH93: 55 | BI93: error | BJ93: 0
A94: 56 | D94: =E94*'Worksheet 1'!$I$36 ->  | E94: =E93+F93 ->  | G94: 0 | AF94: 56 | BB94: 56 | BH94: 56 | BJ94: 0
A95: 57 | D95: =E95*'Worksheet 1'!$I$36 ->  | E95: =E94+F93 ->  | G95: 0 | AF95: 57 | BB95: 57 | BH95: 57 | BJ95: 0
A96: 58 | D96: =E96*'Worksheet 1'!$I$36 ->  | E96: =E95+F93 ->  | G96: 0 | AF96: 58 | BB96: 58 | BH96: 58 | BJ96: 0
A97: 59 | D97: =E97*'Worksheet 1'!$I$36 ->  | E97: =E96+F93 ->  | G97: 0 | AF97: 59 | BB97: 59 | BH97: 59 | BJ97: 0
A98: 60 | D98: =E98*'Worksheet 1'!$I$36 ->  | E98: =IF($B$9="N m",B98/9.806/'Worksheet 1'!$I$36,IF($B$9="kg m",B98/'Worksheet 1'!$I$36,IF($B$9="m",B98,"error"))) -> error | F98: =(E103-E98)/5 ->  | G98: 0 | AF98: 60 | BB98: 60 | BC98: error | BH98: 60 | BI98: error | BJ98: 0
A99: 61 | D99: =E99*'Worksheet 1'!$I$36 ->  | E99: =E98+F98 ->  | G99: 0 | AF99: 61 | BB99: 61 | BH99: 61 | BJ99: 0
A100: 62 | D100: =E100*'Worksheet 1'!$I$36 ->  | E100: =E99+F98 ->  | G100: 0 | AF100: 62 | BB100: 62 | BH100: 62 | BJ100: 0
A101: 63 | D101: =E101*'Worksheet 1'!$I$36 ->  | E101: =E100+F98 ->  | G101: 0 | AF101: 63 | BB101: 63 | BH101: 63 | BJ101: 0
A102: 64 | D102: =E102*'Worksheet 1'!$I$36 ->  | E102: =E101+F98 ->  | G102: 0 | AF102: 64 | BB102: 64 | BH102: 64 | BJ102: 0
A103: 65 | D103: =E103*'Worksheet 1'!$I$36 ->  | E103: =IF($B$9="N m",B103/9.806/'Worksheet 1'!$I$36,IF($B$9="kg m",B103/'Worksheet 1'!$I$36,IF($B$9="m",B103,"error"))) -> error | F103: =(E108-E103)/5 ->  | G103: 0 | AF103: 65 | BB103: 65 | BC103: error | BH103: 65 | BI103: error | BJ103: 0
A104: 66 | D104: =E104*'Worksheet 1'!$I$36 ->  | E104: =E103+F103 ->  | G104: 0 | AF104: 66 | BB104: 66 | BH104: 66 | BJ104: 0
A105: 67 | D105: =E105*'Worksheet 1'!$I$36 ->  | E105: =E104+F103 ->  | G105: 0 | AF105: 67 | BB105: 67 | BH105: 67 | BJ105: 0
A106: 68 | D106: =E106*'Worksheet 1'!$I$36 ->  | E106: =E105+F103 ->  | G106: 0 | AF106: 68 | BB106: 68 | BH106: 68 | BJ106: 0
A107: 69 | D107: =E107*'Worksheet 1'!$I$36 ->  | E107: =E106+F103 ->  | G107: 0 | AF107: 69 | BB107: 69 | BH107: 69 | BJ107: 0
A108: 70 | D108: =E108*'Worksheet 1'!$I$36 ->  | E108: =IF($B$9="N m",B108/9.806/'Worksheet 1'!$I$36,IF($B$9="kg m",B108/'Worksheet 1'!$I$36,IF($B$9="m",B108,"error"))) -> error | F108: =(E113-E108)/5 ->  | G108: 0 | AF108: 70 | BB108: 70 | BC108: error | BH108: 70 | BI108: error | BJ108: 0
AG110: mLA
B111: area A1 and A2 limits | AE111: fDA | AF111: degrees | AG111: ='Worksheet 3'!H37 -> 0
B112: heel degrees | D112: heel degrees
A113: A1 from | B113: =AX24 ->  | C113: to | D113: =AZ24 ->  | E113: below MW
A114: A2 from | B114: =D113 ->  | C114: to | D114: =AZ25 -> 50.00 | E114: above MW | AG114: RMmax1 | AH114: =MAX(AH13:AH108) -> 
B116: point of intersection of righting moment curve and wind heeling moment curve
B117: ΦW
B118: =BF20 -> 
A120: Mw | B120: =AX13 ->  | C120: Nm
A121: Mw | B121: =B120/9.806 ->  | C121: kg m
A122: Mw | B122: =AX15 ->  | C122: m
A123: Φ W | B123: =B118 ->  | C123: degrees
A124: Φ A2 | B124: =AX17 -> 50.00 | C124: degrees
A125: Φ R | B125: =AX18 -> n.a. | C125: degrees
A127: Max mLA | C127: =AY20 ->  | D127: m
A128: heel at GZ max | C128: =AY21 ->  | D128: degrees
O140: Example 1, area A2 bounded by downflooding angle ΦDA | Y140: Example 2, area A2 bounded by 50° | AI140: Example 3, area A2 bounded by second wind heel equilibrium angle

Sheet Worksheet 6d
O1: Comments
P2: Derived values
B3: ISO 12217-1:2017 CALCULATION WORKSHEET No. 6d curve of righting moment mMO | P3: Input values
AW4: list:
A5: =CONCATENATE(coverSheet!B5," ",coverSheet!B12) -> 
A7: insert curve of righting moment in 5° steps in one of following units: | AW7: MW1
B8: N m | C8: kg m | D8: m | AW8: MW2
A9: chosen unit
A10: chose of MW | BL10: Flächen-berechnung | BM10: A1 | BN10: Flächen-berechnung | BO10: A2
A12: heel angle[°] | B12: insert Righting Arm/Moment [Nm, kg m, m] | C12: Righting Moment [Nm] | D12: Righting Moment [kg m] | E12: Arm Gz [m] | F12: Diff(B-A/5) | G12: Basis at 0° | H12: Wind Heeling moment curve [m] | BB12: heeling angle[°] | BC12: Arm [m] | BD12: Gz + Mw | BF12: calc. of point of intersection Gz and MW | BH12: Heel angle | BI12: Arm [m] | BK12: Wind Heeling moment curve [m]
A13: -25 | C13: =D13*9.806 ->  | D13: =E13*'Worksheet 1'!$I$43 ->  | E13: =IF($B$9="N m",B13/9.806/'Worksheet 1'!$I$43,IF($B$9="kg m",B13/'Worksheet 1'!$I$43,IF($B$9="m",B13,"error"))) -> error | F13: =(E18-E13)/5 ->  | G13: 0 | H13: =$AX$15 ->  | AW13: Mw | AX13: =IF(B10="MW1",'Worksheet 6b'!E12,IF(B10="MW2",'Worksheet 6b'!E13,"")) ->  | AY13: Nm | BB13: -25 | BC13: =E13 -> error | BD13: =BC13-$AX$15 ->  | BF13: =LOOKUP(0,BD13:BD108,BB13:BB108) ->  | BG13: Vorkomma | BH13: -25 | BI13: =E13 -> error | BJ13: 0 | BK13: =H13 ->  | BM13: =IF(AND(BB13>$BL$20,BB13<=$BL$22),BD13,"") ->  | BO13: =IF(AND(BB13>=$AX$25,BB13<=$AZ$25),BD13,"") -> 
A14: -24 | C14: =D14*9.806 ->  | D14: =E14*'Worksheet 1'!$I$43 ->  | E14: =E13+F13 ->  | G14: 0 | H14: =$AX$15 ->  | AW14: Mw | AX14: =AX13/9.806 ->  | AY14: kg m | BB14: -24 | BC14: =E14 ->  | BD14: =BC14-$AX$15 ->  | BF14: =(-1)*BF16/((-1)*BF16+BF17) ->  | BG14: Nachkomma | BH14: -24 | BI14: =E14 ->  | BJ14: 0 | BK14: =H14 ->  | BM14: =IF(AND(BB14>$BL$20,BB14<=$BL$22),BD14,"") ->  | BO14: =IF(AND(BB14>=$AX$25,BB14<=$AZ$25),BD14,"") -> 
A15: -23 | D15: =E15*'Worksheet 1'!$I$43 ->  | E15: =E14+F13 ->  | G15: 0 | AW15: Mw | AX15: =AX14/'Worksheet 1'!I43 ->  | AY15: m | BB15: -23 | BH15: -23 | BJ15: 0
A16: -22 | D16: =E16*'Worksheet 1'!$I$43 ->  | E16: =E15+F13 ->  | G16: 0 | AW16: Phi W | AX16: =BF20 ->  | BB16: -22 | BF16: =LOOKUP(BF13,BB13:BB108,BD13:BD108) ->  | BG16: Nachkomma | BH16: -22 | BJ16: 0
A17: -21 | D17: =E17*'Worksheet 1'!$I$43 ->  | E17: =E16+F13 ->  | G17: 0 | AW17: Phi A2 | AX17: ='Worksheet 6b'!E11 -> 50 | BB17: -21 | BF17: =LOOKUP(BF13+1,BB13:BB108,BD13:BD108) ->  | BG17: calc. | BH17: -21 | BJ17: 0
A18: -20 | D18: =E18*'Worksheet 1'!$I$43 ->  | E18: =IF($B$9="N m",B18/9.806/'Worksheet 1'!$I$43,IF($B$9="kg m",B18/'Worksheet 1'!$I$43,IF($B$9="m",B18,"error"))) -> error | F18: =(E23-E18)/5 ->  | G18: 0 | AW18: Phi R | AX18: ='Worksheet 6b'!E14 -> n.a. | BB18: -20 | BC18: error | BH18: -20 | BI18: error | BJ18: 0 | BL18: A1 | BN18: A2
A19: -19 | D19: =E19*'Worksheet 1'!$I$43 ->  | E19: =E18+F18 ->  | G19: 0 | BB19: -19 | BF19: ΦW | BH19: -19 | BJ19: 0 | BL19: untere Grenze | BN19: untere Grenze
A20: -18 | D20: =E20*'Worksheet 1'!$I$43 ->  | E20: =E19+F18 ->  | G20: 0 | AW20: Max mMO | AY20: =MAX(E13:E108) ->  | BB20: -18 | BF20: =BF13+BF14 ->  | BG20: degrees | BH20: -18 | BJ20: 0 | BL20: =ROUNDUP(AX24,0) ->  | BN20: =ROUNDUP(AX25,0) -> 
A21: -17 | D21: =E21*'Worksheet 1'!$I$43 ->  | E21: =E20+F18 ->  | G21: 0 | AW21: heel at GZ max | AY21: =MATCH(AY20,BC39:BC108,0) ->  | BB21: -17 | BH21: -17 | BJ21: 0 | BL21: obere Grenze | BN21: obere Grenze
A22: -16 | D22: =E22*'Worksheet 1'!$I$43 ->  | E22: =E21+F18 ->  | G22: 0 | BB22: -16 | BH22: -16 | BJ22: 0 | BL22: =ROUNDDOWN(AZ24,0) ->  | BN22: =ROUNDDOWN(AZ25,0) -> 50
A23: -15 | D23: =E23*'Worksheet 1'!$I$43 ->  | E23: =IF($B$9="N m",B23/9.806/'Worksheet 1'!$I$43,IF($B$9="kg m",B23/'Worksheet 1'!$I$43,IF($B$9="m",B23,"error"))) -> error | F23: =(E28-E23)/5 ->  | G23: 0 | BB23: -15 | BC23: error | BH23: -15 | BI23: error | BJ23: 0 | BL23: Flächenber. A1 | BN23: Flächenber. A1
A24: -14 | D24: =E24*'Worksheet 1'!$I$43 ->  | E24: =E23+F23 ->  | G24: 0 | AW24: A1 von | AX24: =AX16-AX18 ->  | AY24: bis | AZ24: =AX16 ->  | BB24: -14 | BH24: -14 | BJ24: 0 | BL24: =(-1)*SUM(BM13:BM108) ->  | BN24: =SUM(BO13:BO108) -> 
A25: -13 | D25: =E25*'Worksheet 1'!$I$43 ->  | E25: =E24+F23 ->  | G25: 0 | AW25: A2 von | AX25: =AX16 ->  | AY25: bis | AZ25: =AX17 -> 50.00 | BB25: -13 | BH25: -13 | BJ25: 0 | BL25: Grenzwert, Nachkomma | BN25: Grenzwert, Nachkomma
A26: -12 | D26: =E26*'Worksheet 1'!$I$43 ->  | E26: =E25+F23 ->  | G26: 0 | BB26: -12 | BH26: -12 | BJ26: 0 | BL26: =(-1)*AX24-(-1)*(INT(AX24)+1) ->  | BN26: =AZ25-INT(AZ25) -> 0.0000000
A27: -11 | D27: =E27*'Worksheet 1'!$I$43 ->  | E27: =E26+F23 ->  | G27: 0 | BB27: -11 | BH27: -11 | BJ27: 0 | BL27: =(-1)*LOOKUP(BL20,BB13:BB108,BD13:BD108) ->  | BN27: =LOOKUP(BN22+1,BB13:BB108,BD13:BD108) -> 
A28: -10 | D28: =E28*'Worksheet 1'!$I$43 ->  | E28: =IF($B$9="N m",B28/9.806/'Worksheet 1'!$I$43,IF($B$9="kg m",B28/'Worksheet 1'!$I$43,IF($B$9="m",B28,"error"))) -> error | F28: =(E33-E28)/5 ->  | G28: 0 | BB28: -10 | BC28: error | BH28: -10 | BI28: error | BJ28: 0 | BL28: =BL27*BL26 ->  | BN28: =BN27*BN26 -> 
A29: -9 | D29: =E29*'Worksheet 1'!$I$43 ->  | E29: =E28+F28 ->  | G29: 0 | BB29: -9 | BH29: -9 | BJ29: 0
A30: -8 | D30: =E30*'Worksheet 1'!$I$43 ->  | E30: =E29+F28 ->  | G30: 0 | BB30: -8 | BH30: -8 | BJ30: 0 | BL30: Gesamt A1 | BN30: Gesamt A2
A31: -7 | D31: =E31*'Worksheet 1'!$I$43 ->  | E31: =E30+F28 ->  | G31: 0 | BB31: -7 | BH31: -7 | BJ31: 0 | BL31: =BL24+BL28 ->  | BN31: =BN24+BN28 -> 
A32: -6 | D32: =E32*'Worksheet 1'!$I$43 ->  | E32: =E31+F28 ->  | G32: 0 | BB32: -6 | BH32: -6 | BJ32: 0
A33: -5 | D33: =E33*'Worksheet 1'!$I$43 ->  | E33: =IF($B$9="N m",B33/9.806/'Worksheet 1'!$I$43,IF($B$9="kg m",B33/'Worksheet 1'!$I$43,IF($B$9="m",B33,"error"))) -> error | F33: =(E38-E33)/5 ->  | G33: 0 | BB33: -5 | BC33: error | BH33: -5 | BI33: error | BJ33: 0
A34: -4 | D34: =E34*'Worksheet 1'!$I$43 ->  | E34: =E33+F33 ->  | G34: 0 | BB34: -4 | BH34: -4 | BJ34: 0
A35: -3 | D35: =E35*'Worksheet 1'!$I$43 ->  | E35: =E34+F33 ->  | G35: 0 | BB35: -3 | BH35: -3 | BJ35: 0
A36: -2 | D36: =E36*'Worksheet 1'!$I$43 ->  | E36: =E35+F33 ->  | G36: 0 | BB36: -2 | BH36: -2 | BJ36: 0
A37: -1 | D37: =E37*'Worksheet 1'!$I$43 ->  | E37: =E36+F33 ->  | G37: 0 | BB37: -1 | BH37: -1 | BJ37: 0
A38: 0 | D38: =E38*'Worksheet 1'!$I$43 ->  | E38: =IF($B$9="N m",B38/9.806/'Worksheet 1'!$I$43,IF($B$9="kg m",B38/'Worksheet 1'!$I$43,IF($B$9="m",B38,"error"))) -> error | F38: =(E43-E38)/5 ->  | G38: 0 | BB38: 0 | BC38: error | BH38: 0 | BI38: error | BJ38: 0
A39: 1 | D39: =E39*'Worksheet 1'!$I$43 ->  | E39: =E38+F38 ->  | G39: 0 | BB39: 1 | BH39: 1 | BJ39: 0
A40: 2 | D40: =E40*'Worksheet 1'!$I$43 ->  | E40: =E39+F38 ->  | G40: 0 | BB40: 2 | BH40: 2 | BJ40: 0
A41: 3 | D41: =E41*'Worksheet 1'!$I$43 ->  | E41: =E40+F38 ->  | G41: 0 | BB41: 3 | BH41: 3 | BJ41: 0
A42: 4 | D42: =E42*'Worksheet 1'!$I$43 ->  | E42: =E41+F38 ->  | G42: 0 | BB42: 4 | BH42: 4 | BJ42: 0
A43: 5 | D43: =E43*'Worksheet 1'!$I$43 ->  | E43: =IF($B$9="N m",B43/9.806/'Worksheet 1'!$I$43,IF($B$9="kg m",B43/'Worksheet 1'!$I$43,IF($B$9="m",B43,"error"))) -> error | F43: =(E48-E43)/5 ->  | G43: 0 | BB43: 5 | BC43: error | BH43: 5 | BI43: error | BJ43: 0
A44: 6 | D44: =E44*'Worksheet 1'!$I$43 ->  | E44: =E43+F43 ->  | G44: 0 | BB44: 6 | BH44: 6 | BJ44: 0
A45: 7 | D45: =E45*'Worksheet 1'!$I$43 ->  | E45: =E44+F43 ->  | G45: 0 | BB45: 7 | BH45: 7 | BJ45: 0
A46: 8 | D46: =E46*'Worksheet 1'!$I$43 ->  | E46: =E45+F43 ->  | G46: 0 | BB46: 8 | BH46: 8 | BJ46: 0
A47: 9 | D47: =E47*'Worksheet 1'!$I$43 ->  | E47: =E46+F43 ->  | G47: 0 | BB47: 9 | BH47: 9 | BJ47: 0
A48: 10 | D48: =E48*'Worksheet 1'!$I$43 ->  | E48: =IF($B$9="N m",B48/9.806/'Worksheet 1'!$I$43,IF($B$9="kg m",B48/'Worksheet 1'!$I$43,IF($B$9="m",B48,"error"))) -> error | F48: =(E53-E48)/5 ->  | G48: 0 | BB48: 10 | BC48: error | BH48: 10 | BI48: error | BJ48: 0
A49: 11 | D49: =E49*'Worksheet 1'!$I$43 ->  | E49: =E48+F48 ->  | G49: 0 | BB49: 11 | BH49: 11 | BJ49: 0
A50: 12 | D50: =E50*'Worksheet 1'!$I$43 ->  | E50: =E49+F48 ->  | G50: 0 | BB50: 12 | BH50: 12 | BJ50: 0
A51: 13 | D51: =E51*'Worksheet 1'!$I$43 ->  | E51: =E50+F48 ->  | G51: 0 | BB51: 13 | BH51: 13 | BJ51: 0
A52: 14 | D52: =E52*'Worksheet 1'!$I$43 ->  | E52: =E51+F48 ->  | G52: 0 | BB52: 14 | BH52: 14 | BJ52: 0
A53: 15 | D53: =E53*'Worksheet 1'!$I$43 ->  | E53: =IF($B$9="N m",B53/9.806/'Worksheet 1'!$I$43,IF($B$9="kg m",B53/'Worksheet 1'!$I$43,IF($B$9="m",B53,"error"))) -> error | F53: =(E58-E53)/5 ->  | G53: 0 | BB53: 15 | BC53: error | BH53: 15 | BI53: error | BJ53: 0
A54: 16 | D54: =E54*'Worksheet 1'!$I$43 ->  | E54: =E53+F53 ->  | G54: 0 | BB54: 16 | BH54: 16 | BJ54: 0
A55: 17 | D55: =E55*'Worksheet 1'!$I$43 ->  | E55: =E54+F53 ->  | G55: 0 | BB55: 17 | BH55: 17 | BJ55: 0
A56: 18 | D56: =E56*'Worksheet 1'!$I$43 ->  | E56: =E55+F53 ->  | G56: 0 | BB56: 18 | BH56: 18 | BJ56: 0
A57: 19 | D57: =E57*'Worksheet 1'!$I$43 ->  | E57: =E56+F53 ->  | G57: 0 | BB57: 19 | BH57: 19 | BJ57: 0
A58: 20 | D58: =E58*'Worksheet 1'!$I$43 ->  | E58: =IF($B$9="N m",B58/9.806/'Worksheet 1'!$I$43,IF($B$9="kg m",B58/'Worksheet 1'!$I$43,IF($B$9="m",B58,"error"))) -> error | F58: =(E63-E58)/5 ->  | G58: 0 | BB58: 20 | BC58: error | BH58: 20 | BI58: error | BJ58: 0
A59: 21 | D59: =E59*'Worksheet 1'!$I$43 ->  | E59: =E58+F58 ->  | G59: 0 | BB59: 21 | BH59: 21 | BJ59: 0
A60: 22 | D60: =E60*'Worksheet 1'!$I$43 ->  | E60: =E59+F58 ->  | G60: 0 | BB60: 22 | BH60: 22 | BJ60: 0
A61: 23 | D61: =E61*'Worksheet 1'!$I$43 ->  | E61: =E60+F58 ->  | G61: 0 | BB61: 23 | BH61: 23 | BJ61: 0
A62: 24 | D62: =E62*'Worksheet 1'!$I$43 ->  | E62: =E61+F58 ->  | G62: 0 | BB62: 24 | BH62: 24 | BJ62: 0
A63: 25 | D63: =E63*'Worksheet 1'!$I$43 ->  | E63: =IF($B$9="N m",B63/9.806/'Worksheet 1'!$I$43,IF($B$9="kg m",B63/'Worksheet 1'!$I$43,IF($B$9="m",B63,"error"))) -> error | F63: =(E68-E63)/5 ->  | G63: 0 | BB63: 25 | BC63: error | BH63: 25 | BI63: error | BJ63: 0
A64: 26 | D64: =E64*'Worksheet 1'!$I$43 ->  | E64: =E63+F63 ->  | G64: 0 | BB64: 26 | BH64: 26 | BJ64: 0
A65: 27 | D65: =E65*'Worksheet 1'!$I$43 ->  | E65: =E64+F63 ->  | G65: 0 | BB65: 27 | BH65: 27 | BJ65: 0
A66: 28 | D66: =E66*'Worksheet 1'!$I$43 ->  | E66: =E65+F63 ->  | G66: 0 | BB66: 28 | BH66: 28 | BJ66: 0
A67: 29 | D67: =E67*'Worksheet 1'!$I$43 ->  | E67: =E66+F63 ->  | G67: 0 | BB67: 29 | BH67: 29 | BJ67: 0
A68: 30 | D68: =E68*'Worksheet 1'!$I$43 ->  | E68: =IF($B$9="N m",B68/9.806/'Worksheet 1'!$I$43,IF($B$9="kg m",B68/'Worksheet 1'!$I$43,IF($B$9="m",B68,"error"))) -> error | F68: =(E73-E68)/5 ->  | G68: 0 | BB68: 30 | BC68: error | BH68: 30 | BI68: error | BJ68: 0
A69: 31 | D69: =E69*'Worksheet 1'!$I$43 ->  | E69: =E68+F68 ->  | G69: 0 | BB69: 31 | BH69: 31 | BJ69: 0
A70: 32 | D70: =E70*'Worksheet 1'!$I$43 ->  | E70: =E69+F68 ->  | G70: 0 | BB70: 32 | BH70: 32 | BJ70: 0
A71: 33 | D71: =E71*'Worksheet 1'!$I$43 ->  | E71: =E70+F68 ->  | G71: 0 | BB71: 33 | BH71: 33 | BJ71: 0
A72: 34 | D72: =E72*'Worksheet 1'!$I$43 ->  | E72: =E71+F68 ->  | G72: 0 | BB72: 34 | BH72: 34 | BJ72: 0
A73: 35 | D73: =E73*'Worksheet 1'!$I$43 ->  | E73: =IF($B$9="N m",B73/9.806/'Worksheet 1'!$I$43,IF($B$9="kg m",B73/'Worksheet 1'!$I$43,IF($B$9="m",B73,"error"))) -> error | F73: =(E78-E73)/5 ->  | G73: 0 | BB73: 35 | BC73: error | BH73: 35 | BI73: error | BJ73: 0
A74: 36 | D74: =E74*'Worksheet 1'!$I$43 ->  | E74: =E73+F73 ->  | G74: 0 | BB74: 36 | BH74: 36 | BJ74: 0
A75: 37 | D75: =E75*'Worksheet 1'!$I$43 ->  | E75: =E74+F73 ->  | G75: 0 | BB75: 37 | BH75: 37 | BJ75: 0
A76: 38 | D76: =E76*'Worksheet 1'!$I$43 ->  | E76: =E75+F73 ->  | G76: 0 | BB76: 38 | BH76: 38 | BJ76: 0
A77: 39 | D77: =E77*'Worksheet 1'!$I$43 ->  | E77: =E76+F73 ->  | G77: 0 | BB77: 39 | BH77: 39 | BJ77: 0
A78: 40 | C78: =D78*9.806 ->  | D78: =E78*'Worksheet 1'!$I$43 ->  | E78: =IF($B$9="N m",B78/9.806/'Worksheet 1'!$I$43,IF($B$9="kg m",B78/'Worksheet 1'!$I$43,IF($B$9="m",B78,"error"))) -> error | F78: =(E83-E78)/5 ->  | G78: 0 | H78: =$AX$15 ->  | BB78: 40 | BC78: =E78 -> error | BD78: =BC78-$AX$15 ->  | BH78: 40 | BI78: =E78 -> error | BJ78: 0 | BK78: =H78 ->  | BM78: =IF(AND(BB78>$BL$20,BB78<=$BL$22),BD78,"") ->  | BO78: =IF(AND(BB78>=$AX$25,BB78<=$AZ$25),BD78,"") -> 
A79: 41 | D79: =E79*'Worksheet 1'!$I$43 ->  | E79: =E78+F78 ->  | G79: 0 | BB79: 41 | BH79: 41 | BJ79: 0
A80: 42 | D80: =E80*'Worksheet 1'!$I$43 ->  | E80: =E79+F78 ->  | G80: 0 | BB80: 42 | BH80: 42 | BJ80: 0
A81: 43 | D81: =E81*'Worksheet 1'!$I$43 ->  | E81: =E80+F78 ->  | G81: 0 | BB81: 43 | BH81: 43 | BJ81: 0
A82: 44 | D82: =E82*'Worksheet 1'!$I$43 ->  | E82: =E81+F78 ->  | G82: 0 | BB82: 44 | BH82: 44 | BJ82: 0
A83: 45 | D83: =E83*'Worksheet 1'!$I$43 ->  | E83: =IF($B$9="N m",B83/9.806/'Worksheet 1'!$I$43,IF($B$9="kg m",B83/'Worksheet 1'!$I$43,IF($B$9="m",B83,"error"))) -> error | F83: =(E88-E83)/5 ->  | G83: 0 | BB83: 45 | BC83: error | BH83: 45 | BI83: error | BJ83: 0
A84: 46 | D84: =E84*'Worksheet 1'!$I$43 ->  | E84: =E83+F83 ->  | G84: 0 | BB84: 46 | BH84: 46 | BJ84: 0
A85: 47 | D85: =E85*'Worksheet 1'!$I$43 ->  | E85: =E84+F83 ->  | G85: 0 | BB85: 47 | BH85: 47 | BJ85: 0
A86: 48 | D86: =E86*'Worksheet 1'!$I$43 ->  | E86: =E85+F83 ->  | G86: 0 | BB86: 48 | BH86: 48 | BJ86: 0
A87: 49 | D87: =E87*'Worksheet 1'!$I$43 ->  | E87: =E86+F83 ->  | G87: 0 | BB87: 49 | BH87: 49 | BJ87: 0
A88: 50 | D88: =E88*'Worksheet 1'!$I$43 ->  | E88: =IF($B$9="N m",B88/9.806/'Worksheet 1'!$I$43,IF($B$9="kg m",B88/'Worksheet 1'!$I$43,IF($B$9="m",B88,"error"))) -> error | F88: =(E93-E88)/5 ->  | G88: 0 | M88: in case of no data >50° delete yellow cells in colum BI | BB88: 50 | BC88: error | BH88: 50 | BI88: error | BJ88: 0
A89: 51 | D89: =E89*'Worksheet 1'!$I$43 ->  | E89: =E88+F88 ->  | G89: 0 | BB89: 51 | BH89: 51 | BJ89: 0
A90: 52 | D90: =E90*'Worksheet 1'!$I$43 ->  | E90: =E89+F88 ->  | G90: 0 | BB90: 52 | BH90: 52 | BJ90: 0
A91: 53 | D91: =E91*'Worksheet 1'!$I$43 ->  | E91: =E90+F88 ->  | G91: 0 | BB91: 53 | BH91: 53 | BJ91: 0
A92: 54 | D92: =E92*'Worksheet 1'!$I$43 ->  | E92: =E91+F88 ->  | G92: 0 | BB92: 54 | BH92: 54 | BJ92: 0
A93: 55 | D93: =E93*'Worksheet 1'!$I$43 ->  | E93: =IF($B$9="N m",B93/9.806/'Worksheet 1'!$I$43,IF($B$9="kg m",B93/'Worksheet 1'!$I$43,IF($B$9="m",B93,"error"))) -> error | F93: =(E98-E93)/5 ->  | G93: 0 | M93: for a better curve drawing | BB93: 55 | BC93: error | BH93: 55 | BI93: =IF(B93="","",E93) ->  | BJ93: 0
A94: 56 | D94: =E94*'Worksheet 1'!$I$43 ->  | E94: =E93+F93 ->  | G94: 0 | BB94: 56 | BH94: 56 | BI94: =IF(B93="","",E94) ->  | BJ94: 0
A95: 57 | D95: =E95*'Worksheet 1'!$I$43 ->  | E95: =E94+F93 ->  | G95: 0 | BB95: 57 | BH95: 57 | BI95: =IF(B93="","",E95) ->  | BJ95: 0
A96: 58 | D96: =E96*'Worksheet 1'!$I$43 ->  | E96: =E95+F93 ->  | G96: 0 | BB96: 58 | BH96: 58 | BI96: =IF(B93="","",E96) ->  | BJ96: 0
A97: 59 | D97: =E97*'Worksheet 1'!$I$43 ->  | E97: =E96+F93 ->  | G97: 0 | BB97: 59 | BH97: 59 | BI97: =IF(B93="","",E97) ->  | BJ97: 0
A98: 60 | D98: =E98*'Worksheet 1'!$I$43 ->  | E98: =IF($B$9="N m",B98/9.806/'Worksheet 1'!$I$43,IF($B$9="kg m",B98/'Worksheet 1'!$I$43,IF($B$9="m",B98,"error"))) -> error | F98: =(E103-E98)/5 ->  | G98: 0 | BB98: 60 | BC98: error | BH98: 60 | BI98: =IF(B98="","",E98) ->  | BJ98: 0
A99: 61 | D99: =E99*'Worksheet 1'!$I$43 ->  | E99: =E98+F98 ->  | G99: 0 | BB99: 61 | BH99: 61 | BI99: =IF(B98="","",E99) ->  | BJ99: 0
A100: 62 | D100: =E100*'Worksheet 1'!$I$43 ->  | E100: =E99+F98 ->  | G100: 0 | BB100: 62 | BH100: 62 | BI100: =IF(B98="","",E100) ->  | BJ100: 0
A101: 63 | D101: =E101*'Worksheet 1'!$I$43 ->  | E101: =E100+F98 ->  | G101: 0 | BB101: 63 | BH101: 63 | BI101: =IF(B98="","",E101) ->  | BJ101: 0
A102: 64 | D102: =E102*'Worksheet 1'!$I$43 ->  | E102: =E101+F98 ->  | G102: 0 | BB102: 64 | BH102: 64 | BI102: =IF(B98="","",E102) ->  | BJ102: 0
A103: 65 | D103: =E103*'Worksheet 1'!$I$43 ->  | E103: =IF($B$9="N m",B103/9.806/'Worksheet 1'!$I$43,IF($B$9="kg m",B103/'Worksheet 1'!$I$43,IF($B$9="m",B103,"error"))) -> error | F103: =(E108-E103)/5 ->  | G103: 0 | BB103: 65 | BC103: error | BH103: 65 | BI103: =IF(B103="","",E103) ->  | BJ103: 0
A104: 66 | D104: =E104*'Worksheet 1'!$I$43 ->  | E104: =E103+F103 ->  | G104: 0 | BB104: 66 | BH104: 66 | BI104: =IF(B103="","",E104) ->  | BJ104: 0
A105: 67 | D105: =E105*'Worksheet 1'!$I$43 ->  | E105: =E104+F103 ->  | G105: 0 | BB105: 67 | BH105: 67 | BI105: =IF(B103="","",E105) ->  | BJ105: 0
A106: 68 | D106: =E106*'Worksheet 1'!$I$43 ->  | E106: =E105+F103 ->  | G106: 0 | BB106: 68 | BH106: 68 | BI106: =IF(B103="","",E106) ->  | BJ106: 0
A107: 69 | D107: =E107*'Worksheet 1'!$I$43 ->  | E107: =E106+F103 ->  | G107: 0 | BB107: 69 | BH107: 69 | BI107: =IF(B103="","",E107) ->  | BJ107: 0
A108: 70 | D108: =E108*'Worksheet 1'!$I$43 ->  | E108: =IF($B$9="N m",B108/9.806/'Worksheet 1'!$I$43,IF($B$9="kg m",B108/'Worksheet 1'!$I$43,IF($B$9="m",B108,"error"))) -> error | F108: =(E113-E108)/5 ->  | G108: 0 | BB108: 70 | BC108: error | BH108: 70 | BI108: =IF(B108="","",E108) ->  | BJ108: 0
B111: area A1 and A2 limits
B112: heel degrees | D112: heel degrees
A113: A1 from | B113: =AX24 ->  | C113: to | D113: =AZ24 ->  | E113: below MW
A114: A2 from | B114: =D113 ->  | C114: to | D114: =AZ25 -> 50.00 | E114: above MW
B116: point of intersection of righting moment curve and wind heeling moment curve
B117: ΦW
B118: =BF20 -> 
A120: Mw | B120: =AX13 ->  | C120: Nm
A121: Mw | B121: =B120/9.806 ->  | C121: kg m
A122: Mw | B122: =AX15 ->  | C122: m
A123: Φ W | B123: =B118 ->  | C123: degrees
A124: Φ A2 | B124: =AX17 -> 50.00 | C124: degrees
A125: Φ R | B125: =AX18 -> n.a. | C125: degrees
A127: Max mMO | C127: =AY20 ->  | D127: m
A128: heel at GZ max | C128: =AY21 ->  | D128: degrees
O140: Example 1, area A2 bounded by downflooding angle ΦDA | Y140: Example 2, area A2 bounded by 50° | AI140: Example 3, area A2 bounded by second wind heel equilibrium angle

Sheet Worksheet 7
N1: Comments
O2: Derived values
A3: ISO 12217-1:2017 CALCULATION WORKSHEET No.7 HEEL DUE TO WIND ACTION | O3: Input values
A5: =CONCATENATE(coverSheet!B5," ",coverSheet!B12) -> 
A7: NB: This sheet is to be completed for both Minimum Operating and Loaded arrival condition
A9: Initial check: | I9: Design Categories C and D only
A10: Item | E10: Symbol | F10: Unit | G10: mLA | H10: mMO | I10: Ref.
A11: Windage area (NOT subject to minimum of 0.5 LHBH) | E11: ALV | F11: m2 | H11: ='Worksheet 2'!G11 -> 0.00 | I11: 3.3.7
A12: Length of Hull | E12: LH | F12: m | G12: ='Worksheet 1'!I9 -> 0.00 | H12: =G12 -> 0.00 | I12: 3.3.2
A13: Beam of hull | E13: BH | F13: m | G13: ='Worksheet 2'!G13 -> 0.00 | I13: 3.3.3
A14: Ratio ALV/(LHBH) at mMO | F14: ----- | G14: =H11/H12/G13 ->  | BA14: list:
A15: Is ratio ALV/(LHBH) equal to or greater than 0.5? | G15: =IF(G14>0.5,"Yes","No") ->  | I15: 6.4 | BA15: Yes
A16: If answer is NO, no other assessment is required. | BA16: No
A18: Calculation of wind heeling moment:
A19: Item | E19: Symbol | F19: Unit | G19: mLA | H19: mMO | I19: Ref.
A20: Length of waterline | E20: LWL | F20: m | I20: 3.3.2
A21: Draught at the mid-point of LWL | E21: TM | F21: m | I21: 6.3.2
A22: Lever between centroids of above and below water areas | E22: h | F22: m | I22: 6.3.2
A23: Calculation wind speed | E23: vW | F23: m/s | G23: =IF(OR('Worksheet 1'!D7="A",'Worksheet 1'!D7="B"),"n.a.",IF('Worksheet 1'!D7="C",17,13)) -> 13 | I23: 3.5.1 | BA23: A
A24: Wind heeling moment MW1 = 0.53 A LV h vW2 | E24: MW | F24: Nm | G24: =0.53*G11*G22*G23^2 -> 0 | H24: =0.53*H11*H22*G23^2 -> 0 | I24: 6.4.2 | BA24: B
A25: Wind heeling moment MW2 = 0.3 ALV (ALV / LWL + TM) vW2 | E25: MW | F25: Nm | G25: =0.3*G11*(G11/G20+G21)*G23^2 ->  | H25: =0.3*H11*(H11/H20+H21)*G23^2 ->  | I25: 6.4.2 | BA25: C
BA26: D
A27: Angle of heel due to wind:
A28: Item | E28: Symbol | F28: Unit | G28: mLA | H28: mMO | I28: Ref.
A29: FROM RIGHTING MOMENT CURVE: | E29: fW | F29: degrees | G29: =IF('Worksheet 6c'!AX13="","",'Worksheet 6c'!B123) ->  | H29: =IF('Worksheet 6d'!AX13="","",'Worksheet 6d'!B118) ->  | I29: 6.4.3 | O29: to be calculated from curve with vW=17 and real ALV
A30: angle of heel due to wind | O30: please use worksheet 6a, 6b for calculation | BA30: Pass
A31: OR ALTERNATIVELY: | E31: MW | F31: kg.m | G31: =G24/9.806 -> 0 | H31: =H24/9.806 -> 0 | BA31: Fail
A32: wind heeling moment MW divided by 9.806
A33: Angle of heel due to wind when moment above applied | E33: fW | F33: degrees | I33: 6.4.3 | O33: to be rechecked with offset load test
A34: Maximum permitted angle of heel during offset load test | E34: fO(R) | F34: degrees | G34: ='Worksheet 5b'!E9 -> 38.08 | I34: 6.2.3
A35: (from worksheet 5b)
A36: Downflooding angle | E36: fDA | F36: degrees | G36: ='Worksheet 3'!H37 -> 0 | H36: ='Worksheet 3'!H36 -> 0 | I36: 3.2.2
A37: Maximum permitted angle of heel due to wind = lesser of 0.7fO(R) and 0.7fDA | F37: degrees | G37: =MIN(0.7*G34,0.7*G36) -> 0.0 | H37: =MIN(0.7*G34,0.7*H36) -> 0.0 | I37: 6-4.3
A38: Is angle of heel due to wind less than permitted value? | G38: =IF(MAX(G29,G33)<G37,"Pass","Fail") -> Fail | H38: =IF(MAX(H29,H33)<H37,"Pass","Fail") -> Fail | I38: 6.4.3
A39: Design Category possible on wind heeling =

Sheet Worksheet 8
I1: Comments
J2: Derived values
A3: ISO 12217-1:2017 CALCULATION WORKSHEET No. 8 | J3: Input values
BA4: 1
A5: =CONCATENATE(coverSheet!B5," ",coverSheet!B12) ->  | BA5: 2
BA6: 3
A7: NB: This sheet is to be completed for the Loaded Arrival Condition. | E7: =IF('Worksheet 2'!E40=3,"calculation not applicable",IF(OR('Worksheet 1'!D7="",'Worksheet 1'!I9="",'Worksheet 2'!E40=""),"",IF(OR('Worksheet 1'!D7="A",'Worksheet 1'!D7="B"),"calculation required",IF('Worksheet 1'!D7="D","calculation not applicable",IF(AND('Worksheet 1'!D7="C",'Worksheet 2'!E40=2,'Worksheet 3'!F52<J16),"calculation required",IF('Worksheet 1'!D7="C","calculation not applicable","calculation required")))))) ->  | H7: =IF(B26="YES"," -----> Exempt from requirements","") ->  | BA7: 4
A8: Please submit multiple copies of this page if applicable | B8: =IF(AND('Worksheet 1'!D7="C",'Worksheet 2'!E40=6),"cat C, opt. 6: check req. of clause 6.5.4 at the end of this sheet","") -> 
E10: Recess | G10: Ref. | I10: The recess requirements are applicable only to boats of design categories A and B, or those fully enclosed boats of design category C for which the minimum freeboard to the recess coaming does not exceed the required downflooding height of option 6. | BA10: list:
A11: Further exemptions according to 6.5.1
A12: Angle of vanishing stability > 90° ? | C12: YES/NO | G12: 6.5.1a) | BA12: Yes
A13: Over at least 35% of the periphery is the depth of the recess less than 3% of the max. breadth of the recess (e.g. toe rails, low bulwarks) | C13: YES/NO | G13: 6.5.1b) | J13: Please fill in downflooding height on worksheet 3, cell F38 | BA13: No
J14: downflooding height req. Option 6
A15: At least 5% of the bulwark area positioned within the lowest 25% of the bulwark height drains overboard and the bulwark height is less than 12,5% of the maximum breadth of the recess (attention, req. 1) and 2) below must get also a "Yes" to fullfill all requirements) | C15: YES/NO | G15: 6.5.1c) | J15: cat C required LH/10 (for opt.6)
J16: =IF('Worksheet 1'!D7="C",MIN('Worksheet 1'!I9/10,0.75),"") ->  | K16: m
A17: Unobstructed drainage area from the recess on each side of the boat centreline | C17: m² | G17: 6.5.1d)
A18: Volume of the recess to the recess retention level | C18: m³
A19: Drainage area per side (m²) divided by recess volume (m³) | E19: =IF(OR(E17="",E18=""),"",E17/E18) ->  | G19: 6.5.1d) | I19: meets requirements if result is > | K19: 0,09 where the drainage openings are within the lowest 25 % of the recess depth | BA19: lowest 25%
A20: Height position of drainage area | G20: 6.5.1d) | K20: 0,16 where the drainage openings are within the lowest 50 % of the recess depth | BA20: lowest 50%
A21: (lowest 25% / lowest 50% / full depth) | K21: 0,30 where the drainage openings are the full depth of the recess | BA21: full depth
A22: Requirements of 6.5.1.d) fullfilled? (attention, req. 1) and 2) below must get also a "Yes") | C22: YES/NO | E22: =IF(E19="","",IF(AND(E20="lowest 25%",E19>0.09),"yes",IF(AND(E20="lowest 50%",E19>0.16),"Yes",IF(AND(E20="full depth",E19>0.3),"Yes","No")))) ->  | G22: 6.5.1d) | I22: AND if req 1) and req 2) of 6.5.1 are fulfilled
A23: 1) the lower edge of the drainage openings are not more than 10 mm above recess sole height for at least 70 % of the width of each opening? | C23: YES/NO | G23: 6.5.1 c) & d)
A24: 2) If drainage area is provided by an open or partially open transom, are the openings extend to the outboard sides of the recess sole on both sides? | C24: YES/NO | G24: 6.5.1 c) & d) | I24: ATTENTION: For Multihulls the max beam at waterline BWLmax must be used! acc to ISO 8666:2020 cl 5.3.5 BWLmax: For multihulls only, the maximum beam at waterline (BWLmax) shall be measured as the waterline beam across the outer hulls
A26: Is recess exempt from size limit? If "yes", no further calculation required. | B26: =IF(OR(E7="calculation not applicable",E7=""),"",IF(OR(E12="Yes",E13="Yes",AND(E15="Yes",E23="Yes",E24="Yes"),AND(E22="Yes",E23="Yes",E24="Yes")),"Yes","calculation required")) ->  | G26: 6.5.1
A28: Calculation methods:
A29: Item | B29: Symbol | C29: Unit | E29: Value | G29: Ref.
E30: =CONCATENATE(E10,F10) -> Recess
A31: SIMPLIFIED METHOD: Use 1), 2) or 3) below.
A32: Average freeboard to loaded waterline at aft end of recess | B32: FA | C32: m | G32: 6.5.2.1
A33: Average freeboard to loaded waterline at sides of recess | B33: FS | C33: m | G33: 6.5.2.1
A34: Average freeboard to loaded waterline at forward end of recess | B34: FF | C34: m | G34: 6.5.2.1
A35: Waterline length at mLA | B35: LWL | C35: m
A36: Waterline breadth at mLA (for multihulls insert max. beam waterline BWLmax acc. to ISO 8666) | B36: BWL/BWLmax | C36: m | G36: ISO 8666 4.3.4/5
A37: Maximum length of recess at the retention level (see 3.5.11) | B37: l | C37: m | G37: 6.5.2.4 | I37: length of the recess to be measured in length direction of the boat! See drawing below also.
A38: Maximum breadth of recess at the retention level (see 3.5.11) | B38: b | C38: m | G38: 6.5.2.4 | I38: breadth of the recess to be measured in the direction of the width of the boat! See drawing.
A40: - In case of assymetric recesses (e.g. bowrider, centercockpits,….), please insert length and breadth of each area below; this allows a more exact calculation using simplified method 1) or 2) | I40: In case of assymetric recesses (see example) calculating with max beam and max length of the recess is giving adverse results.
B41: max. length | C41: max. breadth | D41: Unit | E41: % loss GMT (option 1) | F41: % loss GMT (option 2) | G41: Ref. | I41: In this case using method 1) or 2) one can calculate the calculated percentage loss in metacentric height for every single part of the recess and add the results. Please be aware that this way of calculation is NOT possible for method 3) !
A42: Maximum length and breadth of recess part A | D42: m | E42: =IF($E$67="","",IF(B42="","",IF(C42="","",102500*B42*C42^3/12/$E$67/'Worksheet 1'!$I$36))) ->  | F42: =IF(OR(B42="",C42=""),"",(B42*C42^3/12)*245/$E$73) ->  | G42: 6.5.2.2/3
A43: Maximum length and breadth of recess part B | D43: m | E43: =IF($E$67="","",IF(B43="","",IF(C43="","",102500*B43*C43^3/12/$E$67/'Worksheet 1'!$I$36))) ->  | F43: =IF(OR(B43="",C43=""),"",(B43*C43^3/12)*245/$E$73) ->  | G43: 6.5.2.2/3
A44: Maximum length and breadth of recess part C | D44: m | E44: =IF($E$67="","",IF(B44="","",IF(C44="","",102500*B44*C44^3/12/$E$67/'Worksheet 1'!$I$36))) ->  | G44: 6.5.2.2/3
A45: Maximum length and breadth of recess part D | D45: m | E45: =IF($E$67="","",IF(B45="","",IF(C45="","",102500*B45*C45^3/12/$E$67/'Worksheet 1'!$I$36))) ->  | G45: 6.5.2.2/3
A46: Maximum length and breadth of recess part E | D46: m | E46: =IF($E$67="","",IF(B46="","",IF(C46="","",102500*B46*C46^3/12/$E$67/'Worksheet 1'!$I$36))) ->  | G46: 6.5.2.2/3
A47: Maximum length and breadth of recess part F | D47: m | E47: =IF($E$67="","",IF(B47="","",IF(C47="","",102500*B47*C47^3/12/$E$67/'Worksheet 1'!$I$36))) ->  | G47: 6.5.2.2/3
A48: Maximum length and breadth of recess part G | D48: m | E48: =IF($E$67="","",IF(B48="","",IF(C48="","",102500*B48*C48^3/12/$E$67/'Worksheet 1'!$I$36))) ->  | G48: 6.5.2.2/3
A49: Maximum length and breadth of recess part H | D49: m | E49: =IF($E$67="","",IF(B49="","",IF(C49="","",102500*B49*C49^3/12/$E$67/'Worksheet 1'!$I$36))) ->  | G49: 6.5.2.2/3
A50: Maximum length and breadth of recess part I | D50: m | E50: =IF($E$67="","",IF(B50="","",IF(C50="","",102500*B50*C50^3/12/$E$67/'Worksheet 1'!$I$36))) ->  | G50: 6.5.2.2/3 | I50: simplified recess areas of an open bowrider
A51: to be continued on page 2
A52: page 2
B53: Symbol | C53: Unit | E53: Value | G53: Ref.
E54: =CONCATENATE(E10,F10) -> Recess
A55: Average freeboard to recess periphery | B55: FR | C55: m | E55: =(E32+E33*2+E34)/4 -> 0 | G55: 6.5.2.1
A56: = (FA + 2FS + FF) / 4
A57: Category A permitted percentage loss in metacentric height | E57: =IF('Worksheet 1'!D7="A",250*E55/'Worksheet 1'!I9,"n.a.") -> n.a. | G57: 6.5.2.1 | BA57: A
A58: (GMT) = 250 FR / LH
A59: Category B permitted percentage loss in metacentric height | E59: =IF('Worksheet 1'!D7="B",550*E55/'Worksheet 1'!I9,"n.a.") -> n.a. | G59: 6.5.2.1 | BA59: B
A60: (GMT) = 550 FR / LH
A61: Category C permitted percentage loss in metacentric height | E61: =IF('Worksheet 1'!D7="C",1200*E55/'Worksheet 1'!I9,"n.a.") -> n.a. | G61: 6.5.2.1 | BA61: C
A62: (GMT) = 1 200 FR / LH
A64: SIMPLIFIED METHOD: Use 1), 2) or 3) below. | E64: =CONCATENATE(E10,F10) -> Recess
A65: 1) Loss of GMT used? | G65: 6.5.2.1
A66: Second moment of area of free-surface of recess | B66: SMARECESS | D66: m4 | E66: =IF(AND(B42<>"",C42<>""),"Calc of different areas",E78*E80^3/12) -> 0 | G66: 6.5.2.2 | I66: SMARECESS = l * b³ / 12 | L66: theor.:
A67: Metacentric height of boat at mLA | B67: GMT | D67: m | G67: 6.5.2.2
E68: =IF(AND(B42<>"",C42<>""),SUM(E42:E50),IF(E67="","",IF(E37="","",IF(E38="","",102500*E66/E67/'Worksheet 1'!I36)))) ->  | G68: 6.5.2.2
A69: Calculated percentage loss in metacentric height (GMT) =
A71: 2) Second moment of areas used? | G71: 6.5.2.1
A72: Second moment of area of free-surface of recess | B72: SMARECESS | D72: m4 | E72: =IF(AND(B42<>"",C42<>""),"Calc of different areas",E78*E80^3/12) -> 0 | G72: 6.5.2.3
A73: Second moment of area of waterplane of boat at mLA | B73: SMAWP | D73: m4 | E73: =E35*E36^3/M74 -> 0 | G73: 6.5.2.3 | I73: SMAWP = LWL * BWL³ / k | L73: where k should be between 15 to 20 for monohull Powerboats and 13 to 17 for multihull Powerboats
E74: =IF(OR(E35="",E36=""),"",IF(AND(B42<>"",C42<>""),SUM(F42:F50),IF(E37="","",IF(E38="","",245*E72/E73)))) ->  | G74: 6.5.2.3 | L74: k = | M74: 20 | N74: default value 20, please insert exact value from your hydrostatic programm
A75: Calculated percentage loss in metacentric height (GMT) =
M76: Coefficient | N76: k
A77: 3) Recess dimensions used? | B77: =IF('Worksheet 1'!H7="Multihull","do NOT use for Multihulls!","") ->  | G77: 6.5.2.1* | M77: 1 | N77: 12 | O77: =M77/12 -> 0.083
A78: Maximum length of recess at the retention level | C78: l | D78: m | E78: =E37 -> 0 | G78: 6.5.2.4 | M78: 0.9 | N78: =1/O78 -> 13.33 | O78: =M78/12 -> 0.075 | R78: b
A79: (see 3.5.11) | M79: 0.8 | N79: 15.00 | O79: =M79/12 -> 0.067
A80: Maximum breadth of recess at the retention level | C80: b | D80: m | E80: =E38 -> 0 | G80: 6.5.2.4 | M80: 0.7 | N80: 17.14 | O80: 0.058
A81: (see 3.5.11) | M81: 0.6 | N81: =1/O81 -> 20.00 | O81: 0.050
A82: Calculated percentage loss in metacentric height (GMT) = | E82: =IF(OR(E37="",E38=""),"",IF('Worksheet 1'!H7="Multihull","method not possible for Multihulls",IF(OR(E78="",E80=""),"",IF('Worksheet 1'!I9="","",IF('Worksheet 2'!G13="","",270*(E78*E80^3/'Worksheet 1'!I9/'Worksheet 2'!G13^3)^0.7))))) ->  | G82: 6.5.2.4
I83: *6.5.2.1 exculdes method 3 for Multihulls | P83: l
A85: Requirement: from results above, applied design category possible? | E85: =IF(E7="","",IF(OR(AND(E82<>"",E82<MAX(E57:F62)),AND(E74<>"",E74<MAX(E57:F62)),AND(E68<>"",E68<MAX(E57:F62))),"Yes","Fail")) ->  | G85: 6.5.2.1
A87: DIRECT CALCULATION METHOD used? | G87: 6.5.3
A88: Percentage full of water = 60 – 240 F/LH | E88: =IF(E32="","",60-240*MIN(E32:E34)/'Worksheet 1'!$I$9) ->  | G88: 6.5.3a)
A89: Wind heeling moment for intended design category | C89: MW | D89: N∙m | E89: =IF('Worksheet 1'!D7="A",MIN('Worksheet 6b'!D12:D13),IF('Worksheet 1'!D7="B",MIN('Worksheet 6b'!D12:D13),IF('Worksheet 1'!D7="C",MIN('Worksheet 7'!G24:G25),"n.a."))) -> n.a. | G89: 6.5.3b)
A90: Crew heeling moment at fGZmax | D90: N∙m | G90: 6.5.3c)
A91: Maximum swamped righting moment up to least of fD, fV or 50° | D91: N∙m | G91: 6.5.3d)
A92: Required margin of righting moment over heeling moment | D92: N∙m | E92: =IF('Worksheet 1'!D7="A",2*'Worksheet 1'!I36,IF('Worksheet 1'!D7="B",1*'Worksheet 1'!I36,IF('Worksheet 1'!D7="C",0.5*'Worksheet 1'!I36,"n.a."))) -> n.a. | G92: 6.5.3d)
A93: Actual margin of righting moment over heeling moment | D93: N∙m | E93: =IF(E87="","",E91-MAX(E90,E89)) ->  | G93: 6.5.3d)
A95: Applied design category possible? | E95: =IF(AND(E87="Yes",E93>E92),"Pass",IF(E7="","n.a.",IF(E7="calculation not applicable","n.a.",IF(B26="Yes","n.a.",IF(L88="",IF(E85="Yes","Pass","Fail"),IF(E93>E92,"Pass","Fail")))))) -> n.a.
A97: Design category C boats using option 6
A98: Recess entirely contained within LH/2 of the bow ? | G98: 6.5.4
A99: Volume to retention level (see 3.5.9) larger than (LHBHFM)/40 ? | G99: 6.5.4
A100: If both questions are answered with 'yes' check requirements below:
A101: Recess is quickdraining recess either overboard or in the bilge? | G101: 6.5.4
A102: Design category possible | E102: =IF(OR('Worksheet 1'!$D$7<>"C",'Worksheet 2'!$E$40<>6),"n.a.",IF(OR(E98="No",E99="No"),"n.a.",IF(E101="Yes","Pass","Fail"))) -> n.a. | G102: 6.5.4

Sheet Worksheet 9
H1: Comments
I2: Derived values
A3: ISO 12217-1:2017 CALCULATION WORKSHEET No. 9 Habitable Multihulls & Motor Sailers | I3: Input values
A5: =CONCATENATE(coverSheet!B5," ",coverSheet!B12) -> 
A7: Habitable Multihulls | B7: Is boat habitable multihull acc. to cl. 3.1.8 ?
A9: NB: Boats complying with the other requirements of this standard for design categories A, B or D are not considered to be susceptible to inversion
A11: Boats of design category C:
A12: Item | C12: Symbol | D12: Unit | E12: Value | F12: Ref.
A13: Beam of hull | C13: BH | D13: m | E13: ='Worksheet 2'!G13 -> 0.00 | F13: 3.3.3
A14: Volume of displacement in minimum operation condition | C14: VD | D14: m³ | E14: ='Worksheet 6a'!E10 -> 0.00 | F14: 3.4.7
A15: Cube root of volume of displacement in mMO | C15: VD1/3 | D15: m | E15: =E14^(1/3) -> 0.00
A16: Height of centroid of ALV above mMO waterline | C16: hC | D16: m | F16: 6.6.3
A17: Actual value of hC / BH | C17: hC / BH | D17: / | E17: =IF(E16="","",E16/E13) -> 
A18: Boat considered to be susceptible to inversion if either (10) or (11) | F18: 6.6.3
A19: (10) when VD1/3 > 2,6 and hC / BH > 0,572 | E19: =IF(AND(E15>2.6,E17>0.572),"Yes","n.a.") -> n.a. | F19: 6.6.3
A20: (11) when VD1/3 ≤ 2,6 and hC / BH > 0,22 VD1/3 | E20: =IF(E17="","",IF(AND(E15<=2.6,E17>0.22*E15),"Yes","n.a.")) ->  | F20: 6.6.3
A21: Is boat susceptible to inversion in design category C? | E21: =IF(OR(E19="Yes",E20="Yes"),"Yes","No") -> No
A22: If 'Yes' , boat must comply with ISO 12217-2, cl. 7.12 and cl. 7.13 (relevant ISO 12217-2 worksheets to be used) | F22: 6.6.1
A23: Boat complies with ISO 12217-2, cl. 7.12 buoyancy when inverted? | D23: Yes / No | F23: 6.6.1a)
A24: Boat complies with ISO 12217-2, cl. 7.13 escape after inversion? | D24: Yes / No | F24: 6.6.1b)
A27: Motor Sailer | B27: Is boat defined as “non-sailing” ? | F27: =IF('Worksheet 1'!I48="NON-SAIL","Yes","No") -> No | H27: Must have two times "Yes" to be defined as Motor Sailer
B28: Is boat fitted with mast and sails?
A30: NB: Only applicable to non-sailing boats with sails of design cat A or B
A31: Item | B31: Symbol | C31: Unit | D31: Value | F31: Ref.
A32: Sum of the windage area as defined in 3.3.7 plus the actual profile area, including overlaps, of the largest sail plan suitable for windward sailing in true winds of more than 10 kn to 12 kn (5,1 m/s to 6,2 m/s) and supplied or recommended by the builder as standard; | B32: Amax | C32: m² | F32: 6.7.2
A36: Vertical distance between the geometric centres of Amax and underwater profile area | B36: h | C36: m | F36: 6.7.2
A38: Wind speed, 18 m/s for category A and 14 m/s for category B | B38: vW | C38: m/s | D38: =IF('Worksheet 1'!D7="A",18,IF('Worksheet 1'!D7="B",14,"n.a.")) -> n.a. | F38: 6.7.2
A39: Heeling moment due to wind (MW = 0,53 Amax h vW2) | B39: MW | C39: Nm | D39: =0.53*D32*D36*D38^2 ->  | F39: 6.7.2
A40: Maximum righting moment of the boat in mLA up to ФDA | B40: RMmax1 | C40: Nm | D40: ='Worksheet 6c'!AH114 ->  | F40: 3.5.11 | H40: Symbol RMmax1 chosen to distinguish to RMmax on worksheeet 6b
A41: Wind heeling moment MW less than 50% of RMmax1 ? | D41: =IF(D39<0.5*D40,"Pass","Fail") ->  | F41: 6.7.2

Sheet Worksheet 10
I1: Comments
J2: Derived values
A3: ISO 12217-1:2017 CALCULATION WORKSHEET No.10 FLOTATION TEST | J3: Input values
A5: =CONCATENATE(coverSheet!B5," ",coverSheet!B12) -> 
A7: Annexes E and F assumed Crew Limit (CL) = | B7: ='Worksheet 1'!I17 -> 0 | BB7: list:
A8: theoretical calculation method used, calculation attached? | G8: annex F.1: The methods described in F.2, F.3 and F.4 shall be used, either by actual test or equivalent calculation. If using the theoretical calcuation method, please add sufficent flotation calcuation to the stability file. | BB8: Yes
A9: Preparation | BB9: No
A10: Item | B10: Unit | C10: Response | D10: Ref.
A11: Mass equal to 25% of dry stores and equipment added? | D11: F.2 a) | BB11: Inboard
A12: Inboard or outboard engine fitted? | BB12: Outboard
A13: If inboard fitted, correct engine replacement mass fitted? | D13: F.2 d)
A14: Assumed outboard engine power? | B14: Kw | C14: =IF('Worksheet 1'!J7="OB",'Worksheet 1b builder''s plate'!I25*'Worksheet 1b builder''s plate'!I26,"") ->  | D14: F.2 c) | BB14: lead
A15: Mass fitted to represent outboard engine, controls, and battery. | B15: kg | C15: =IF('Worksheet 1'!J7="OB",'Worksheet 1b builder''s plate'!I47,"") ->  | D15: Tables F.1 and F.2 | BB15: 65/35 brass
A16: Portable fuel tanks removed and/or fixed tanks are filled? | D16: F.2 f) | BB16: steel
A17: Cockpit drains open and drain plugs are fitted? | D17: F.2 g) | BB17: cast iron
A18: Void compartments which are not air tanks are opened? | D18: F.2 i) | BB18: aluminium
A19: Number of integral air tanks required to be open? | D19: Table F.3
A20: Type of test weights used: lead, 65/35 brass, steel, cast iron, aluminum | D20: F.3.2 | BB20: Pass
A21: Material factor d | C21: =IF(C20="lead",1.099,IF(C20="65/35 brass",1.138,IF(C20="steel",1.151,IF(C20="cast iron",1.163,IF(C20="aluminium",1.612,"Failure"))))) -> Failure | D21: Table F.4 | BB21: Fail
A23: Swamped stability test:
A24: Item | B24: Unit | C24: Response | D24: Ref. | BB24: preparation completed?
A25: Dry mass of test weights = 6dCL but > 15d | B25: kg | C25: =IF(15*C21>6*C21*B7,15*C21,6*B7*C21) ->  | D25: Table F.6
A26: Test weight hung from gunwale each of four positions in turn? | D26: F.3.1 | BB26: =IF(COUNTIF(C11:C19,"Yes")>=3,"Yes","No") -> No
A27: 5 min after swamping, boat heels less than 450 | D27: F.3.4 + F.3.5
A29: Swamped buoyancy test:
A30: Item | B30: Unit | C30: Response | D30: Ref.
A31: Load test: | D31: F.4
A32: DesignCategory assessed | C32: ='Worksheet 1'!D7 -> 0
A33: Dry mass of test weights used | B33: kg | C33: =IF('Worksheet 1'!D7="B",'Worksheet 10'!C21*(75*'Worksheet 1'!I17+'Worksheet 1'!I28+'Worksheet 1'!I29),IF('Worksheet 1'!D7="C",'Worksheet 10'!C21*(60+15*'Worksheet 1'!I17),IF('Worksheet 1'!D7="D",'Worksheet 10'!C21*(50+10*'Worksheet 1'!I17),""))) ->  | D33: Table F.5
A34: 5 min after swamping, boat floats approximately level with more than 2/3 of periphery above water? | D34: F.4.3
A35: Swamped buoyancy test (for design cat B only)
A36: Item | B36: Unit | C36: Response | D36: Ref.
A37: Total buoyant volume according to Iso 6185-4:2011, clause 7.6.1 and 7.6.2 | B37: m³ | D37: F.4.4; ISO 6184-4
A38: 1,33 mLDC / 1000 | B38: t | C38: ='Worksheet 1'!I34*1.33/1000 -> 0 | D38: 3.4.5
A39: Total buoyant volume > 1,33 mLDC /1000 ? | C39: =IF(AND('Worksheet 1'!D7="B",'Worksheet 2'!E40=3),IF(C37>C38,"Pass","Fail"),"n.a.") -> n.a. | D39: F.4.4
A40: Flotation material and elements:
A41: Item | C41: Response | D41: Ref.
A42: All flotation elements comply with all requiremnets? | D42: Table G.1
A44: Design Category given: NB: boat must obtain PASS in all above tables | C44: =IF(D8="Yes, theoretical","check theor. Calc.",IF('Worksheet 1'!D7="B",IF(COUNTIF(C27:C42,"PASS")=4,'Worksheet 1'!D7,"Fail"),IF(COUNTIF(C27:C42,"PASS")=3,'Worksheet 1'!D7,"Fail"))) -> Fail

Sheet Worksheet 11
K1: Comments
L2: Derived values
A3: ISO 12217-1:2017 CALCULATION WORKSHEET No. 11 DETECTION + REMOVAL OF WATER | L3: Input values
A5: =CONCATENATE(coverSheet!B5," ",coverSheet!B12) -> 
AX7: list:
A8: Item | H8: response | I8: Ref. | AX8: Yes
A9: The internal arrangement facilitates the drainage of water to bilge suction point(s), to a location from which it can be bailed rapidly, or directly overboard? | I9: 6.9.1 | AX9: No
A10: Is boat provided with a means of removing water from the bilges in accordance with 15083? | I10: 6.9.2
A11: Table 2 option used for assessment: | H11: =IF('Worksheet 2'!E40="","",'Worksheet 2'!E40) ->  | I11: 6.9.3; 5.4 table 2 | K11: for category C, using otion 5,6 only
A12: Can water in boat be detected from helm position? | I12: 6.9.3 | K12: for category C, using otion 5,6 only
A13: Methods used: direct visual inspection | I13: 6.9.3 | K13: for category C, using otion 5,6 only
A14: transparent inspection panels | I14: 6.9.3 | K14: for category C, using otion 5,6 only
A15: bilge alarms | I15: 6.9.3 | K15: for category C, using otion 5,6 only
A16: indication of the operation of automatic bilge pumps | I16: 6.9.3 | K16: for category C, using otion 5,6 only
A17: other means (specify): | I17: 6.9.3 | K17: for category C, using otion 5,6 only
K19: for clarification: ISO 15083 requires for all fully decked boats (means boat using options 1 or 2) one or more bilge pumps.
K20: for open boats with flotation (options 3 and 4) requirements of 6.9.3 are not applicable
K21: for all open or partially decked boats in cat C, for which no requirements of ISO 15083 exists, clause 6.9.3 requires methods of detection and removal of water

Sheet Worksheet 12
M1: Comments
N2: Derived values
B3: ISO 12217-1:2017 en250115 CALCULATION WORKSHEET No.12 | I3: SUMMARY | N3: Input values
B5: Design Description: | D5: =CONCATENATE(coverSheet!B5," ",coverSheet!B12) -> 
B6: Design Category intended: | D6: ='Worksheet 1'!D7 -> 0 | E6: Crew Limit: | F6: ='Worksheet 1'!I17 -> 0 | G6: Date: | H6: =TODAY() -> 2025-01-05
B9: Sheet | C9: Item | H9: Symbol | I9: Unit | K9: Value
C10: Length of hull: (as in ISO 8666) | H10: LH | I10: m | K10: ='Worksheet 1'!I9 -> 0.00
C11: Length of waterline in loaded arrival condition | H11: LWL | I11: m | K11: ='Worksheet 1'!I10 -> 0.00
C12: Beam of hull: (as in ISO 8666) | H12: BH | I12: m | K12: ='Worksheet 2'!G13 -> 0.00
C13: Masses:
B14: 1 | C14: Empty craft mass | H14: mEC | I14: kg | K14: ='Worksheet 1'!I11 -> 0
C15: Maximum load | H15: mL | I15: kg | K15: ='Worksheet 1'!I33 -> 0
C16: Maximum load for the builder's plate acc. to ISO 14945:2021 | H16: mMBP | I16: kg | K16: ='Worksheet 1'!I44 -> 0 | M16: if the value is manually reduced by the manufacturer on worksheet 1b the reduced value is shown
C17: Number of portable tanks included in builder's plate weight | K17: ='Worksheet 1b builder''s plate'!T18 -> 0
C18: Light craft condition mass | H18: mLC | I18: kg | K18: ='Worksheet 1'!I15 -> 0
C19: Maximum Loaded condition mass = mLC + mML | H19: mLDC | I19: kg | K19: ='Worksheet 1'!I34 -> 0
C20: Loaded arival condition mass | H20: mLA | I20: kg | K20: ='Worksheet 1'!I36 -> 0
C21: Minimum operating condition mass | H21: mMO | I21: kg | K21: ='Worksheet 1'!I43 -> 0
B22: 1 | C22: Is boat sail or non-sail? | H22: SAIL/NON-SAIL | K22: ='Worksheet 1'!I48 -> 
B23: 2 | C23: Option selected: | K23: ='Worksheet 2'!E40 -> 0
B24: 3 | C24: Downflooding openings: | E24: Are all requirements met? | K24: =IF(M24="Please fill in worksheet 3a and 3b; otherwise you will receive a fail in K23","Fail",IF('Worksheet 3'!BB32="ok","Pass","Fail")) -> Fail | M24: =IF('Worksheet 3b Overview'!A11="","Please fill in worksheet 3a and 3b; otherwise you will receive a fail in K23","") -> Please fill in worksheet 3a and 3b; otherwise you will receive a fail in K23
E25: Watertighness test for closing appliances done successful? | K25: ='Worksheet 3b Overview'!BC13 -> n.a.
E26: Exemptions ok or openings considered as possible downflooding openings? | K26: ='Worksheet 3'!BB21 -> n.a.
B27: 3 | C27: Downflooding angle: (Categories A and B only) | F27: degrees | H27: Required | I27: mMO | J27: mLA | K27: Pass/Fail | BB27: List:
F28: degrees | H28: ='Worksheet 3'!H34 -> n.a. | I28: ='Worksheet 3'!H36 -> 0 | J28: ='Worksheet 3'!H37 -> 0 | K28: =IF('Worksheet 1'!D7="C","n.a.",IF('Worksheet 1'!D7="D","n.a.",IF(MIN(I28:J28)>MIN('Worksheet 3'!H34,'Worksheet 3'!H33),"Pass","Fail"))) -> Fail
B29: 3 & 4 | C29: Downflooding height: | E29: Worksheet employed for basic height exempted acc. to 6.1.2.1? | K29: ='Worksheet 3'!I42 -> 0 | BB29: Yes
C30: basic requirement | F30: m | H30: =IF('Worksheet 3'!F46="annex A",'Worksheet 4'!AU34,LOOKUP('Worksheet 1'!D7,'Worksheet 3'!E48:E51,'Worksheet 3'!F48:F51)) ->  | J30: ='Worksheet 3'!F52 -> 0.00 | K30: =IF($K$29="Yes","n.a.",IF(J30>'Worksheet 12'!H30,"Pass","Fail")) ->  | BB30: No
C31: reduced height for small openings (only using figures) | F31: m | H31: =IF('Worksheet 3'!F46="annex A","n.a.",LOOKUP('Worksheet 1'!D7,'Worksheet 3'!E48:E51,'Worksheet 3'!G48:G51)) ->  | J31: ='Worksheet 3'!G52 -> 0.00 | K31: =IF($K$29="Yes","n.a.",IF(H31="n.a.","n.a.",IF(J31>H31,"Pass","Fail"))) -> 
C32: reduced height at outboard (options 3, 4, 6 only) | F32: m | H32: =IF(OR('Worksheet 2'!E40=1,'Worksheet 2'!E40=2,'Worksheet 2'!E40=5),"n.a.",IF('Worksheet 3'!F46="annex A",MAX('Worksheet 4'!E33:E37)*0.8,LOOKUP('Worksheet 1'!D7,'Worksheet 3'!E48:E51,'Worksheet 3'!H48:H51))) ->  | J32: ='Worksheet 3'!H52 -> 0.00 | K32: =IF($K$29="Yes","n.a.",IF(H32="n.a.","n.a.",IF(OR('Worksheet 2'!$E$40=1,'Worksheet 2'!$E$40=2,'Worksheet 2'!$E$40=5),"n.a.",IF('Worksheet 1'!J7<>"OB","n.a.",IF(J32>'Worksheet 12'!H32,"Pass","Fail"))))) ->  | BB32: Pass
C33: increased height at bow (options 3, 4, 6 only) | F33: m | H33: =IF(OR('Worksheet 2'!E40=1,'Worksheet 2'!E40=2,'Worksheet 2'!E40=5),"n.a.",IF('Worksheet 3'!F46="annex A",MAX('Worksheet 4'!E33:E37)*1.15,LOOKUP('Worksheet 1'!D7,'Worksheet 3'!E48:E51,'Worksheet 3'!I48:I51))) ->  | J33: ='Worksheet 3'!I52 -> 0.00 | K33: =IF($K$29="Yes","n.a.",IF(H33="n.a.","n.a.",IF(OR('Worksheet 2'!$E$40=1,'Worksheet 2'!$E$40=2,'Worksheet 2'!$E$40=5),"n.a.",IF(J33>'Worksheet 12'!H33,"Pass","Fail")))) ->  | BB33: Fail
B34: 5 | C34: Off-set load test: | F34: Unit | H34: Required | I34: Actual | K34: Pass/Fail
C35: Testing for least stability: maximum heel angle | F35: degrees | H35: ='Worksheet 5b'!E9 -> < 38.08 | J35: =MAX('Worksheet 5b'!K40,'Worksheet 5c'!E17,'Worksheet 5c'!F17) -> 0.00 | K35: =IF(H35="n.a.","n.a.",IF(AND('Worksheet 5b'!K40=0,'Worksheet 5c'!E17=0,'Worksheet 5c'!F17=0),"Fail",IF(J35=0,"",IF(J35<H35,"Pass","Fail")))) -> Fail | BB35: A
C36: Testing for least freeboard: heeled freeboard margin | F36: m | H36: ='Worksheet 5b'!C9 -> FALSE | J36: ='Worksheet 5b'!BD45 -> 0.00 | K36: =IF(H36="n.a.","n.a.",IF(J36>H36,"Pass","Fail")) -> Fail | BB36: B
C37: Maximum crew limit for stability | I37: ='Worksheet 1'!I17 -> 0 | BB37: C
C38: Maximum crew limit for freeboard | I38: ='Worksheet 1'!I17 -> 0 | BB38: D
B39: 6 | C39: Resistance to waves and wind: (options 1, 3) at mLA and mMO
C40: Rolling in beam waves and wind: ratio A2/A1 | F40: - | H40: > 1.0 | I40: ='Worksheet 6b'!E18 ->  | J40: ='Worksheet 6b'!D18 ->  | K40: =IF(OR('Worksheet 1'!D7="C",'Worksheet 1'!D7="D"),"n.a.",IF(MIN(I40,J40)>=1,"Pass","Fail")) -> 
C41: Resistance to waves: value of øGZMax | F41: degrees | H41: --- | I41: ='Worksheet 6b'!E25 ->  | J41: ='Worksheet 6b'!D25 -> 
C42: value of RM30 or RMMAX | F42: kNm | H42: =IF('Worksheet 6b'!D25>=30,IF('Worksheet 1'!D7="A",25,7),IF('Worksheet 1'!D7="A",750/'Worksheet 6b'!D25,IF('Worksheet 1'!D7="B",210/'Worksheet 6b'!D25,""))) ->  | I42: =IF('Worksheet 6b'!D25>=30,'Worksheet 6b'!D26,'Worksheet 6b'!D33) ->  | J42: =IF('Worksheet 6b'!E25>=30,'Worksheet 6b'!E26,'Worksheet 6b'!E33) ->  | K42: =IF(K40="n.a.","n.a.",IF(MIN(J42,I42)>=H42,"Pass","Fail")) -> 
C43: value of GZ30 or GZMAX | F43: m | H43: =IF('Worksheet 6b'!D25>=30,0.2,6/'Worksheet 6b'!D25) ->  | I43: =IF('Worksheet 6b'!D25>=30,'Worksheet 6b'!D30,'Worksheet 6b'!D37) ->  | J43: =IF('Worksheet 6b'!E25>=30,'Worksheet 6b'!E30,'Worksheet 6b'!E37) ->  | K43: =IF(K40="n.a.","n.a.",IF(MIN(J43,I43)>=H43,"Pass","Fail")) -> 
B44: 7 | C44: Heel due to wind: (options 2,4,5,6) at mLA and at mMO | K44: =IF(OR('Worksheet 1'!D7="A",'Worksheet 1'!D7="B"),"n.a.",IF('Worksheet 7'!G15="No","n.a.","Yes")) -> 
E45: at mMLA: heel angle due to wind | F45: degrees | H45: < | J45: ='Worksheet 7'!G29 ->  | K45: =IF(K44="n.a.","n.a.",'Worksheet 7'!G38) -> 
E46: if required at mMO: heel angle due to wind | F46: degrees | H46: < | I46: ='Worksheet 7'!H29 ->  | K46: =IF(K44="n.a.","n.a.",'Worksheet 7'!H38) -> 
B47: 8 | C47: Recess size: (options 1 and 2 except category D)
C48: Simplified method: max reduction in GMT | F48: % | H48: ≤ | I48: =MAX('Worksheet 8'!E57:F62) -> 0 | K48: =IF('Worksheet 8'!E7="calculation not applicable","n.a.",IF('Worksheet 8'!B26="yes","n.a.",IF('Worksheet 8'!E87="yes","n.a.",IF('Worksheet 8'!E85="Yes","Pass","Fail")))) -> Fail
C49: Direct calculation: margin righting moment over heeling moment | F49: N m | H49: ≥ | I49: ='Worksheet 8'!E92 -> n.a. | K49: =IF('Worksheet 8'!E87="Yes",'Worksheet 8'!E95,"n.a.") -> n.a.
C51: For category C boats using option 6; drainage requirements for recesses entirely contained within LH/2 of the bow are fulfilled? | K51: ='Worksheet 8'!E102 -> n.a.
B53: 9 | C53: Habitable Multihulls: Is Category C boat vulnerable to inversion? | I53: Yes / No
C54: Complies with Part 2 clause 7.12 for inverted buoyancy? | I54: Pass / Fail
C55: Complies with Part 2 clause 7.13 for means of escape? | I55: Pass / Fail
B56: 9 | C56: Motor Sailers Complies with requirement for excess of RMMAX over MW? | I56: Pass / Fail
B58: 10 | C58: Flotation test: (options 3 and 4 only) All preparations completed? | I58: Yes / No | K58: =IF('Worksheet 10'!D8="Yes, theoretical","calc.attached",IF('Worksheet 2'!E40<3,"n.a.",IF('Worksheet 2'!E40>4,"n.a.",'Worksheet 10'!BB26))) -> n.a.
C59: Swamped stability: 5 min after swamping, does boat heel less than 45°? | I59: Pass / Fail | K59: =IF('Worksheet 10'!D8="Yes, theoretical","calc.attached",IF('Worksheet 2'!E40<3,"n.a.",IF('Worksheet 2'!E40>4,"n.a.",'Worksheet 10'!C27))) -> n.a.
C60: Load test: 5 min after swamping, does boat float level with 2/3 periphery showing? | I60: Pass / Fail | K60: =IF('Worksheet 10'!D8="Yes, theoretical","calc.attached",IF('Worksheet 2'!E40<3,"n.a.",IF('Worksheet 2'!E40>4,"n.a.",'Worksheet 10'!C34))) -> n.a.
C61: Swamped buoyancy, for boats using otion 3: Total buoyant volume > 1,33 mLDC /1000 ? | I61: Pass / Fail | K61: =IF('Worksheet 10'!D8="Yes, theoretical","calc.attached",IF('Worksheet 2'!E40<3,"n.a.",IF('Worksheet 2'!E40>4,"n.a.",'Worksheet 10'!C39))) -> n.a.
C62: Flotation elements: do all elements comply with all the requirements? | I62: Pass / Fail | K62: =IF('Worksheet 10'!D8="Yes, theoretical","calc.attached",IF('Worksheet 2'!E40<3,"n.a.",IF('Worksheet 2'!E40>4,"n.a.",'Worksheet 10'!C42))) -> n.a.
B63: 11 | C63: Detection & removal of water are all requirements satisfied? | I63: Yes / No
B64: NB: Boat must pass all requirements applicable to selected option to be given intended Design Category.
B67: Design Category given: | E67: Assessed by:
B69: Documentation of downflooding opening / closing appliance (photo/drawing) attached?
B71: If applicable, cockpit calculation according to ISO 11812 attached ?
B73: If applicable, curve of righting moments in mMO and mLA attached ?
B75: Appropriate add. information attached (e.g. photos, drawings,…) ?
B77: If applicable, ISO 12216 calcuation attached?
E81: Stability calculation checked ? | H81: Checked, OK | J81: Checked, NOK
E86: Signature:
